Directorate,Department,Expenditure Type,Ref.Doc.1,Vendor Name,Expenditure Amount (exc VAT),Payment Date
Delivery Units,Adults and Health,Ttl IT & Comms,1009564702,HAS TECHNOLOGY LTD,"9,067.50",29/06/2021
Delivery Units,Adults and Health,Voluntary Associations - Third,0050040588,BARNET MENCAP,"16,831.56",25/06/2021
Delivery Units,Adults and Health,Other Services,1009409702,RECRUITMENT TEAM NINE LIMITED,270.00,07/06/2021
Delivery Units,Adults and Health,Other Services,1009665002,RECRUITMENT TEAM NINE LIMITED,270.00,16/06/2021
Delivery Units,Adults and Health,Other Services,1009665202,RECRUITMENT TEAM NINE LIMITED,270.00,16/06/2021
Delivery Units,Adults and Health,Other Services,1010001002,POHWER,100.63,29/06/2021
Delivery Units,Adults and Health,Other Services,1010002502,POHWER,154.29,29/06/2021
Delivery Units,Adults and Health,Other Services,1009899001,RECRUITMENT TEAM NINE LIMITED,270.00,30/06/2021
Delivery Units,Adults and Health,Other Services,1009900001,RECRUITMENT TEAM NINE LIMITED,270.00,30/06/2021
Delivery Units,Adults and Health,Other Services,1009903101,RECRUITMENT TEAM NINE LIMITED,270.00,30/06/2021
Delivery Units,Adults and Health,Other Services,1010021501,RECRUITMENT TEAM NINE LIMITED,270.00,30/06/2021
Delivery Units,Adults and Health,Other Services,1010022001,RECRUITMENT TEAM NINE LIMITED,270.00,30/06/2021
Delivery Units,Adults and Health,Other Services,1010023701,RECRUITMENT TEAM NINE LIMITED,270.00,30/06/2021
Delivery Units,Adults and Health,Other Services,1009427701,BARNET HOMES ASSIST,673.14,04/06/2021
Delivery Units,Adults and Health,Other Services,1008815002,BARNET HOMES ASSIST,894.94,16/06/2021
Delivery Units,Adults and Health,Equipment and Materials Purcha,1009437201,MILLBROOK HEALTHCARE GROUP,"36,991.12",07/06/2021
Delivery Units,Adults and Health,Equipment and Materials Purcha,1009437501,MILLBROOK HEALTHCARE GROUP,"237,766.01",07/06/2021
Delivery Units,Adults and Health,Equipment and Materials Purcha,1009902301,MILLBROOK HEALTHCARE GROUP,"228,819.06",22/06/2021
Delivery Units,Adults and Health,Equipment and Materials Purcha,1009902901,MILLBROOK HEALTHCARE GROUP,"36,991.12",22/06/2021
Delivery Units,Adults and Health,Other Transfer Payments to Soc,1009437702,AGE UK BARNET,"37,500.00",08/06/2021
Delivery Units,Adults and Health,Other Transfer Payments to Soc,1009439102,MIDDLESEX ASSOCIATION  FOR THE BLIN,"2,268.25",08/06/2021
Delivery Units,Adults and Health,Health authorities - Third Par,1009601501,THE BARNETGROUP LIMITED,"50,000.00",11/06/2021
Delivery Units,Adults and Health,Health authorities - Third Par,1009602401,THE BARNETGROUP LIMITED,"42,500.00",11/06/2021
Delivery Units,Adults and Health,Other Transfer Payments to Soc,1009599802,PRT BARNET CARERS CENTRE,"28,090.92",14/06/2021
Delivery Units,Adults and Health,Other Transfer Payments to Soc,1009011002,INCLUSION BARNET,"10,123.23",29/06/2021
Delivery Units,Adults and Health,Other Services,1009368301,D.A. LANGUAGES LTD,22.00,03/06/2021
Delivery Units,Adults and Health,Other Services,1009368401,D.A. LANGUAGES LTD,33.00,03/06/2021
Delivery Units,Adults and Health,Other Services,1009369701,D.A. LANGUAGES LTD,38.50,03/06/2021
Delivery Units,Adults and Health,Other Services,1009370501,D.A. LANGUAGES LTD,54.00,03/06/2021
Delivery Units,Adults and Health,Other Services,1008886001,D.A. LANGUAGES LTD,32.76,18/06/2021
Delivery Units,Adults and Health,Other Services,1008887301,D.A. LANGUAGES LTD,42.64,18/06/2021
Delivery Units,Adults and Health,Other Services,1009471701,D.A. LANGUAGES LTD,35.88,30/06/2021
Delivery Units,Adults and Health,Other Services,1009477801,D.A. LANGUAGES LTD,28.08,30/06/2021
Delivery Units,Adults and Health,Translation Exp / Interpret,1009428001,D.A. LANGUAGES LTD,67.50,04/06/2021
Delivery Units,Adults and Health,Translation Exp / Interpret,1009429201,D.A. LANGUAGES LTD,40.50,04/06/2021
Delivery Units,Adults and Health,Translation Exp / Interpret,1009571501,D.A. LANGUAGES LTD,40.50,10/06/2021
Delivery Units,Adults and Health,Translation Exp / Interpret,1008886501,D.A. LANGUAGES LTD,42.64,18/06/2021
Delivery Units,Adults and Health,Translation Exp / Interpret,1009472401,D.A. LANGUAGES LTD,78.52,30/06/2021
Delivery Units,Adults and Health,Translation Exp / Interpret,1010023201,D.A. LANGUAGES LTD,47.25,30/06/2021
Delivery Units,Adults and Health,Translation Exp / Interpret,1010023401,D.A. LANGUAGES LTD,85.20,30/06/2021
Delivery Units,Adults and Health,Professional Services,1008886401,D.A. LANGUAGES LTD,185.12,18/06/2021
Delivery Units,Adults and Health,Translation Exp / Interpret,1009429501,D.A. LANGUAGES LTD,33.75,04/06/2021
Delivery Units,Adults and Health,Cleaning and domestic material,1009873501,NORSE COMMERCIAL SERVICES LTD,658.02,21/06/2021
Delivery Units,Adults and Health,Stationery,1009939901,HERTS FULLSTOP,22.30,24/06/2021
Delivery Units,Adults and Health,Translation Exp / Interpret,1009473601,D.A. LANGUAGES LTD,88.40,30/06/2021
Delivery Units,Adults and Health,Training,1009428501,HUNTERSJOY LTD,375.00,04/06/2021
Delivery Units,Adults and Health,Training,1009721301,ME LEARNING LTD,541.65,16/06/2021
Delivery Units,Adults and Health,Training,1009065602,LOUISE FOX CONSULTING LTD,"2,290.00",17/06/2021
Delivery Units,Adults and Health,Training,1009843501,HUNTERSJOY LTD,750.00,18/06/2021
Delivery Units,Adults and Health,Training,1009844001,HUNTERSJOY LTD,375.00,18/06/2021
Delivery Units,Adults and Health,Training,1009850201,ME LEARNING LTD,541.65,18/06/2021
Delivery Units,Adults and Health,Subscriptions,1009847902,UNIVERSITY OF BEDFORDSHIRE,"1,092.00",18/06/2021
Delivery Units,Adults and Health,Training,1010000301,HUNTERSJOY LTD,750.00,29/06/2021
Delivery Units,Adults and Health,Training,1009873901,HUNTERSJOY LTD,375.00,30/06/2021
Delivery Units,Adults and Health,Consultants Fees,1005764902,NEWSQUEST (LONDON) LIMITED,700.00,28/06/2021
Delivery Units,Adults and Health,Consultants Fees,1006897802,NEWSQUEST (LONDON) LIMITED,700.00,28/06/2021
Delivery Units,Adults and Health,Consultants Fees,1006898802,NEWSQUEST (LONDON) LIMITED,700.00,28/06/2021
Delivery Units,Adults and Health,Other Services,1009571301,D.A. LANGUAGES LTD,123.60,10/06/2021
Delivery Units,Adults and Health,Other Services,1008887701,D.A. LANGUAGES LTD,54.60,18/06/2021
Delivery Units,Adults and Health,Translation Exp / Interpret,1009369401,D.A. LANGUAGES LTD,44.00,03/06/2021
Delivery Units,Adults and Health,Translation Exp / Interpret,1009369601,D.A. LANGUAGES LTD,108.00,03/06/2021
Delivery Units,Adults and Health,Translation Exp / Interpret,1009428901,D.A. LANGUAGES LTD,54.00,04/06/2021
Delivery Units,Adults and Health,Transport Hire Charges,1009437601,BARNET EDUCATION AND LEARNING,50.00,07/06/2021
Delivery Units,Adults and Health,Transport Hire Charges,1009664902,BARNET EDUCATION AND LEARNING,225.00,16/06/2021
Delivery Units,Adults and Health,Translation Exp / Interpret,1008887601,D.A. LANGUAGES LTD,105.04,18/06/2021
Delivery Units,Adults and Health,Translation Exp / Interpret,1009429801,D.A. LANGUAGES LTD,40.50,30/06/2021
Delivery Units,Adults and Health,Translation Exp / Interpret,1009473901,D.A. LANGUAGES LTD,88.92,30/06/2021
Delivery Units,Adults and Health,Translation Exp / Interpret,1010022601,D.A. LANGUAGES LTD,110.25,30/06/2021
Delivery Units,Adults and Health,Transport Hire Charges,1009436801,BARNET EDUCATION AND LEARNING,14.00,07/06/2021
Delivery Units,Adults and Health,Translation Exp / Interpret,1009466202,D.A. LANGUAGES LTD,27.00,09/06/2021
Delivery Units,Adults and Health,Other Services,1008374402,D.A. LANGUAGES LTD,142.48,16/06/2021
Delivery Units,Adults and Health,Translation Exp / Interpret,1009370202,D.A. LANGUAGES LTD,18.72,16/06/2021
Delivery Units,Adults and Health,Translation Exp / Interpret,1009564401,D.A. LANGUAGES LTD,55.12,16/06/2021
Delivery Units,Resources,Other Transfer Payments,0050037662,ORID HOLDINGS LIMITED,"6,869.00",01/06/2021
Delivery Units,Adults and Health,Translation Exp / Interpret,1010023801,D.A. LANGUAGES LTD,27.00,30/06/2021
Delivery Units,Adults and Health,Translation Exp / Interpret,1009378301,D.A. LANGUAGES LTD,72.00,03/06/2021
Delivery Units,Adults and Health,Other Services,1009477602,AMBROSIAL SERVICES LIMITED,"1,525.00",09/06/2021
Delivery Units,Adults and Health,Other Transfer Payments to Soc,1009504901,EDUHEZ LTD,"2,720.00",09/06/2021
Delivery Units,Adults and Health,Other Services,1009505601,CAREBUZ,"1,000.00",09/06/2021
Delivery Units,Adults and Health,Other Transfer Payments to Soc,1009506801,ACTION FIRST ASSESSMENT LTD,"1,972.50",09/06/2021
Delivery Units,Adults and Health,Other Transfer Payments to Soc,1009718801,ACTION FIRST ASSESSMENT LTD,130.00,16/06/2021
Delivery Units,Adults and Health,Other Transfer Payments to Soc,1009872002,AISA MEDICAL LTD,"3,157.36",22/06/2021
Delivery Units,Adults and Health,Other Transfer Payments to Soc,1010001201,ACTION FIRST ASSESSMENT LTD,130.00,29/06/2021
Delivery Units,Adults and Health,Other Transfer Payments to Soc,1009707602,AISA MEDICAL LTD,"2,973.71",30/06/2021
Delivery Units,Adults and Health,Other Agencies - Third Party P,0090361482,CARLTON COURT (TLC GROUP),"2,307.14",01/06/2021
Delivery Units,Adults and Health,Other Agencies - Third Party P,0090361665,CARLTON COURT (TLC GROUP),"5,400.00",01/06/2021
Delivery Units,Adults and Health,Other Agencies - Third Party P,0090361699,CARLTON COURT (TLC GROUP),"6,600.00",01/06/2021
Delivery Units,Adults and Health,Other Agencies - Third Party P,0090361443,NEW CENTURY CARE (FINCHLEY),"3,494.12",01/06/2021
Delivery Units,Adults and Health,Other Agencies - Third Party P,0090361445,LIFESTYLE CARE PLC,"2,716.88",01/06/2021
Delivery Units,Adults and Health,Other Agencies - Third Party P,0090361450,FOUR SEASONS HEALTH CARE,"2,636.80",01/06/2021
Delivery Units,Adults and Health,Other Agencies - Third Party P,0090361453,ASHTON LODGE CARE CENTRE,"3,481.88",01/06/2021
Delivery Units,Adults and Health,Other Agencies - Third Party P,0090361456,SAGE NURSING HOME,"2,358.24",01/06/2021
Delivery Units,Adults and Health,Other Agencies - Third Party P,0090361460,SONESTA NURSING HOME LTD.,"2,611.20",01/06/2021
Delivery Units,Adults and Health,Other Agencies - Third Party P,0090361462,BUPA CARE HOMES,"2,429.79",01/06/2021
Delivery Units,Adults and Health,Other Agencies - Third Party P,0090361464,SAGE NURSING HOME,"3,800.00",01/06/2021
Delivery Units,Adults and Health,Other Agencies - Third Party P,0090361466,ASHTON LODGE CARE CENTRE,"3,881.16",01/06/2021
Delivery Units,Adults and Health,Other Agencies - Third Party P,0090361481,JEWISH CARE,"8,682.28",01/06/2021
Delivery Units,Adults and Health,Other Agencies - Third Party P,0090361485,ASHTON LODGE CARE CENTRE,"3,404.52",01/06/2021
Delivery Units,Adults and Health,Other Agencies - Third Party P,0090361487,JEWISH CARE,"2,915.90",01/06/2021
Delivery Units,Adults and Health,Other Agencies - Third Party P,0090361488,BUPA CARE HOMES,"2,542.96",01/06/2021
Delivery Units,Adults and Health,Other Agencies - Third Party P,0090361492,LIFESTYLE CARE PLC,"2,716.88",01/06/2021
Delivery Units,Adults and Health,Other Agencies - Third Party P,0090361493,LIFESTYLE CARE PLC,"2,716.88",01/06/2021
Delivery Units,Adults and Health,Other Agencies - Third Party P,0090361494,APPLE TREE COURT CARE HOME,0.04,01/06/2021
Delivery Units,Adults and Health,Other Agencies - Third Party P,0090361495,APPLE TREE COURT CARE HOME,"17,318.79",01/06/2021
Delivery Units,Adults and Health,Other Agencies - Third Party P,0090361496,FOUR SEASONS HEALTH CARE,"-5,812.10",01/06/2021
Delivery Units,Adults and Health,Other Agencies - Third Party P,0090361506,BUPA CARE HOMES,"2,739.80",01/06/2021
Delivery Units,Adults and Health,Other Agencies - Third Party P,0090361526,JEWISH CARE,"2,766.42",01/06/2021
Delivery Units,Adults and Health,Other Agencies - Third Party P,0090361527,ASHTON LODGE CARE CENTRE,"3,124.72",01/06/2021
Delivery Units,Adults and Health,Other Agencies - Third Party P,0090361528,JEWISH CARE,"2,915.90",01/06/2021
Delivery Units,Adults and Health,Other Agencies - Third Party P,0090361540,FOUR SEASONS HEALTH CARE,"2,636.80",01/06/2021
Delivery Units,Adults and Health,Other Agencies - Third Party P,0090361543,ASHTON LODGE CARE CENTRE,"2,915.00",01/06/2021
Delivery Units,Adults and Health,Other Agencies - Third Party P,0090361546,ASHTON LODGE CARE CENTRE,"4,016.52",01/06/2021
Delivery Units,Adults and Health,Other Agencies - Third Party P,0090361552,JEWISH CARE,"2,915.90",01/06/2021
Delivery Units,Adults and Health,Other Agencies - Third Party P,0090361554,APPLE TREE COURT CARE HOME,"3,800.00",01/06/2021
Delivery Units,Adults and Health,Other Agencies - Third Party P,0090361557,FOUR SEASONS HEALTH CARE,"2,636.80",01/06/2021
Delivery Units,Adults and Health,Other Agencies - Third Party P,0090361558,FOUR SEASONS HEALTH CARE,"2,636.80",01/06/2021
Delivery Units,Adults and Health,Other Agencies - Third Party P,0090361559,APPLE TREE COURT CARE HOME,"3,190.68",01/06/2021
Delivery Units,Adults and Health,Other Agencies - Third Party P,0090361560,BUPA CARE HOMES,"2,739.80",01/06/2021
Delivery Units,Adults and Health,Other Agencies - Third Party P,0090361562,JEWISH CARE,"2,766.42",01/06/2021
Delivery Units,Adults and Health,Other Agencies - Third Party P,0090361563,HENRY NIHILL HOUSE,"5,400.00",01/06/2021
Delivery Units,Adults and Health,Other Agencies - Third Party P,0090361564,SONESTA NURSING HOME LTD.,"2,611.20",01/06/2021
Delivery Units,Adults and Health,Other Agencies - Third Party P,0090361566,SONESTA NURSING HOME LTD.,"2,400.00",01/06/2021
Delivery Units,Adults and Health,Other Agencies - Third Party P,0090361567,AARANDALE MANOR CARE HOME,"3,310.80",01/06/2021
Delivery Units,Adults and Health,Other Agencies - Third Party P,0090361569,AARANDALE MANOR CARE HOME,"3,666.80",01/06/2021
Delivery Units,Adults and Health,Other Agencies - Third Party P,0090361575,APPLE TREE COURT CARE HOME,"3,190.68",01/06/2021
Delivery Units,Adults and Health,Other Agencies - Third Party P,0090361576,APPLE TREE COURT CARE HOME,"3,190.68",01/06/2021
Delivery Units,Adults and Health,Other Agencies - Third Party P,0090361579,NEW CENTURY CARE (FINCHLEY),"4,264.32",01/06/2021
Delivery Units,Adults and Health,Other Agencies - Third Party P,0090361581,SONESTA NURSING HOME LTD.,"10,393.68",01/06/2021
Delivery Units,Adults and Health,Other Agencies - Third Party P,0090361582,JEWISH CARE,"2,915.85",01/06/2021
Delivery Units,Adults and Health,Other Agencies - Third Party P,0090361584,LIFESTYLE CARE PLC,"2,716.88",01/06/2021
Delivery Units,Adults and Health,Other Agencies - Third Party P,0090361588,APPLE TREE COURT CARE HOME,"3,190.68",01/06/2021
Delivery Units,Adults and Health,Other Agencies - Third Party P,0090361589,BUPA CARE HOMES,"2,739.80",01/06/2021
Delivery Units,Adults and Health,Other Agencies - Third Party P,0090361591,AARANDALE MANOR CARE HOME,"3,666.80",01/06/2021
Delivery Units,Adults and Health,Other Agencies - Third Party P,0090361593,NEW CENTURY CARE (FINCHLEY),"4,144.32",01/06/2021
Delivery Units,Adults and Health,Other Agencies - Third Party P,0090361594,APPLE TREE COURT CARE HOME,"3,643.88",01/06/2021
Delivery Units,Adults and Health,Other Agencies - Third Party P,0090361597,NEW CENTURY CARE (FINCHLEY),"4,384.32",01/06/2021
Delivery Units,Adults and Health,Other Agencies - Third Party P,0090361598,LIFESTYLE CARE PLC,"2,716.88",01/06/2021
Delivery Units,Adults and Health,Other Agencies - Third Party P,0090361605,FOUR SEASONS HEALTH CARE,"8,287.09",01/06/2021
Delivery Units,Adults and Health,Other Agencies - Third Party P,0090361606,LIFESTYLE CARE PLC,"10,576.43",01/06/2021
Delivery Units,Adults and Health,Other Agencies - Third Party P,0090361608,JEWISH CARE,"1,916.06",01/06/2021
Delivery Units,Adults and Health,Other Agencies - Third Party P,0090361609,BUPA CARE HOMES,"6,898.75",01/06/2021
Delivery Units,Adults and Health,Other Agencies - Third Party P,0090361616,ASHTON LODGE CARE CENTRE,"2,909.96",01/06/2021
Delivery Units,Adults and Health,Other Agencies - Third Party P,0090361621,JEWISH CARE,"3,489.64",01/06/2021
Delivery Units,Adults and Health,Other Agencies - Third Party P,0090361623,BUPA CARE HOMES,"2,739.80",01/06/2021
Delivery Units,Adults and Health,Other Agencies - Third Party P,0090361624,JEWISH CARE,"2,915.90",01/06/2021
Delivery Units,Adults and Health,Other Agencies - Third Party P,0090361626,ASHTON LODGE CARE CENTRE,"4,087.20",01/06/2021
Delivery Units,Adults and Health,Other Agencies - Third Party P,0090361631,BUPA CARE HOMES,"2,197.80",01/06/2021
Delivery Units,Adults and Health,Other Agencies - Third Party P,0090361638,JEWISH CARE,"2,915.90",01/06/2021
Delivery Units,Adults and Health,Other Agencies - Third Party P,0090361640,JEWISH CARE,"2,915.90",01/06/2021
Delivery Units,Adults and Health,Other Agencies - Third Party P,0090361643,BUPA CARE HOMES,"2,739.80",01/06/2021
Delivery Units,Adults and Health,Other Agencies - Third Party P,0090361657,SONESTA NURSING HOME LTD.,"6,989.29",01/06/2021
Delivery Units,Adults and Health,Other Agencies - Third Party P,0090361661,JEWISH CARE,"2,915.90",01/06/2021
Delivery Units,Adults and Health,Other Agencies - Third Party P,0090361662,SONESTA NURSING HOME LTD.,"2,611.20",01/06/2021
Delivery Units,Adults and Health,Other Agencies - Third Party P,0090361663,SONESTA NURSING HOME LTD.,373.03,01/06/2021
Delivery Units,Adults and Health,Other Agencies - Third Party P,0090361668,BUPA CARE HOMES,"-1,133.20",01/06/2021
Delivery Units,Adults and Health,Other Agencies - Third Party P,0090361669,LIFESTYLE CARE PLC,"8,687.36",01/06/2021
Delivery Units,Adults and Health,Other Agencies - Third Party P,0090361670,BUPA CARE HOMES,"2,739.80",01/06/2021
Delivery Units,Adults and Health,Other Agencies - Third Party P,0090361672,FOUR SEASONS HEALTH CARE,"2,636.80",01/06/2021
Delivery Units,Adults and Health,Other Agencies - Third Party P,0090361673,FOUR SEASONS HEALTH CARE,"2,636.80",01/06/2021
Delivery Units,Adults and Health,Other Agencies - Third Party P,0090361676,SONESTA NURSING HOME LTD.,"2,611.20",01/06/2021
Delivery Units,Adults and Health,Other Agencies - Third Party P,0090361679,JEWISH CARE,"2,766.42",01/06/2021
Delivery Units,Adults and Health,Other Agencies - Third Party P,0090361684,LIFESTYLE CARE PLC,"2,716.88",01/06/2021
Delivery Units,Adults and Health,Other Agencies - Third Party P,0090361691,SONESTA NURSING HOME LTD.,"2,560.00",01/06/2021
Delivery Units,Adults and Health,Other Agencies - Third Party P,0090361693,JEWISH CARE,"2,727.16",01/06/2021
Delivery Units,Adults and Health,Other Agencies - Third Party P,0090361697,APPLE TREE COURT CARE HOME,"3,643.88",01/06/2021
Delivery Units,Adults and Health,Other Agencies - Third Party P,0090361705,LIFESTYLE CARE PLC,"-4,560.48",01/06/2021
Delivery Units,Adults and Health,Other Agencies - Third Party P,0090361708,LIFESTYLE CARE PLC,"2,716.88",01/06/2021
Delivery Units,Adults and Health,Other Agencies - Third Party P,0090361721,LIFESTYLE CARE PLC,"2,716.88",01/06/2021
Delivery Units,Adults and Health,Other Agencies - Third Party P,0090361722,AARANDALE MANOR CARE HOME,"3,666.80",01/06/2021
Delivery Units,Adults and Health,Other Agencies - Third Party P,0090361723,AARANDALE MANOR CARE HOME,"3,666.80",01/06/2021
Delivery Units,Adults and Health,Other Agencies - Third Party P,0090361724,APPLE TREE COURT CARE HOME,"8,058.59",01/06/2021
Delivery Units,Adults and Health,Other Agencies - Third Party P,0090361726,APPLE TREE COURT CARE HOME,"3,190.68",01/06/2021
Delivery Units,Adults and Health,Other Agencies - Third Party P,0090361734,APPLE TREE COURT CARE HOME,"4,800.00",01/06/2021
Delivery Units,Adults and Health,Other Agencies - Third Party P,0090361740,ASHTON LODGE CARE CENTRE,"3,664.32",01/06/2021
Delivery Units,Adults and Health,Other Agencies - Third Party P,0090361741,AARANDALE MANOR CARE HOME,"3,666.80",01/06/2021
Delivery Units,Adults and Health,Other Agencies - Third Party P,0090361742,JEWISH CARE,"2,707.59",01/06/2021
Delivery Units,Adults and Health,Other Agencies - Third Party P,0090361744,LIFESTYLE CARE PLC,"5,918.92",01/06/2021
Delivery Units,Adults and Health,Other Agencies - Third Party P,0090361748,BUPA CARE HOMES,"8,447.14",01/06/2021
Delivery Units,Adults and Health,Other Agencies - Third Party P,0090361762,JEWISH CARE,"2,915.90",01/06/2021
Delivery Units,Adults and Health,Other Agencies - Third Party P,0090361767,FOUR SEASONS HEALTH CARE,"2,636.80",01/06/2021
Delivery Units,Adults and Health,Other Agencies - Third Party P,0090361768,BUPA CARE HOMES,"3,364.52",01/06/2021
Delivery Units,Adults and Health,Other Agencies - Third Party P,0090361769,APPLE TREE COURT CARE HOME,"2,493.08",01/06/2021
Delivery Units,Adults and Health,Other Agencies - Third Party P,0090361771,AARANDALE MANOR CARE HOME,"2,595.28",01/06/2021
Delivery Units,Adults and Health,Other Agencies - Third Party P,0090361776,BUPA CARE HOMES,"2,739.80",01/06/2021
Delivery Units,Adults and Health,Other Agencies - Third Party P,0090361781,HENRY NIHILL HOUSE,57.03,01/06/2021
Delivery Units,Adults and Health,Other Agencies - Third Party P,0090361784,JEWISH CARE,"2,915.90",01/06/2021
Delivery Units,Adults and Health,Other Agencies - Third Party P,0090361785,ASHTON LODGE CARE CENTRE,"3,355.64",01/06/2021
Delivery Units,Adults and Health,Other Agencies - Third Party P,0090361794,NEW CENTURY CARE (FINCHLEY),"4,028.48",01/06/2021
Delivery Units,Adults and Health,Other Agencies - Third Party P,0090361797,JEWISH CARE,"3,027.12",01/06/2021
Delivery Units,Adults and Health,Other Agencies - Third Party P,0090361799,FOUR SEASONS HEALTH CARE,"2,636.80",01/06/2021
Delivery Units,Adults and Health,Other Agencies - Third Party P,0090361800,BUPA CARE HOMES,0.04,01/06/2021
Delivery Units,Adults and Health,Other Agencies - Third Party P,0090361807,ASHTON LODGE CARE CENTRE,"4,832.52",01/06/2021
Delivery Units,Adults and Health,Other Agencies - Third Party P,0090361808,APPLE TREE COURT CARE HOME,"3,764.00",01/06/2021
Delivery Units,Adults and Health,Other Agencies - Third Party P,0090361813,BUPA CARE HOMES,-176.24,01/06/2021
Delivery Units,Adults and Health,Other Agencies - Third Party P,0090361814,BUPA CARE HOMES,"2,739.80",01/06/2021
Delivery Units,Adults and Health,Other Agencies - Third Party P,0090361816,BUPA CARE HOMES,"2,739.80",01/06/2021
Delivery Units,Adults and Health,Other Agencies - Third Party P,0090361817,APPLE TREE COURT CARE HOME,"3,190.68",01/06/2021
Delivery Units,Adults and Health,Other Agencies - Third Party P,0090361818,APPLE TREE COURT CARE HOME,"3,190.68",01/06/2021
Delivery Units,Adults and Health,Other Agencies - Third Party P,0090361819,APPLE TREE COURT CARE HOME,"3,190.68",01/06/2021
Delivery Units,Adults and Health,Other Agencies - Third Party P,0090361822,JEWISH CARE,"3,086.24",01/06/2021
Delivery Units,Adults and Health,Other Agencies - Third Party P,0090361826,JEWISH CARE,"2,766.42",01/06/2021
Delivery Units,Adults and Health,Other Agencies - Third Party P,0090361830,AARANDALE MANOR CARE HOME,"3,666.80",01/06/2021
Delivery Units,Adults and Health,Other Agencies - Third Party P,0090361831,AARANDALE MANOR CARE HOME,"3,666.80",01/06/2021
Delivery Units,Adults and Health,Other Agencies - Third Party P,0090361834,APPLE TREE COURT CARE HOME,"3,643.88",01/06/2021
Delivery Units,Adults and Health,Other Agencies - Third Party P,0090361835,LIFESTYLE CARE PLC,"4,800.00",01/06/2021
Delivery Units,Adults and Health,Other Agencies - Third Party P,0090361837,FOUR SEASONS HEALTH CARE,"2,636.80",01/06/2021
Delivery Units,Adults and Health,Other Agencies - Third Party P,0090361842,LIFESTYLE CARE PLC,"2,716.88",01/06/2021
Delivery Units,Adults and Health,Other Agencies - Third Party P,0090361848,FOUR SEASONS HEALTH CARE,"2,636.80",01/06/2021
Delivery Units,Adults and Health,Other Agencies - Third Party P,0090361856,BUPA CARE HOMES,-684.95,01/06/2021
Delivery Units,Adults and Health,Other Agencies - Third Party P,0090361860,AARANDALE MANOR CARE HOME,"3,666.80",01/06/2021
Delivery Units,Adults and Health,Other Agencies - Third Party P,0090361863,BUPA CARE HOMES,"2,660.00",01/06/2021
Delivery Units,Adults and Health,Other Agencies - Third Party P,0090361865,FOUR SEASONS HEALTH CARE,"2,636.80",01/06/2021
Delivery Units,Adults and Health,Other Agencies - Third Party P,0090361866,APPLE TREE COURT CARE HOME,"3,190.68",01/06/2021
Delivery Units,Adults and Health,Other Agencies - Third Party P,0090361869,JEWISH CARE,"8,710.37",01/06/2021
Delivery Units,Adults and Health,Other Agencies - Third Party P,0090361872,JEWISH CARE,"9,973.91",01/06/2021
Delivery Units,Adults and Health,Other Agencies - Third Party P,0090362656,AGUDAS ISRAEL HOUSING ASSCTN LTD,"2,736.86",03/06/2021
Delivery Units,Adults and Health,Other Agencies - Third Party P,0090362865,AUTUMN GARDENS,"4,800.00",04/06/2021
Delivery Units,Adults and Health,Other Agencies - Third Party P,0090362870,AUTUMN GARDENS,"4,800.00",04/06/2021
Delivery Units,Adults and Health,Other Agencies - Third Party P,0090362871,AUTUMN GARDENS,"3,440.00",04/06/2021
Delivery Units,Adults and Health,Other Agencies - Third Party P,0090362880,GCH NORTH LONDON LTD,"3,000.00",04/06/2021
Delivery Units,Adults and Health,Other Agencies - Third Party P,0090363094,SUNRISE SENIOR LIVING LTD,"6,382.28",09/06/2021
Delivery Units,Adults and Health,Other Agencies - Third Party P,0090363093,WESTGATE HOUSE CARE CENTRE,"3,605.57",09/06/2021
Delivery Units,Adults and Health,Other Agencies - Third Party P,0090363148,BARCHESTER HEALTHCARE HOMES LTD (BROOK,"4,071.43",09/06/2021
Delivery Units,Adults and Health,Other Agencies - Third Party P,0090363150,KARUNA MANOR,"4,071.43",09/06/2021
Delivery Units,Adults and Health,Other Agencies - Third Party P,0090363151,KARUNA MANOR,"2,297.14",09/06/2021
Delivery Units,Adults and Health,Other Agencies - Third Party P,0090363193,WILSMERE HOUSE CARE CENTRE,"4,818.73",09/06/2021
Delivery Units,Adults and Health,Other Agencies - Third Party P,0090363498,ST ANNS HOME-LITTLE SISTERS OF THE POOR,"2,470.08",11/06/2021
Delivery Units,Adults and Health,Other Agencies - Third Party P,0090363500,CEDARS NURSING HOME,"-1,604.57",11/06/2021
Delivery Units,Adults and Health,Other Agencies - Third Party P,0090363501,CEDARS NURSING HOME,"4,071.43",11/06/2021
Delivery Units,Adults and Health,Other Agencies - Third Party P,0090363502,CEDARS NURSING HOME,"2,869.29",11/06/2021
Delivery Units,Adults and Health,Other Agencies - Third Party P,0090363503,CEDARS NURSING HOME,"2,526.69",11/06/2021
Delivery Units,Adults and Health,Other Agencies - Third Party P,0090363504,CEDARS NURSING HOME,"3,792.86",11/06/2021
Delivery Units,Adults and Health,Other Agencies - Third Party P,0090363505,CEDARS NURSING HOME,"5,142.86",11/06/2021
Delivery Units,Adults and Health,Other Agencies - Third Party P,0090363508,CEDARS NURSING HOME,"4,285.71",11/06/2021
Delivery Units,Adults and Health,Other Agencies - Third Party P,0090363510,HC ONE BEAMISH LTD,"2,624.19",11/06/2021
Delivery Units,Adults and Health,Other Agencies - Third Party P,0090363902,M D HOMES,"3,063.00",11/06/2021
Delivery Units,Adults and Health,Other Agencies - Third Party P,0090363905,ABBEY RAVENSCROFT PARK NURSING HOME,"6,857.14",11/06/2021
Delivery Units,Adults and Health,Other Agencies - Third Party P,0090363906,ABBEY RAVENSCROFT PARK NURSING HOME,"4,571.43",11/06/2021
Delivery Units,Adults and Health,Other Agencies - Third Party P,0090363908,ABBEY RAVENSCROFT PARK NURSING HOME,"7,800.00",11/06/2021
Delivery Units,Adults and Health,Other Agencies - Third Party P,0090364937,ST VINCENTS NURSING HOME,"1,744.50",11/06/2021
Delivery Units,Adults and Health,Other Agencies - Third Party P,0090364938,ST VINCENTS NURSING HOME,-14.36,11/06/2021
Delivery Units,Adults and Health,Other Agencies - Third Party P,0090365318,HC ONE BEAMISH LTD,"2,539.54",14/06/2021
Delivery Units,Adults and Health,Other Agencies - Third Party P,0090365427,ST ANNS HOME-LITTLE SISTERS OF THE POOR,637.44,15/06/2021
Delivery Units,Adults and Health,Other Agencies - Third Party P,0090363091,MEERA NURSING HOME LIMITED,-157.79,15/06/2021
Delivery Units,Adults and Health,Other Agencies - Third Party P,0090365409,VICTORIA CARE CENTRE,"3,038.66",15/06/2021
Delivery Units,Adults and Health,Other Agencies - Third Party P,0090365410,MEERA NURSING HOME LIMITED,"3,000.00",15/06/2021
Delivery Units,Adults and Health,Other Agencies - Third Party P,0090365421,MEERA NURSING HOME LIMITED,"-1,900.00",15/06/2021
Delivery Units,Adults and Health,Other Agencies - Third Party P,0090366551,MEERA NURSING HOME LIMITED,"3,393.60",18/06/2021
Delivery Units,Adults and Health,Other Agencies - Third Party P,0090366881,FERNBANK NURSING HOME.,"4,221.30",21/06/2021
Delivery Units,Adults and Health,Other Agencies - Third Party P,0090366882,FERNBANK NURSING HOME.,"3,428.40",21/06/2021
Delivery Units,Adults and Health,Other Agencies - Third Party P,0090366883,FERNBANK NURSING HOME.,"4,140.30",21/06/2021
Delivery Units,Adults and Health,Other Agencies - Third Party P,0090366884,MNS CARE PLC T/A SAIRAM VILLA,"5,314.29",21/06/2021
Delivery Units,Adults and Health,Other Agencies - Third Party P,0090366887,MNS CARE PLC T/A SAIRAM VILLA,"5,142.86",21/06/2021
Delivery Units,Adults and Health,Other Agencies - Third Party P,0090368519,NIGHTINGALE HOUSE,"2,885.70",23/06/2021
Delivery Units,Adults and Health,Other Agencies - Third Party P,0090368636,BIRCHWOOD GRANGE CARE HOME,"3,214.29",24/06/2021
Delivery Units,Adults and Health,Other Agencies - Third Party P,0090368637,BIRCHWOOD GRANGE CARE HOME,"3,321.43",24/06/2021
Delivery Units,Adults and Health,Other Agencies - Third Party P,0090368641,WESTMINSTER HEALTH CARE LTD,"5,007.65",24/06/2021
Delivery Units,Adults and Health,Other Agencies - Third Party P,0090368642,WESTMINSTER HEALTH CARE LTD,"2,878.57",24/06/2021
Delivery Units,Adults and Health,Other Agencies - Third Party P,0090368643,WESTMINSTER HEALTH CARE LTD,"5,401.48",24/06/2021
Delivery Units,Adults and Health,Other Agencies - Third Party P,0090368646,WESTMINSTER HEALTH CARE LTD,"4,846.11",24/06/2021
Delivery Units,Adults and Health,Other Agencies - Third Party P,0090368647,WESTMINSTER HEALTH CARE LTD,"2,785.71",24/06/2021
Delivery Units,Adults and Health,Other Agencies - Third Party P,0090368648,WESTMINSTER HEALTH CARE LTD,"5,227.24",24/06/2021
Delivery Units,Adults and Health,Other Agencies - Third Party P,0090368650,CONTEMPLATION HOMES,"3,299.79",24/06/2021
Delivery Units,Adults and Health,Other Agencies - Third Party P,0090369807,CARLTON COURT (TLC GROUP),"5,400.00",25/06/2021
Delivery Units,Adults and Health,Other Agencies - Third Party P,0090369901,CARLTON COURT (TLC GROUP),"6,600.00",25/06/2021
Delivery Units,Adults and Health,Other Agencies - Third Party P,0090369649,BUPA CARE HOMES,"2,739.80",25/06/2021
Delivery Units,Adults and Health,Other Agencies - Third Party P,0090369669,JEWISH CARE,"2,745.48",25/06/2021
Delivery Units,Adults and Health,Other Agencies - Third Party P,0090369670,ASHTON LODGE CARE CENTRE,"3,124.72",25/06/2021
Delivery Units,Adults and Health,Other Agencies - Third Party P,0090369671,JEWISH CARE,"2,682.48",25/06/2021
Delivery Units,Adults and Health,Other Agencies - Third Party P,0090369683,FOUR SEASONS HEALTH CARE,"2,636.80",25/06/2021
Delivery Units,Adults and Health,Other Agencies - Third Party P,0090369686,ASHTON LODGE CARE CENTRE,"2,915.00",25/06/2021
Delivery Units,Adults and Health,Other Agencies - Third Party P,0090369689,ASHTON LODGE CARE CENTRE,"4,016.52",25/06/2021
Delivery Units,Adults and Health,Other Agencies - Third Party P,0090369694,JEWISH CARE,"2,682.48",25/06/2021
Delivery Units,Adults and Health,Other Agencies - Third Party P,0090369696,APPLE TREE COURT CARE HOME,"3,800.00",25/06/2021
Delivery Units,Adults and Health,Other Agencies - Third Party P,0090369709,JEWISH CARE,"2,682.48",25/06/2021
Delivery Units,Adults and Health,Other Agencies - Third Party P,0090369714,FOUR SEASONS HEALTH CARE,"2,636.80",25/06/2021
Delivery Units,Adults and Health,Other Agencies - Third Party P,0090369715,BUPA CARE HOMES,"3,364.52",25/06/2021
Delivery Units,Adults and Health,Other Agencies - Third Party P,0090369716,APPLE TREE COURT CARE HOME,"2,493.08",25/06/2021
Delivery Units,Adults and Health,Other Agencies - Third Party P,0090369718,AARANDALE MANOR CARE HOME,"2,656.51",25/06/2021
Delivery Units,Adults and Health,Other Agencies - Third Party P,0090369723,BUPA CARE HOMES,"2,739.80",25/06/2021
Delivery Units,Adults and Health,Other Agencies - Third Party P,0090369729,JEWISH CARE,"2,682.48",25/06/2021
Delivery Units,Adults and Health,Other Agencies - Third Party P,0090369730,ASHTON LODGE CARE CENTRE,"3,355.64",25/06/2021
Delivery Units,Adults and Health,Other Agencies - Third Party P,0090369739,NEW CENTURY CARE (FINCHLEY),"4,028.48",25/06/2021
Delivery Units,Adults and Health,Other Agencies - Third Party P,0090369742,JEWISH CARE,"2,615.42",25/06/2021
Delivery Units,Adults and Health,Other Agencies - Third Party P,0090369744,FOUR SEASONS HEALTH CARE,"2,636.80",25/06/2021
Delivery Units,Adults and Health,Other Agencies - Third Party P,0090369745,BUPA CARE HOMES,"-4,323.49",25/06/2021
Delivery Units,Adults and Health,Other Agencies - Third Party P,0090369752,ASHTON LODGE CARE CENTRE,"4,832.52",25/06/2021
Delivery Units,Adults and Health,Other Agencies - Third Party P,0090369753,APPLE TREE COURT CARE HOME,"3,764.00",25/06/2021
Delivery Units,Adults and Health,Other Agencies - Third Party P,0090369762,ASHTON LODGE CARE CENTRE,"2,909.96",25/06/2021
Delivery Units,Adults and Health,Other Agencies - Third Party P,0090369767,JEWISH CARE,"3,489.64",25/06/2021
Delivery Units,Adults and Health,Other Agencies - Third Party P,0090369769,BUPA CARE HOMES,"2,739.80",25/06/2021
Delivery Units,Adults and Health,Other Agencies - Third Party P,0090369770,JEWISH CARE,"2,682.48",25/06/2021
Delivery Units,Adults and Health,Other Agencies - Third Party P,0090369772,ASHTON LODGE CARE CENTRE,"4,087.20",25/06/2021
Delivery Units,Adults and Health,Other Agencies - Third Party P,0090369775,BUPA CARE HOMES,"2,739.80",25/06/2021
Delivery Units,Adults and Health,Other Agencies - Third Party P,0090369782,JEWISH CARE,"2,682.48",25/06/2021
Delivery Units,Adults and Health,Other Agencies - Third Party P,0090369784,JEWISH CARE,"2,682.48",25/06/2021
Delivery Units,Adults and Health,Other Agencies - Third Party P,0090369787,BUPA CARE HOMES,"2,739.80",25/06/2021
Delivery Units,Adults and Health,Other Agencies - Third Party P,0090369800,SONESTA NURSING HOME LTD.,-881.15,25/06/2021
Delivery Units,Adults and Health,Other Agencies - Third Party P,0090369804,JEWISH CARE,"2,682.48",25/06/2021
Delivery Units,Adults and Health,Other Agencies - Third Party P,0090369805,SONESTA NURSING HOME LTD.,"2,611.20",25/06/2021
Delivery Units,Adults and Health,Other Agencies - Third Party P,0090369810,LIFESTYLE CARE PLC,"2,716.88",25/06/2021
Delivery Units,Adults and Health,Other Agencies - Third Party P,0090369811,AARANDALE MANOR CARE HOME,"3,631.20",25/06/2021
Delivery Units,Adults and Health,Other Agencies - Third Party P,0090369812,AARANDALE MANOR CARE HOME,"3,631.20",25/06/2021
Delivery Units,Adults and Health,Other Agencies - Third Party P,0090369813,APPLE TREE COURT CARE HOME,"3,190.68",25/06/2021
Delivery Units,Adults and Health,Other Agencies - Third Party P,0090369818,NEW CENTURY CARE (FINCHLEY),"3,494.12",25/06/2021
Delivery Units,Adults and Health,Other Agencies - Third Party P,0090369820,LIFESTYLE CARE PLC,"2,716.88",25/06/2021
Delivery Units,Adults and Health,Other Agencies - Third Party P,0090369825,FOUR SEASONS HEALTH CARE,"2,636.80",25/06/2021
Delivery Units,Adults and Health,Other Agencies - Third Party P,0090369828,ASHTON LODGE CARE CENTRE,"3,481.88",25/06/2021
Delivery Units,Adults and Health,Other Agencies - Third Party P,0090369831,SAGE NURSING HOME,"2,975.88",25/06/2021
Delivery Units,Adults and Health,Other Agencies - Third Party P,0090369835,SONESTA NURSING HOME LTD.,"2,611.20",25/06/2021
Delivery Units,Adults and Health,Other Agencies - Third Party P,0090369838,SAGE NURSING HOME,"3,800.00",25/06/2021
Delivery Units,Adults and Health,Other Agencies - Third Party P,0090369840,ASHTON LODGE CARE CENTRE,"3,881.16",25/06/2021
Delivery Units,Adults and Health,Other Agencies - Third Party P,0090369854,JEWISH CARE,"8,682.28",25/06/2021
Delivery Units,Adults and Health,Other Agencies - Third Party P,0090369857,ASHTON LODGE CARE CENTRE,"3,404.52",25/06/2021
Delivery Units,Adults and Health,Other Agencies - Third Party P,0090369859,JEWISH CARE,"2,682.48",25/06/2021
Delivery Units,Adults and Health,Other Agencies - Third Party P,0090369860,BUPA CARE HOMES,"2,542.96",25/06/2021
Delivery Units,Adults and Health,Other Agencies - Third Party P,0090369864,LIFESTYLE CARE PLC,"2,716.88",25/06/2021
Delivery Units,Adults and Health,Other Agencies - Third Party P,0090369865,LIFESTYLE CARE PLC,"2,716.88",25/06/2021
Delivery Units,Adults and Health,Other Agencies - Third Party P,0090369866,APPLE TREE COURT CARE HOME,0.04,25/06/2021
Delivery Units,Adults and Health,Other Agencies - Third Party P,0090369867,APPLE TREE COURT CARE HOME,504.47,25/06/2021
Delivery Units,Adults and Health,Other Agencies - Third Party P,0090369868,FOUR SEASONS HEALTH CARE,"5,273.60",25/06/2021
Delivery Units,Adults and Health,Other Agencies - Third Party P,0090369870,FOUR SEASONS HEALTH CARE,"2,636.80",25/06/2021
Delivery Units,Adults and Health,Other Agencies - Third Party P,0090369871,FOUR SEASONS HEALTH CARE,"2,636.80",25/06/2021
Delivery Units,Adults and Health,Other Agencies - Third Party P,0090369872,APPLE TREE COURT CARE HOME,"3,190.68",25/06/2021
Delivery Units,Adults and Health,Other Agencies - Third Party P,0090369873,BUPA CARE HOMES,0.04,25/06/2021
Delivery Units,Adults and Health,Other Agencies - Third Party P,0090369874,LIFESTYLE CARE PLC,"18,481.62",25/06/2021
Delivery Units,Adults and Health,Other Agencies - Third Party P,0090369875,BUPA CARE HOMES,"2,739.80",25/06/2021
Delivery Units,Adults and Health,Other Agencies - Third Party P,0090369877,FOUR SEASONS HEALTH CARE,"2,636.80",25/06/2021
Delivery Units,Adults and Health,Other Agencies - Third Party P,0090369878,FOUR SEASONS HEALTH CARE,"2,636.80",25/06/2021
Delivery Units,Adults and Health,Other Agencies - Third Party P,0090369881,SONESTA NURSING HOME LTD.,"2,611.20",25/06/2021
Delivery Units,Adults and Health,Other Agencies - Third Party P,0090369884,JEWISH CARE,"2,745.48",25/06/2021
Delivery Units,Adults and Health,Other Agencies - Third Party P,0090369889,LIFESTYLE CARE PLC,"2,716.88",25/06/2021
Delivery Units,Adults and Health,Other Agencies - Third Party P,0090369895,SONESTA NURSING HOME LTD.,"2,560.00",25/06/2021
Delivery Units,Adults and Health,Other Agencies - Third Party P,0090369900,APPLE TREE COURT CARE HOME,"3,643.88",25/06/2021
Delivery Units,Adults and Health,Other Agencies - Third Party P,0090369909,LIFESTYLE CARE PLC,"2,716.88",25/06/2021
Delivery Units,Adults and Health,Other Agencies - Third Party P,0090369925,APPLE TREE COURT CARE HOME,"26,157.85",25/06/2021
Delivery Units,Adults and Health,Other Agencies - Third Party P,0090369927,BUPA CARE HOMES,0.04,25/06/2021
Delivery Units,Adults and Health,Other Agencies - Third Party P,0090369928,BUPA CARE HOMES,"2,739.80",25/06/2021
Delivery Units,Adults and Health,Other Agencies - Third Party P,0090369930,BUPA CARE HOMES,"2,739.80",25/06/2021
Delivery Units,Adults and Health,Other Agencies - Third Party P,0090369931,APPLE TREE COURT CARE HOME,"3,190.68",25/06/2021
Delivery Units,Adults and Health,Other Agencies - Third Party P,0090369932,APPLE TREE COURT CARE HOME,"3,190.68",25/06/2021
Delivery Units,Adults and Health,Other Agencies - Third Party P,0090369933,APPLE TREE COURT CARE HOME,"3,190.68",25/06/2021
Delivery Units,Adults and Health,Other Agencies - Third Party P,0090369936,JEWISH CARE,"3,086.24",25/06/2021
Delivery Units,Adults and Health,Other Agencies - Third Party P,0090369940,JEWISH CARE,"2,745.48",25/06/2021
Delivery Units,Adults and Health,Other Agencies - Third Party P,0090369944,AARANDALE MANOR CARE HOME,"3,631.20",25/06/2021
Delivery Units,Adults and Health,Other Agencies - Third Party P,0090369945,AARANDALE MANOR CARE HOME,"3,631.20",25/06/2021
Delivery Units,Adults and Health,Other Agencies - Third Party P,0090369948,APPLE TREE COURT CARE HOME,"3,643.88",25/06/2021
Delivery Units,Adults and Health,Other Agencies - Third Party P,0090369949,LIFESTYLE CARE PLC,"-1,598.15",25/06/2021
Delivery Units,Adults and Health,Other Agencies - Third Party P,0090369951,FOUR SEASONS HEALTH CARE,"2,636.80",25/06/2021
Delivery Units,Adults and Health,Other Agencies - Third Party P,0090369956,LIFESTYLE CARE PLC,"2,716.88",25/06/2021
Delivery Units,Adults and Health,Other Agencies - Third Party P,0090369962,FOUR SEASONS HEALTH CARE,"2,636.80",25/06/2021
Delivery Units,Adults and Health,Other Agencies - Third Party P,0090369973,AARANDALE MANOR CARE HOME,"3,631.20",25/06/2021
Delivery Units,Adults and Health,Other Agencies - Third Party P,0090369976,BUPA CARE HOMES,"2,660.00",25/06/2021
Delivery Units,Adults and Health,Other Agencies - Third Party P,0090369978,FOUR SEASONS HEALTH CARE,"2,636.80",25/06/2021
Delivery Units,Adults and Health,Other Agencies - Third Party P,0090369979,APPLE TREE COURT CARE HOME,"3,190.68",25/06/2021
Delivery Units,Adults and Health,Other Agencies - Third Party P,0090369981,JEWISH CARE,"2,682.48",25/06/2021
Delivery Units,Adults and Health,Other Agencies - Third Party P,0090369983,JEWISH CARE,"2,745.48",25/06/2021
Delivery Units,Adults and Health,Other Agencies - Third Party P,0090369986,APPLE TREE COURT CARE HOME,"3,190.68",25/06/2021
Delivery Units,Adults and Health,Other Agencies - Third Party P,0090369994,APPLE TREE COURT CARE HOME,"4,800.00",25/06/2021
Delivery Units,Adults and Health,Other Agencies - Third Party P,0090370000,ASHTON LODGE CARE CENTRE,"3,664.32",25/06/2021
Delivery Units,Adults and Health,Other Agencies - Third Party P,0090370001,AARANDALE MANOR CARE HOME,"3,631.20",25/06/2021
Delivery Units,Adults and Health,Other Agencies - Third Party P,0090370003,LIFESTYLE CARE PLC,"2,134.69",25/06/2021
Delivery Units,Adults and Health,Other Agencies - Third Party P,0090370007,BUPA CARE HOMES,"2,739.76",25/06/2021
Delivery Units,Adults and Health,Other Agencies - Third Party P,0090370010,BUPA CARE HOMES,"4,403.25",25/06/2021
Delivery Units,Adults and Health,Other Agencies - Third Party P,0090370015,SONESTA NURSING HOME LTD.,"4,662.86",25/06/2021
Delivery Units,Adults and Health,Other Agencies - Third Party P,0090370020,BUPA CARE HOMES,"2,739.80",25/06/2021
Delivery Units,Adults and Health,Other Agencies - Third Party P,0090370022,JEWISH CARE,"2,745.48",25/06/2021
Delivery Units,Adults and Health,Other Agencies - Third Party P,0090370023,HENRY NIHILL HOUSE,"5,400.00",25/06/2021
Delivery Units,Adults and Health,Other Agencies - Third Party P,0090370024,SONESTA NURSING HOME LTD.,"2,611.20",25/06/2021
Delivery Units,Adults and Health,Other Agencies - Third Party P,0090370026,SONESTA NURSING HOME LTD.,"2,400.00",25/06/2021
Delivery Units,Adults and Health,Other Agencies - Third Party P,0090370027,AARANDALE MANOR CARE HOME,"3,589.45",25/06/2021
Delivery Units,Adults and Health,Other Agencies - Third Party P,0090370029,AARANDALE MANOR CARE HOME,"3,631.20",25/06/2021
Delivery Units,Adults and Health,Other Agencies - Third Party P,0090370035,APPLE TREE COURT CARE HOME,"3,190.68",25/06/2021
Delivery Units,Adults and Health,Other Agencies - Third Party P,0090370036,APPLE TREE COURT CARE HOME,"3,190.68",25/06/2021
Delivery Units,Adults and Health,Other Agencies - Third Party P,0090370039,NEW CENTURY CARE (FINCHLEY),"4,264.32",25/06/2021
Delivery Units,Adults and Health,Other Agencies - Third Party P,0090370041,SONESTA NURSING HOME LTD.,"2,560.00",25/06/2021
Delivery Units,Adults and Health,Other Agencies - Third Party P,0090370042,JEWISH CARE,"2,682.48",25/06/2021
Delivery Units,Adults and Health,Other Agencies - Third Party P,0090370044,LIFESTYLE CARE PLC,"2,716.88",25/06/2021
Delivery Units,Adults and Health,Other Agencies - Third Party P,0090370048,APPLE TREE COURT CARE HOME,"-19,827.80",25/06/2021
Delivery Units,Adults and Health,Other Agencies - Third Party P,0090370049,BUPA CARE HOMES,"2,739.80",25/06/2021
Delivery Units,Adults and Health,Other Agencies - Third Party P,0090370051,AARANDALE MANOR CARE HOME,"3,631.20",25/06/2021
Delivery Units,Adults and Health,Other Agencies - Third Party P,0090370053,NEW CENTURY CARE (FINCHLEY),"4,144.32",25/06/2021
Delivery Units,Adults and Health,Other Agencies - Third Party P,0090370054,APPLE TREE COURT CARE HOME,"3,643.88",25/06/2021
Delivery Units,Adults and Health,Other Agencies - Third Party P,0090370057,NEW CENTURY CARE (FINCHLEY),"4,384.32",25/06/2021
Delivery Units,Adults and Health,Other Agencies - Third Party P,0090370058,LIFESTYLE CARE PLC,"2,716.88",25/06/2021
Delivery Units,Adults and Health,Other Agencies - Third Party P,0090370064,BUPA CARE HOMES,"26,750.80",25/06/2021
Delivery Units,Adults and Health,Other Agencies - Third Party P,0090370065,FOUR SEASONS HEALTH CARE,"2,636.80",25/06/2021
Delivery Units,Adults and Health,Other Agencies - Third Party P,0090370066,LIFESTYLE CARE PLC,"2,716.88",25/06/2021
Delivery Units,Adults and Health,Other Agencies - Third Party P,0090370068,JEWISH CARE,"2,682.48",25/06/2021
Delivery Units,Adults and Health,Other Agencies - Third Party P,0090370069,BUPA CARE HOMES,"2,739.80",25/06/2021
Delivery Units,Adults and Health,Other Agencies - Third Party P,0090370071,JEWISH CARE,"20,024.29",25/06/2021
Delivery Units,Adults and Health,Other Agencies - Third Party P,0090370072,JEWISH CARE,"2,727.16",25/06/2021
Delivery Units,Adults and Health,Other Agencies - Third Party P,0090370073,JEWISH CARE,"2,969.89",25/06/2021
Delivery Units,Adults and Health,Other Agencies - Third Party P,0090370074,JEWISH CARE,"7,401.06",25/06/2021
Delivery Units,Adults and Health,Other Agencies - Third Party P,0090370467,AUTUMN GARDENS,"16,971.43",30/06/2021
Delivery Units,Adults and Health,Other Agencies - Third Party P,0090366239,ABBEY RAVENSCROFT PARK NURSING HOME,"-3,642.31",30/06/2021
Delivery Units,Adults and Health,Other Agencies - Third Party P,0090370424,ABBEY RAVENSCROFT PARK NURSING HOME,"3,214.29",30/06/2021
Delivery Units,Adults and Health,Other Agencies - Third Party P,0090370427,ABBEY RAVENSCROFT PARK NURSING HOME,"3,000.00",30/06/2021
Delivery Units,Adults and Health,Other Agencies - Third Party P,0090370428,ABBEY RAVENSCROFT PARK NURSING HOME,"2,518.48",30/06/2021
Delivery Units,Adults and Health,Other Agencies - Third Party P,0090370429,ABBEY RAVENSCROFT PARK NURSING HOME,"3,000.00",30/06/2021
Delivery Units,Adults and Health,Other Agencies - Third Party P,0090370430,ABBEY RAVENSCROFT PARK NURSING HOME,"4,512.00",30/06/2021
Delivery Units,Adults and Health,Other Agencies - Third Party P,0090370433,ABBEY RAVENSCROFT PARK NURSING HOME,"3,000.00",30/06/2021
Delivery Units,Adults and Health,Other Agencies - Third Party P,0090370435,ABBEY RAVENSCROFT PARK NURSING HOME,"3,400.00",30/06/2021
Delivery Units,Adults and Health,Other Agencies - Third Party P,0090370437,ABBEY RAVENSCROFT PARK NURSING HOME,"3,264.32",30/06/2021
Delivery Units,Adults and Health,Other Agencies - Third Party P,0090370438,ABBEY RAVENSCROFT PARK NURSING HOME,"3,600.00",30/06/2021
Delivery Units,Adults and Health,Other Agencies - Third Party P,0090370439,ABBEY RAVENSCROFT PARK NURSING HOME,"3,600.00",30/06/2021
Delivery Units,Adults and Health,Other Agencies - Third Party P,0090370472,ABBEY RAVENSCROFT PARK NURSING HOME,"3,750.00",30/06/2021
Delivery Units,Adults and Health,Other Agencies - Third Party P,0090370473,ABBEY RAVENSCROFT PARK NURSING HOME,"-2,892.86",30/06/2021
Delivery Units,Adults and Health,Other Agencies - Third Party P,0090361521,ROSEACRES CARE HOME LIMITED,"2,458.20",01/06/2021
Delivery Units,Adults and Health,Other Agencies - Third Party P,0090361525,ROSEACRES CARE HOME LIMITED,"3,000.00",01/06/2021
Delivery Units,Adults and Health,Other Agencies - Third Party P,0090361538,ROSEACRES CARE HOME LIMITED,"2,699.32",01/06/2021
Delivery Units,Adults and Health,Other Agencies - Third Party P,0090361545,CATHERINE LODGE,"3,400.00",01/06/2021
Delivery Units,Adults and Health,Other Agencies - Third Party P,0090361556,CATHERINE LODGE,"3,400.00",01/06/2021
Delivery Units,Adults and Health,Other Agencies - Third Party P,0090361601,CARLTON COURT (TLC GROUP),"2,571.43",01/06/2021
Delivery Units,Adults and Health,Other Agencies - Third Party P,0090361612,ROSEACRES CARE HOME LIMITED,"2,304.00",01/06/2021
Delivery Units,Adults and Health,Other Agencies - Third Party P,0090361618,ROSEACRES CARE HOME LIMITED,"3,000.00",01/06/2021
Delivery Units,Adults and Health,Other Agencies - Third Party P,0090361635,CATHERINE LODGE,"2,458.20",01/06/2021
Delivery Units,Adults and Health,Other Agencies - Third Party P,0090361636,CATHERINE LODGE,"3,000.00",01/06/2021
Delivery Units,Adults and Health,Other Agencies - Third Party P,0090361639,ROSEACRES CARE HOME LIMITED,"2,582.06",01/06/2021
Delivery Units,Adults and Health,Other Agencies - Third Party P,0090361642,CARLTON COURT (TLC GROUP),"2,031.76",01/06/2021
Delivery Units,Adults and Health,Other Agencies - Third Party P,0090361649,ROSEACRES CARE HOME LIMITED,"3,000.00",01/06/2021
Delivery Units,Adults and Health,Other Agencies - Third Party P,0090361683,CATHERINE LODGE,"3,580.00",01/06/2021
Delivery Units,Adults and Health,Other Agencies - Third Party P,0090361685,CARLTON COURT (TLC GROUP),"5,800.00",01/06/2021
Delivery Units,Adults and Health,Other Agencies - Third Party P,0090361696,CARLTON COURT (TLC GROUP),"5,400.00",01/06/2021
Delivery Units,Adults and Health,Other Agencies - Third Party P,0090361700,ROSEACRES CARE HOME LIMITED,"3,400.00",01/06/2021
Delivery Units,Adults and Health,Other Agencies - Third Party P,0090361719,ROSEACRES CARE HOME LIMITED,"1,942.86",01/06/2021
Delivery Units,Adults and Health,Other Agencies - Third Party P,0090361761,ROSEACRES CARE HOME LIMITED,"2,458.20",01/06/2021
Delivery Units,Adults and Health,Other Agencies - Third Party P,0090361786,CATHERINE LODGE,"2,582.06",01/06/2021
Delivery Units,Adults and Health,Other Agencies - Third Party P,0090361796,ROSEACRES CARE HOME LIMITED,"2,582.06",01/06/2021
Delivery Units,Adults and Health,Other Agencies - Third Party P,0090361812,ROSEACRES CARE HOME LIMITED,"3,400.00",01/06/2021
Delivery Units,Adults and Health,Other Agencies - Third Party P,0090361881,CATHERINE LODGE,"1,271.43",01/06/2021
Delivery Units,Adults and Health,Other Agencies - Third Party P,0090361447,THE GRANGE,"2,458.20",01/06/2021
Delivery Units,Adults and Health,Other Agencies - Third Party P,0090361516,THE GRANGE,"2,600.00",01/06/2021
Delivery Units,Adults and Health,Other Agencies - Third Party P,0090361666,THE GRANGE,"3,000.00",01/06/2021
Delivery Units,Adults and Health,Other Agencies - Third Party P,0090361678,THE GRANGE,"3,000.00",01/06/2021
Delivery Units,Adults and Health,Other Agencies - Third Party P,0090361686,THE GRANGE,"3,000.00",01/06/2021
Delivery Units,Adults and Health,Other Agencies - Third Party P,0090361578,WOODFIELD HOUSE,"15,080.00",01/06/2021
Delivery Units,Adults and Health,Other Agencies - Third Party P,0090361458,NAZARETH HOUSE,"2,458.20",01/06/2021
Delivery Units,Adults and Health,Other Agencies - Third Party P,0090361461,NAZARETH HOUSE,"2,488.25",01/06/2021
Delivery Units,Adults and Health,Other Agencies - Third Party P,0090361463,THE LIMES RESIDENTIAL HOME,"2,582.06",01/06/2021
Delivery Units,Adults and Health,Other Agencies - Third Party P,0090361465,ELM PARK LODGE,"2,987.28",01/06/2021
Delivery Units,Adults and Health,Other Agencies - Third Party P,0090361467,JEWISH CARE,"2,484.56",01/06/2021
Delivery Units,Adults and Health,Other Agencies - Third Party P,0090361470,ELEANOR PALMER TRUST NO 2 A/C.,"2,582.06",01/06/2021
Delivery Units,Adults and Health,Other Agencies - Third Party P,0090361471,ELEANOR PALMER TRUST NO 2 A/C.,"2,582.06",01/06/2021
Delivery Units,Adults and Health,Other Agencies - Third Party P,0090361475,ELEANOR PALMER TRUST NO 2 A/C.,"-3,090.60",01/06/2021
Delivery Units,Adults and Health,Other Agencies - Third Party P,0090361476,ELMHURST RESIDENTIAL HOME,"3,400.00",01/06/2021
Delivery Units,Adults and Health,Other Agencies - Third Party P,0090361480,NAZARETH HOUSE,"2,488.25",01/06/2021
Delivery Units,Adults and Health,Other Agencies - Third Party P,0090361489,THE LIMES RESIDENTIAL HOME,"3,040.00",01/06/2021
Delivery Units,Adults and Health,Other Agencies - Third Party P,0090361490,JEWISH CARE,"2,612.65",01/06/2021
Delivery Units,Adults and Health,Other Agencies - Third Party P,0090361491,ELEANOR PALMER TRUST NO 2 A/C.,"3,060.00",01/06/2021
Delivery Units,Adults and Health,Other Agencies - Third Party P,0090361504,BUPA CARE HOMES,"2,409.12",01/06/2021
Delivery Units,Adults and Health,Other Agencies - Third Party P,0090361510,ELEANOR PALMER TRUST NO 2 A/C.,"3,160.44",01/06/2021
Delivery Units,Adults and Health,Other Agencies - Third Party P,0090361511,NAZARETH HOUSE,"2,285.28",01/06/2021
Delivery Units,Adults and Health,Other Agencies - Third Party P,0090361514,JEWISH CARE,"4,265.48",01/06/2021
Delivery Units,Adults and Health,Other Agencies - Third Party P,0090361518,JEWISH CARE,"2,612.65",01/06/2021
Delivery Units,Adults and Health,Other Agencies - Third Party P,0090361520,JEWISH CARE,"2,484.56",01/06/2021
Delivery Units,Adults and Health,Other Agencies - Third Party P,0090361522,ELMHURST RESIDENTIAL HOME,"2,582.06",01/06/2021
Delivery Units,Adults and Health,Other Agencies - Third Party P,0090361535,ELMHURST RESIDENTIAL HOME,"2,582.06",01/06/2021
Delivery Units,Adults and Health,Other Agencies - Third Party P,0090361539,APPLE TREE COURT CARE HOME,"3,400.00",01/06/2021
Delivery Units,Adults and Health,Other Agencies - Third Party P,0090361544,JEWISH CARE,"4,825.16",01/06/2021
Delivery Units,Adults and Health,Other Agencies - Third Party P,0090361548,ASHTON LODGE CARE CENTRE,"4,016.52",01/06/2021
Delivery Units,Adults and Health,Other Agencies - Third Party P,0090361549,NAZARETH HOUSE,"2,488.25",01/06/2021
Delivery Units,Adults and Health,Other Agencies - Third Party P,0090361550,NAZARETH HOUSE,"2,582.06",01/06/2021
Delivery Units,Adults and Health,Other Agencies - Third Party P,0090361551,ELEANOR PALMER TRUST NO 2 A/C.,"3,060.00",01/06/2021
Delivery Units,Adults and Health,Other Agencies - Third Party P,0090361553,JEWISH CARE,"2,711.29",01/06/2021
Delivery Units,Adults and Health,Other Agencies - Third Party P,0090361555,JEWISH CARE,"2,711.29",01/06/2021
Delivery Units,Adults and Health,Other Agencies - Third Party P,0090361561,JEWISH CARE,"3,800.00",01/06/2021
Delivery Units,Adults and Health,Other Agencies - Third Party P,0090361571,JEWISH CARE,"2,711.29",01/06/2021
Delivery Units,Adults and Health,Other Agencies - Third Party P,0090361572,JEWISH CARE,"2,711.29",01/06/2021
Delivery Units,Adults and Health,Other Agencies - Third Party P,0090361573,JEWISH CARE,"2,711.29",01/06/2021
Delivery Units,Adults and Health,Other Agencies - Third Party P,0090361574,NAZARETH HOUSE,"2,285.28",01/06/2021
Delivery Units,Adults and Health,Other Agencies - Third Party P,0090361580,JEWISH CARE,"2,711.29",01/06/2021
Delivery Units,Adults and Health,Other Agencies - Third Party P,0090361583,JEWISH CARE,"2,581.00",01/06/2021
Delivery Units,Adults and Health,Other Agencies - Third Party P,0090361585,JEWISH CARE,"2,711.29",01/06/2021
Delivery Units,Adults and Health,Other Agencies - Third Party P,0090361587,THE LIMES RESIDENTIAL HOME,"3,000.00",01/06/2021
Delivery Units,Adults and Health,Other Agencies - Third Party P,0090361590,JEWISH CARE,"2,612.65",01/06/2021
Delivery Units,Adults and Health,Other Agencies - Third Party P,0090361596,NAZARETH HOUSE,"2,458.20",01/06/2021
Delivery Units,Adults and Health,Other Agencies - Third Party P,0090361599,JEWISH CARE,"2,612.65",01/06/2021
Delivery Units,Adults and Health,Other Agencies - Third Party P,0090361600,ELEANOR PALMER TRUST NO 2 A/C.,"3,000.00",01/06/2021
Delivery Units,Adults and Health,Other Agencies - Third Party P,0090361602,ELEANOR PALMER TRUST NO 2 A/C.,"3,000.00",01/06/2021
Delivery Units,Adults and Health,Other Agencies - Third Party P,0090361603,NAZARETH HOUSE,6.76,01/06/2021
Delivery Units,Adults and Health,Other Agencies - Third Party P,0090361604,ELEANOR PALMER TRUST NO 2 A/C.,"3,000.00",01/06/2021
Delivery Units,Adults and Health,Other Agencies - Third Party P,0090361607,NAZARETH HOUSE,"2,210.00",01/06/2021
Delivery Units,Adults and Health,Other Agencies - Third Party P,0090361617,NAZARETH HOUSE,"2,350.08",01/06/2021
Delivery Units,Adults and Health,Other Agencies - Third Party P,0090361619,THE LIMES RESIDENTIAL HOME,"2,304.00",01/06/2021
Delivery Units,Adults and Health,Other Agencies - Third Party P,0090361620,NAZARETH HOUSE,"2,285.28",01/06/2021
Delivery Units,Adults and Health,Other Agencies - Third Party P,0090361625,SAGE NURSING HOME,"2,400.00",01/06/2021
Delivery Units,Adults and Health,Other Agencies - Third Party P,0090361627,JEWISH CARE,-332.60,01/06/2021
Delivery Units,Adults and Health,Other Agencies - Third Party P,0090361629,THE LIMES RESIDENTIAL HOME,"2,042.92",01/06/2021
Delivery Units,Adults and Health,Other Agencies - Third Party P,0090361637,THE LIMES RESIDENTIAL HOME,"2,582.06",01/06/2021
Delivery Units,Adults and Health,Other Agencies - Third Party P,0090361641,NAZARETH HOUSE,"2,488.25",01/06/2021
Delivery Units,Adults and Health,Other Agencies - Third Party P,0090361644,NAZARETH HOUSE,"2,488.25",01/06/2021
Delivery Units,Adults and Health,Other Agencies - Third Party P,0090361646,THE LIMES RESIDENTIAL HOME,"2,582.06",01/06/2021
Delivery Units,Adults and Health,Other Agencies - Third Party P,0090361647,JEWISH CARE,"2,711.29",01/06/2021
Delivery Units,Adults and Health,Other Agencies - Third Party P,0090361648,ELMHURST RESIDENTIAL HOME,"3,400.00",01/06/2021
Delivery Units,Adults and Health,Other Agencies - Third Party P,0090361650,NAZARETH HOUSE,"-3,672.77",01/06/2021
Delivery Units,Adults and Health,Other Agencies - Third Party P,0090361651,NAZARETH HOUSE,"2,582.06",01/06/2021
Delivery Units,Adults and Health,Other Agencies - Third Party P,0090361654,ELMHURST RESIDENTIAL HOME,"3,400.00",01/06/2021
Delivery Units,Adults and Health,Other Agencies - Third Party P,0090361656,SAGE NURSING HOME,"2,800.00",01/06/2021
Delivery Units,Adults and Health,Other Agencies - Third Party P,0090361659,ELEANOR PALMER TRUST NO 2 A/C.,"3,060.00",01/06/2021
Delivery Units,Adults and Health,Other Agencies - Third Party P,0090361660,ELEANOR PALMER TRUST NO 2 A/C.,"3,060.00",01/06/2021
Delivery Units,Adults and Health,Other Agencies - Third Party P,0090361667,ELEANOR PALMER TRUST NO 2 A/C.,"3,060.00",01/06/2021
Delivery Units,Adults and Health,Other Agencies - Third Party P,0090361682,JEWISH CARE,"2,711.29",01/06/2021
Delivery Units,Adults and Health,Other Agencies - Third Party P,0090361687,JEWISH CARE,"2,711.29",01/06/2021
Delivery Units,Adults and Health,Other Agencies - Third Party P,0090361688,JEWISH CARE,258.19,01/06/2021
Delivery Units,Adults and Health,Other Agencies - Third Party P,0090361689,CLOVELLY HOUSE RESID. HOME LTD,"3,000.00",01/06/2021
Delivery Units,Adults and Health,Other Agencies - Third Party P,0090361690,NAZARETH HOUSE,"3,780.00",01/06/2021
Delivery Units,Adults and Health,Other Agencies - Third Party P,0090361695,JEWISH CARE,"5,070.40",01/06/2021
Delivery Units,Adults and Health,Other Agencies - Third Party P,0090361698,CLOVELLY HOUSE RESID. HOME LTD,"3,000.00",01/06/2021
Delivery Units,Adults and Health,Other Agencies - Third Party P,0090361701,JEWISH CARE,"2,711.29",01/06/2021
Delivery Units,Adults and Health,Other Agencies - Third Party P,0090361702,JEWISH CARE,"2,612.65",01/06/2021
Delivery Units,Adults and Health,Other Agencies - Third Party P,0090361703,NAZARETH HOUSE,"2,461.76",01/06/2021
Delivery Units,Adults and Health,Other Agencies - Third Party P,0090361707,ELMHURST RESIDENTIAL HOME,"4,800.00",01/06/2021
Delivery Units,Adults and Health,Other Agencies - Third Party P,0090361709,NAZARETH HOUSE,"2,516.00",01/06/2021
Delivery Units,Adults and Health,Other Agencies - Third Party P,0090361711,JEWISH CARE,"4,623.15",01/06/2021
Delivery Units,Adults and Health,Other Agencies - Third Party P,0090361712,ELEANOR PALMER TRUST NO 2 A/C.,"4,178.57",01/06/2021
Delivery Units,Adults and Health,Other Agencies - Third Party P,0090361713,NAZARETH HOUSE,"3,315.00",01/06/2021
Delivery Units,Adults and Health,Other Agencies - Third Party P,0090361714,CLOVELLY HOUSE RESID. HOME LTD,"8,142.86",01/06/2021
Delivery Units,Adults and Health,Other Agencies - Third Party P,0090361715,ELMHURST RESIDENTIAL HOME,"3,392.86",01/06/2021
Delivery Units,Adults and Health,Other Agencies - Third Party P,0090361716,JEWISH CARE,"5,661.00",01/06/2021
Delivery Units,Adults and Health,Other Agencies - Third Party P,0090361717,JEWISH CARE,"2,264.40",01/06/2021
Delivery Units,Adults and Health,Other Agencies - Third Party P,0090361718,NAZARETH HOUSE,"1,530.00",01/06/2021
Delivery Units,Adults and Health,Other Agencies - Third Party P,0090361725,NAZARETH HOUSE,"2,488.25",01/06/2021
Delivery Units,Adults and Health,Other Agencies - Third Party P,0090361728,JEWISH CARE,"2,612.65",01/06/2021
Delivery Units,Adults and Health,Other Agencies - Third Party P,0090361729,JEWISH CARE,"2,711.29",01/06/2021
Delivery Units,Adults and Health,Other Agencies - Third Party P,0090361730,ELM PARK LODGE,"3,557.56",01/06/2021
Delivery Units,Adults and Health,Other Agencies - Third Party P,0090361731,NAZARETH HOUSE,"2,488.25",01/06/2021
Delivery Units,Adults and Health,Other Agencies - Third Party P,0090361735,THE LIMES RESIDENTIAL HOME,"3,200.00",01/06/2021
Delivery Units,Adults and Health,Other Agencies - Third Party P,0090361736,JEWISH CARE,"2,581.00",01/06/2021
Delivery Units,Adults and Health,Other Agencies - Third Party P,0090361737,APPLE TREE COURT CARE HOME,"4,400.00",01/06/2021
Delivery Units,Adults and Health,Other Agencies - Third Party P,0090361739,JEWISH CARE,"2,711.29",01/06/2021
Delivery Units,Adults and Health,Other Agencies - Third Party P,0090361745,JEWISH CARE,"5,828.57",01/06/2021
Delivery Units,Adults and Health,Other Agencies - Third Party P,0090361747,NAZARETH HOUSE,"2,875.43",01/06/2021
Delivery Units,Adults and Health,Other Agencies - Third Party P,0090361749,JEWISH CARE,"25,202.86",01/06/2021
Delivery Units,Adults and Health,Other Agencies - Third Party P,0090361751,ELEANOR PALMER TRUST NO 2 A/C.,"3,750.00",01/06/2021
Delivery Units,Adults and Health,Other Agencies - Third Party P,0090361752,NAZARETH HOUSE,"2,285.28",01/06/2021
Delivery Units,Adults and Health,Other Agencies - Third Party P,0090361779,ELEANOR PALMER TRUST NO 2 A/C.,"3,160.44",01/06/2021
Delivery Units,Adults and Health,Other Agencies - Third Party P,0090361789,ELMHURST RESIDENTIAL HOME,"2,600.00",01/06/2021
Delivery Units,Adults and Health,Other Agencies - Third Party P,0090361791,ELMHURST RESIDENTIAL HOME,"2,600.00",01/06/2021
Delivery Units,Adults and Health,Other Agencies - Third Party P,0090361792,ELEANOR PALMER TRUST NO 2 A/C.,"2,458.20",01/06/2021
Delivery Units,Adults and Health,Other Agencies - Third Party P,0090361793,ELEANOR PALMER TRUST NO 2 A/C.,"3,090.60",01/06/2021
Delivery Units,Adults and Health,Other Agencies - Third Party P,0090361798,ELMHURST RESIDENTIAL HOME,"2,582.06",01/06/2021
Delivery Units,Adults and Health,Other Agencies - Third Party P,0090361801,JEWISH CARE,"2,612.65",01/06/2021
Delivery Units,Adults and Health,Other Agencies - Third Party P,0090361805,JEWISH CARE,"2,612.65",01/06/2021
Delivery Units,Adults and Health,Other Agencies - Third Party P,0090361806,NAZARETH HOUSE,"2,488.25",01/06/2021
Delivery Units,Adults and Health,Other Agencies - Third Party P,0090361810,JEWISH CARE,"2,612.65",01/06/2021
Delivery Units,Adults and Health,Other Agencies - Third Party P,0090361811,JEWISH CARE,"2,711.29",01/06/2021
Delivery Units,Adults and Health,Other Agencies - Third Party P,0090361815,ELEANOR PALMER TRUST NO 2 A/C.,"3,060.00",01/06/2021
Delivery Units,Adults and Health,Other Agencies - Third Party P,0090361820,THE LIMES RESIDENTIAL HOME,"3,000.00",01/06/2021
Delivery Units,Adults and Health,Other Agencies - Third Party P,0090361821,NAZARETH HOUSE,"2,582.06",01/06/2021
Delivery Units,Adults and Health,Other Agencies - Third Party P,0090361824,NAZARETH HOUSE,"2,582.06",01/06/2021
Delivery Units,Adults and Health,Other Agencies - Third Party P,0090361825,NAZARETH HOUSE,"2,488.25",01/06/2021
Delivery Units,Adults and Health,Other Agencies - Third Party P,0090361833,JEWISH CARE,"2,399.56",01/06/2021
Delivery Units,Adults and Health,Other Agencies - Third Party P,0090361838,NAZARETH HOUSE,"3,800.00",01/06/2021
Delivery Units,Adults and Health,Other Agencies - Third Party P,0090361839,JEWISH CARE,"2,711.29",01/06/2021
Delivery Units,Adults and Health,Other Agencies - Third Party P,0090361840,NAZARETH HOUSE,"2,488.25",01/06/2021
Delivery Units,Adults and Health,Other Agencies - Third Party P,0090361843,JEWISH CARE,"2,581.00",01/06/2021
Delivery Units,Adults and Health,Other Agencies - Third Party P,0090361845,JEWISH CARE,"2,612.65",01/06/2021
Delivery Units,Adults and Health,Other Agencies - Third Party P,0090361849,NAZARETH HOUSE,"2,488.25",01/06/2021
Delivery Units,Adults and Health,Other Agencies - Third Party P,0090361850,NAZARETH HOUSE,"2,285.28",01/06/2021
Delivery Units,Adults and Health,Other Agencies - Third Party P,0090361852,CLOVELLY HOUSE RESID. HOME LTD,"3,000.00",01/06/2021
Delivery Units,Adults and Health,Other Agencies - Third Party P,0090361853,NAZARETH HOUSE,"2,488.25",01/06/2021
Delivery Units,Adults and Health,Other Agencies - Third Party P,0090361854,THE LIMES RESIDENTIAL HOME,"3,000.00",01/06/2021
Delivery Units,Adults and Health,Other Agencies - Third Party P,0090361855,JEWISH CARE,"2,711.29",01/06/2021
Delivery Units,Adults and Health,Other Agencies - Third Party P,0090361857,NAZARETH HOUSE,"2,582.06",01/06/2021
Delivery Units,Adults and Health,Other Agencies - Third Party P,0090361859,JEWISH CARE,"2,711.29",01/06/2021
Delivery Units,Adults and Health,Other Agencies - Third Party P,0090361862,CLOVELLY HOUSE RESID. HOME LTD,"3,000.00",01/06/2021
Delivery Units,Adults and Health,Other Agencies - Third Party P,0090361864,NAZARETH HOUSE,"2,488.25",01/06/2021
Delivery Units,Adults and Health,Other Agencies - Third Party P,0090361868,ELEANOR PALMER TRUST NO 2 A/C.,535.72,01/06/2021
Delivery Units,Adults and Health,Other Agencies - Third Party P,0090361870,CLOVELLY HOUSE RESID. HOME LTD,"4,178.57",01/06/2021
Delivery Units,Adults and Health,Other Agencies - Third Party P,0090361871,CLOVELLY HOUSE RESID. HOME LTD,"9,000.00",01/06/2021
Delivery Units,Adults and Health,Other Agencies - Third Party P,0090361873,NAZARETH HOUSE,"21,668.28",01/06/2021
Delivery Units,Adults and Health,Other Agencies - Third Party P,0090361874,ELEANOR PALMER TRUST NO 2 A/C.,"2,571.43",01/06/2021
Delivery Units,Adults and Health,Other Agencies - Third Party P,0090361875,NAZARETH HOUSE,"2,156.57",01/06/2021
Delivery Units,Adults and Health,Other Agencies - Third Party P,0090361878,JEWISH CARE,"-1,488.53",01/06/2021
Delivery Units,Adults and Health,Other Agencies - Third Party P,0090361879,JEWISH CARE,"1,874.25",01/06/2021
Delivery Units,Adults and Health,Other Agencies - Third Party P,0090361880,JEWISH CARE,"3,257.30",01/06/2021
Delivery Units,Adults and Health,Other Agencies - Third Party P,0090361888,AARANDALE LODGE,"4,200.00",01/06/2021
Delivery Units,Adults and Health,Other Agencies - Third Party P,0090361890,BEAUMONT COURT CARE HOME,"3,764.29",01/06/2021
Delivery Units,Adults and Health,Other Agencies - Third Party P,0090362644,ELIZABETH FINN HOMES LTD,"3,985.71",03/06/2021
Delivery Units,Adults and Health,Other Agencies - Third Party P,0090362864,TENTERDEN HOUSE,"4,199.61",04/06/2021
Delivery Units,Adults and Health,Other Agencies - Third Party P,0090362868,AUTUMN GARDENS,"3,200.00",04/06/2021
Delivery Units,Adults and Health,Other Agencies - Third Party P,0090362867,ANASTASIA LODGE,"3,800.00",04/06/2021
Delivery Units,Adults and Health,Other Agencies - Third Party P,0090362872,ANASTASIA LODGE,"4,101.43",04/06/2021
Delivery Units,Adults and Health,Other Agencies - Third Party P,0090362874,THE CHRISTIAN CARE TRUST,"2,516.00",04/06/2021
Delivery Units,Adults and Health,Other Agencies - Third Party P,0090362875,EASTSIDE HOUSE CARE HOME,"3,580.00",04/06/2021
Delivery Units,Adults and Health,Other Agencies - Third Party P,0090362879,METHODIST HOMES FOR THE AGED,"2,631.76",04/06/2021
Delivery Units,Adults and Health,Other Agencies - Third Party P,0090362881,GCH (HERTFORDSHIRE) LTD T/A,"2,414.68",04/06/2021
Delivery Units,Adults and Health,Other Agencies - Third Party P,0090363087,TENTERDEN HOUSE,"4,064.14",09/06/2021
Delivery Units,Adults and Health,Other Agencies - Third Party P,0090363099,SYDMAR LODGE,"2,497.50",09/06/2021
Delivery Units,Adults and Health,Other Agencies - Third Party P,0090363100,SYDMAR LODGE,"5,357.41",09/06/2021
Delivery Units,Adults and Health,Other Agencies - Third Party P,0090363101,SYDMAR LODGE,"2,580.75",09/06/2021
Delivery Units,Adults and Health,Other Agencies - Third Party P,0090363102,SYDMAR LODGE,"5,535.71",09/06/2021
Delivery Units,Adults and Health,Other Agencies - Third Party P,0090363189,GCH (NORTH LONDON) T/A THE TUDORS,"2,300.00",09/06/2021
Delivery Units,Adults and Health,Other Agencies - Third Party P,0090363153,LIVABILITY,"3,211.80",09/06/2021
Delivery Units,Adults and Health,Other Agencies - Third Party P,0090363154,LIVABILITY,"3,458.24",09/06/2021
Delivery Units,Adults and Health,Other Agencies - Third Party P,0090363158,LIVABILITY,"4,364.00",09/06/2021
Delivery Units,Adults and Health,Other Agencies - Third Party P,0090363168,VILLA SCALABRINI,"4,285.71",09/06/2021
Delivery Units,Adults and Health,Other Agencies - Third Party P,0090363185,RNID,"3,030.04",09/06/2021
Delivery Units,Adults and Health,Other Agencies - Third Party P,0090363149,KARUNA MANOR,"4,071.43",09/06/2021
Delivery Units,Adults and Health,Other Agencies - Third Party P,0090363169,B & M CARE,"3,642.86",09/06/2021
Delivery Units,Adults and Health,Other Agencies - Third Party P,0090363180,B & M CARE,"4,071.43",09/06/2021
Delivery Units,Adults and Health,Other Agencies - Third Party P,0090363181,B & M CARE,"4,285.71",09/06/2021
Delivery Units,Adults and Health,Other Agencies - Third Party P,0090363194,THE CHRISTIAN CARE TRUST,"2,516.00",09/06/2021
Delivery Units,Adults and Health,Other Agencies - Third Party P,0090363512,ASPEN VILLAGES LTD,834.20,11/06/2021
Delivery Units,Adults and Health,Other Agencies - Third Party P,0090363513,ASPEN VILLAGES LTD,"2,780.66",11/06/2021
Delivery Units,Adults and Health,Other Agencies - Third Party P,0090363515,ASPEN VILLAGES LTD,"2,873.35",11/06/2021
Delivery Units,Adults and Health,Other Agencies - Third Party P,0090363507,CEDARS NURSING HOME,"4,285.71",11/06/2021
Delivery Units,Adults and Health,Other Agencies - Third Party P,0090363884,THE WOODSIDE HOME,"2,516.00",11/06/2021
Delivery Units,Adults and Health,Other Agencies - Third Party P,0090363885,THE WOODSIDE HOME,"2,380.00",11/06/2021
Delivery Units,Adults and Health,Other Agencies - Third Party P,0090363886,THE WOODSIDE HOME,"2,516.00",11/06/2021
Delivery Units,Adults and Health,Other Agencies - Third Party P,0090363887,THE WOODSIDE HOME,"2,380.00",11/06/2021
Delivery Units,Adults and Health,Other Agencies - Third Party P,0090363888,THE WOODSIDE HOME,"2,380.00",11/06/2021
Delivery Units,Adults and Health,Other Agencies - Third Party P,0090363903,A.H.J. DAVID LTD T/A FLORENCE HOUSE,"3,200.00",11/06/2021
Delivery Units,Adults and Health,Other Agencies - Third Party P,0090363910,WILTON HOUSE LTD,"2,536.46",11/06/2021
Delivery Units,Adults and Health,Other Agencies - Third Party P,0090363911,WILTON HOUSE LTD,"2,527.24",11/06/2021
Delivery Units,Adults and Health,Other Agencies - Third Party P,0090364942,TORRINGTON HOMES,"2,176.89",11/06/2021
Delivery Units,Adults and Health,Other Agencies - Third Party P,0090364943,TORRINGTON HOMES,"2,369.79",11/06/2021
Delivery Units,Adults and Health,Other Agencies - Third Party P,0090364945,DHYANI CARE LTD,"3,214.26",11/06/2021
Delivery Units,Adults and Health,Other Agencies - Third Party P,0090364946,HIGH VIEW CARE SERVICES LTD,"14,215.23",11/06/2021
Delivery Units,Adults and Health,Other Agencies - Third Party P,0090364947,GREEN TREES,"3,498.35",11/06/2021
Delivery Units,Adults and Health,Other Agencies - Third Party P,0090364948,GREEN TREES,"3,498.35",11/06/2021
Delivery Units,Adults and Health,Other Agencies - Third Party P,0090364949,GREEN TREES,"3,385.10",11/06/2021
Delivery Units,Adults and Health,Other Agencies - Third Party P,1009603602,THE BARNETGROUP LIMITED,"250,000.00",14/06/2021
Delivery Units,Adults and Health,Other Agencies - Third Party P,1009603502,THE BARNETGROUP LIMITED,"173,540.83",15/06/2021
Delivery Units,Adults and Health,Other Agencies - Third Party P,1009659102,THE BARNETGROUP LIMITED,"224,485.51",15/06/2021
Delivery Units,Adults and Health,Other Agencies - Third Party P,0090365963,GREEN TREES,"3,498.35",17/06/2021
Delivery Units,Adults and Health,Other Agencies - Third Party P,0090365964,GREEN TREES,"3,385.50",17/06/2021
Delivery Units,Adults and Health,Other Agencies - Third Party P,0090365976,HILTON LODGE LTD.,"2,880.00",17/06/2021
Delivery Units,Adults and Health,Other Agencies - Third Party P,0090365977,HILTON LODGE LTD.,"3,800.00",17/06/2021
Delivery Units,Adults and Health,Other Agencies - Third Party P,0090366556,DR FRENCH MEMORIAL HOME LTD,"2,517.94",18/06/2021
Delivery Units,Adults and Health,Other Agencies - Third Party P,0090366557,DR FRENCH MEMORIAL HOME LTD,"3,428.57",18/06/2021
Delivery Units,Adults and Health,Other Agencies - Third Party P,0090366558,DR FRENCH MEMORIAL HOME LTD,"3,428.57",18/06/2021
Delivery Units,Adults and Health,Other Agencies - Third Party P,0090366559,DR FRENCH MEMORIAL HOME LTD,"3,642.86",18/06/2021
Delivery Units,Adults and Health,Other Agencies - Third Party P,0090366560,DR FRENCH MEMORIAL HOME LTD,"3,642.86",18/06/2021
Delivery Units,Adults and Health,Other Agencies - Third Party P,0090366561,DR FRENCH MEMORIAL HOME LTD,"3,750.00",18/06/2021
Delivery Units,Adults and Health,Other Agencies - Third Party P,0090366562,DR FRENCH MEMORIAL HOME LTD,"3,760.20",18/06/2021
Delivery Units,Adults and Health,Other Agencies - Third Party P,0090366563,DR FRENCH MEMORIAL HOME LTD,"3,750.00",18/06/2021
Delivery Units,Adults and Health,Other Agencies - Third Party P,0090366564,DR FRENCH MEMORIAL HOME LTD,587.52,18/06/2021
Delivery Units,Adults and Health,Other Agencies - Third Party P,0090366565,DR FRENCH MEMORIAL HOME LTD,"3,542.86",18/06/2021
Delivery Units,Adults and Health,Other Agencies - Third Party P,0090366566,DR FRENCH MEMORIAL HOME LTD,"3,542.86",18/06/2021
Delivery Units,Adults and Health,Other Agencies - Third Party P,0090366567,DR FRENCH MEMORIAL HOME LTD,"3,764.29",18/06/2021
Delivery Units,Adults and Health,Other Agencies - Third Party P,0090366568,DR FRENCH MEMORIAL HOME LTD,"3,764.29",18/06/2021
Delivery Units,Adults and Health,Other Agencies - Third Party P,0090366569,DR FRENCH MEMORIAL HOME LTD,"3,875.00",18/06/2021
Delivery Units,Adults and Health,Other Agencies - Third Party P,0090366570,DR FRENCH MEMORIAL HOME LTD,"3,885.54",18/06/2021
Delivery Units,Adults and Health,Other Agencies - Third Party P,0090366571,DR FRENCH MEMORIAL HOME LTD,"3,875.00",18/06/2021
Delivery Units,Adults and Health,Other Agencies - Third Party P,0090366572,DR FRENCH MEMORIAL HOME LTD,"3,428.57",18/06/2021
Delivery Units,Adults and Health,Other Agencies - Third Party P,0090366573,DR FRENCH MEMORIAL HOME LTD,"3,428.57",18/06/2021
Delivery Units,Adults and Health,Other Agencies - Third Party P,0090366574,DR FRENCH MEMORIAL HOME LTD,"3,642.86",18/06/2021
Delivery Units,Adults and Health,Other Agencies - Third Party P,0090366575,DR FRENCH MEMORIAL HOME LTD,"3,642.86",18/06/2021
Delivery Units,Adults and Health,Other Agencies - Third Party P,0090366576,DR FRENCH MEMORIAL HOME LTD,"3,750.00",18/06/2021
Delivery Units,Adults and Health,Other Agencies - Third Party P,0090366577,DR FRENCH MEMORIAL HOME LTD,"3,760.20",18/06/2021
Delivery Units,Adults and Health,Other Agencies - Third Party P,0090366578,DR FRENCH MEMORIAL HOME LTD,"3,750.00",18/06/2021
Delivery Units,Adults and Health,Other Agencies - Third Party P,0090366885,MNS CARE PLC T/A SAIRAM VILLA,"4,428.57",21/06/2021
Delivery Units,Adults and Health,Other Agencies - Third Party P,0090366886,MNS CARE PLC T/A SAIRAM VILLA,"4,285.71",21/06/2021
Delivery Units,Adults and Health,Other Agencies - Third Party P,0090368200,TBG MOSAIC,"16,800.00",23/06/2021
Delivery Units,Adults and Health,Other Agencies - Third Party P,0090368202,TBG MOSAIC,"42,766.73",23/06/2021
Delivery Units,Adults and Health,Other Agencies - Third Party P,0090368203,TBG MOSAIC,"2,516.00",23/06/2021
Delivery Units,Adults and Health,Other Agencies - Third Party P,0090368204,TBG MOSAIC,"2,516.00",23/06/2021
Delivery Units,Adults and Health,Other Agencies - Third Party P,0090368206,TBG MOSAIC,"2,516.00",23/06/2021
Delivery Units,Adults and Health,Other Agencies - Third Party P,0090368207,TBG MOSAIC,"2,516.00",23/06/2021
Delivery Units,Adults and Health,Other Agencies - Third Party P,0090368208,TBG MOSAIC,"2,380.00",23/06/2021
Delivery Units,Adults and Health,Other Agencies - Third Party P,0090368209,TBG MOSAIC,"2,516.00",23/06/2021
Delivery Units,Adults and Health,Other Agencies - Third Party P,0090368210,TBG MOSAIC,"2,380.00",23/06/2021
Delivery Units,Adults and Health,Other Agencies - Third Party P,0090368211,TBG MOSAIC,"-2,457.53",23/06/2021
Delivery Units,Adults and Health,Other Agencies - Third Party P,0090368212,TBG MOSAIC,"2,380.00",23/06/2021
Delivery Units,Adults and Health,Other Agencies - Third Party P,0090368213,TBG MOSAIC,"2,516.00",23/06/2021
Delivery Units,Adults and Health,Other Agencies - Third Party P,0090368214,TBG MOSAIC,"2,516.00",23/06/2021
Delivery Units,Adults and Health,Other Agencies - Third Party P,0090368215,TBG MOSAIC,"2,380.00",23/06/2021
Delivery Units,Adults and Health,Other Agencies - Third Party P,0090368216,TBG MOSAIC,"2,516.00",23/06/2021
Delivery Units,Adults and Health,Other Agencies - Third Party P,0090368219,TBG MOSAIC,"3,600.00",23/06/2021
Delivery Units,Adults and Health,Other Agencies - Third Party P,0090368220,TBG MOSAIC,"2,857.92",23/06/2021
Delivery Units,Adults and Health,Other Agencies - Third Party P,0090368221,TBG MOSAIC,"2,380.00",23/06/2021
Delivery Units,Adults and Health,Other Agencies - Third Party P,0090368222,TBG MOSAIC,"2,380.00",23/06/2021
Delivery Units,Adults and Health,Other Agencies - Third Party P,0090368223,TBG MOSAIC,"7,480.00",23/06/2021
Delivery Units,Adults and Health,Other Agencies - Third Party P,0090368225,TBG MOSAIC,"2,380.00",23/06/2021
Delivery Units,Adults and Health,Other Agencies - Third Party P,0090368226,TBG MOSAIC,"2,380.00",23/06/2021
Delivery Units,Adults and Health,Other Agencies - Third Party P,0090368227,TBG MOSAIC,"2,380.00",23/06/2021
Delivery Units,Adults and Health,Other Agencies - Third Party P,0090368228,TBG MOSAIC,"2,380.00",23/06/2021
Delivery Units,Adults and Health,Other Agencies - Third Party P,0090368229,TBG MOSAIC,"4,292.00",23/06/2021
Delivery Units,Adults and Health,Other Agencies - Third Party P,0090368230,TBG MOSAIC,0.04,23/06/2021
Delivery Units,Adults and Health,Other Agencies - Third Party P,0090368231,TBG MOSAIC,"9,376.00",23/06/2021
Delivery Units,Adults and Health,Other Agencies - Third Party P,0090368232,TBG MOSAIC,"2,516.00",23/06/2021
Delivery Units,Adults and Health,Other Agencies - Third Party P,0090368233,TBG MOSAIC,"2,516.00",23/06/2021
Delivery Units,Adults and Health,Other Agencies - Third Party P,0090368234,TBG MOSAIC,"2,380.00",23/06/2021
Delivery Units,Adults and Health,Other Agencies - Third Party P,0090368235,TBG MOSAIC,"2,380.00",23/06/2021
Delivery Units,Adults and Health,Other Agencies - Third Party P,0090368236,TBG MOSAIC,"2,380.00",23/06/2021
Delivery Units,Adults and Health,Other Agencies - Third Party P,0090368237,TBG MOSAIC,"2,800.00",23/06/2021
Delivery Units,Adults and Health,Other Agencies - Third Party P,0090368238,TBG MOSAIC,"2,380.00",23/06/2021
Delivery Units,Adults and Health,Other Agencies - Third Party P,0090368239,TBG MOSAIC,"2,380.00",23/06/2021
Delivery Units,Adults and Health,Other Agencies - Third Party P,0090368240,TBG MOSAIC,"2,800.00",23/06/2021
Delivery Units,Adults and Health,Other Agencies - Third Party P,0090368241,TBG MOSAIC,"2,516.00",23/06/2021
Delivery Units,Adults and Health,Other Agencies - Third Party P,0090368242,TBG MOSAIC,"2,380.00",23/06/2021
Delivery Units,Adults and Health,Other Agencies - Third Party P,0090368243,TBG MOSAIC,"6,120.00",23/06/2021
Delivery Units,Adults and Health,Other Agencies - Third Party P,0090368244,TBG MOSAIC,"2,380.00",23/06/2021
Delivery Units,Adults and Health,Other Agencies - Third Party P,0090368245,TBG MOSAIC,"2,380.00",23/06/2021
Delivery Units,Adults and Health,Other Agencies - Third Party P,0090368246,TBG MOSAIC,"2,516.00",23/06/2021
Delivery Units,Adults and Health,Other Agencies - Third Party P,0090368247,TBG MOSAIC,"2,380.00",23/06/2021
Delivery Units,Adults and Health,Other Agencies - Third Party P,0090368248,TBG MOSAIC,"2,516.00",23/06/2021
Delivery Units,Adults and Health,Other Agencies - Third Party P,0090368249,TBG MOSAIC,"2,516.00",23/06/2021
Delivery Units,Adults and Health,Other Agencies - Third Party P,0090368250,TBG MOSAIC,"2,380.00",23/06/2021
Delivery Units,Adults and Health,Other Agencies - Third Party P,0090368251,TBG MOSAIC,"2,380.00",23/06/2021
Delivery Units,Adults and Health,Other Agencies - Third Party P,0090368252,TBG MOSAIC,"2,380.00",23/06/2021
Delivery Units,Adults and Health,Other Agencies - Third Party P,0090368253,TBG MOSAIC,"2,380.00",23/06/2021
Delivery Units,Adults and Health,Other Agencies - Third Party P,0090368255,TBG MOSAIC,"2,516.00",23/06/2021
Delivery Units,Adults and Health,Other Agencies - Third Party P,0090368256,TBG MOSAIC,0.04,23/06/2021
Delivery Units,Adults and Health,Other Agencies - Third Party P,0090368257,TBG MOSAIC,"2,516.00",23/06/2021
Delivery Units,Adults and Health,Other Agencies - Third Party P,0090368258,TBG MOSAIC,"2,516.00",23/06/2021
Delivery Units,Adults and Health,Other Agencies - Third Party P,0090368259,TBG MOSAIC,"2,516.00",23/06/2021
Delivery Units,Adults and Health,Other Agencies - Third Party P,0090368260,TBG MOSAIC,"2,380.00",23/06/2021
Delivery Units,Adults and Health,Other Agencies - Third Party P,0090368262,TBG MOSAIC,"2,304.00",23/06/2021
Delivery Units,Adults and Health,Other Agencies - Third Party P,0090368263,TBG MOSAIC,"7,140.00",23/06/2021
Delivery Units,Adults and Health,Other Agencies - Third Party P,0090368266,TBG MOSAIC,"2,516.00",23/06/2021
Delivery Units,Adults and Health,Other Agencies - Third Party P,0090368267,TBG MOSAIC,"2,516.00",23/06/2021
Delivery Units,Adults and Health,Other Agencies - Third Party P,0090368268,TBG MOSAIC,"2,380.00",23/06/2021
Delivery Units,Adults and Health,Other Agencies - Third Party P,0090368269,TBG MOSAIC,"2,380.00",23/06/2021
Delivery Units,Adults and Health,Other Agencies - Third Party P,0090368270,TBG MOSAIC,"2,516.00",23/06/2021
Delivery Units,Adults and Health,Other Agencies - Third Party P,0090368271,TBG MOSAIC,"2,380.00",23/06/2021
Delivery Units,Adults and Health,Other Agencies - Third Party P,0090368272,TBG MOSAIC,"2,516.00",23/06/2021
Delivery Units,Adults and Health,Other Agencies - Third Party P,0090368274,TBG MOSAIC,"4,062.40",23/06/2021
Delivery Units,Adults and Health,Other Agencies - Third Party P,0090368275,TBG MOSAIC,"2,380.00",23/06/2021
Delivery Units,Adults and Health,Other Agencies - Third Party P,0090368276,TBG MOSAIC,"2,516.00",23/06/2021
Delivery Units,Adults and Health,Other Agencies - Third Party P,0090368279,TBG MOSAIC,"2,380.00",23/06/2021
Delivery Units,Adults and Health,Other Agencies - Third Party P,0090368280,TBG MOSAIC,"2,380.00",23/06/2021
Delivery Units,Adults and Health,Other Agencies - Third Party P,0090368281,TBG MOSAIC,-718.85,23/06/2021
Delivery Units,Adults and Health,Other Agencies - Third Party P,0090368282,TBG MOSAIC,"2,516.00",23/06/2021
Delivery Units,Adults and Health,Other Agencies - Third Party P,0090368283,TBG MOSAIC,"2,380.00",23/06/2021
Delivery Units,Adults and Health,Other Agencies - Third Party P,0090368439,TBG MOSAIC,"317,358.94",23/06/2021
Delivery Units,Adults and Health,Other Agencies - Third Party P,0090368440,TBG MOSAIC,"85,749.60",23/06/2021
Delivery Units,Adults and Health,Other Agencies - Third Party P,0090368441,TBG MOSAIC,"178,200.00",23/06/2021
Delivery Units,Adults and Health,Other Agencies - Third Party P,0090368518,NIGHTINGALE HOUSE,"2,972.91",23/06/2021
Delivery Units,Adults and Health,Other Agencies - Third Party P,0090368520,HIGH VIEW CARE SERVICES LTD,"13,756.67",23/06/2021
Delivery Units,Adults and Health,Other Agencies - Third Party P,0090368638,WARREN HEATH RESIDENTIAL HOME LTD,"3,500.00",24/06/2021
Delivery Units,Adults and Health,Other Agencies - Third Party P,0090368639,WARREN HEATH RESIDENTIAL HOME LTD,"3,500.00",24/06/2021
Delivery Units,Adults and Health,Other Agencies - Third Party P,0090368644,WESTMINSTER HEALTH CARE LTD,"5,535.71",24/06/2021
Delivery Units,Adults and Health,Other Agencies - Third Party P,0090368649,WESTMINSTER HEALTH CARE LTD,"5,357.14",24/06/2021
Delivery Units,Adults and Health,Other Agencies - Third Party P,0090368751,AARANDALE LODGE,"4,200.00",24/06/2021
Delivery Units,Adults and Health,Other Agencies - Third Party P,0090369664,ROSEACRES CARE HOME LIMITED,"2,639.86",25/06/2021
Delivery Units,Adults and Health,Other Agencies - Third Party P,0090369668,ROSEACRES CARE HOME LIMITED,"3,000.00",25/06/2021
Delivery Units,Adults and Health,Other Agencies - Third Party P,0090369681,ROSEACRES CARE HOME LIMITED,"2,699.32",25/06/2021
Delivery Units,Adults and Health,Other Agencies - Third Party P,0090369688,CATHERINE LODGE,"3,400.00",25/06/2021
Delivery Units,Adults and Health,Other Agencies - Third Party P,0090369698,CATHERINE LODGE,"3,400.00",25/06/2021
Delivery Units,Adults and Health,Other Agencies - Third Party P,0090369708,ROSEACRES CARE HOME LIMITED,"2,639.86",25/06/2021
Delivery Units,Adults and Health,Other Agencies - Third Party P,0090369731,CATHERINE LODGE,"2,516.00",25/06/2021
Delivery Units,Adults and Health,Other Agencies - Third Party P,0090369741,ROSEACRES CARE HOME LIMITED,"2,516.00",25/06/2021
Delivery Units,Adults and Health,Other Agencies - Third Party P,0090369759,ROSEACRES CARE HOME LIMITED,"2,542.86",25/06/2021
Delivery Units,Adults and Health,Other Agencies - Third Party P,0090369764,ROSEACRES CARE HOME LIMITED,"3,000.00",25/06/2021
Delivery Units,Adults and Health,Other Agencies - Third Party P,0090369779,CATHERINE LODGE,"2,639.86",25/06/2021
Delivery Units,Adults and Health,Other Agencies - Third Party P,0090369780,CATHERINE LODGE,"3,000.00",25/06/2021
Delivery Units,Adults and Health,Other Agencies - Third Party P,0090369783,ROSEACRES CARE HOME LIMITED,"2,516.00",25/06/2021
Delivery Units,Adults and Health,Other Agencies - Third Party P,0090369786,CARLTON COURT (TLC GROUP),"3,126.23",25/06/2021
Delivery Units,Adults and Health,Other Agencies - Third Party P,0090369793,ROSEACRES CARE HOME LIMITED,"3,000.00",25/06/2021
Delivery Units,Adults and Health,Other Agencies - Third Party P,0090369888,CATHERINE LODGE,"3,580.00",25/06/2021
Delivery Units,Adults and Health,Other Agencies - Third Party P,0090369890,CARLTON COURT (TLC GROUP),"5,800.00",25/06/2021
Delivery Units,Adults and Health,Other Agencies - Third Party P,0090369899,CARLTON COURT (TLC GROUP),"5,400.00",25/06/2021
Delivery Units,Adults and Health,Other Agencies - Third Party P,0090369902,ROSEACRES CARE HOME LIMITED,"3,400.00",25/06/2021
Delivery Units,Adults and Health,Other Agencies - Third Party P,0090369920,ROSEACRES CARE HOME LIMITED,"3,200.00",25/06/2021
Delivery Units,Adults and Health,Other Agencies - Third Party P,0090369921,CATHERINE LODGE,"3,560.00",25/06/2021
Delivery Units,Adults and Health,Other Agencies - Third Party P,0090369926,ROSEACRES CARE HOME LIMITED,"3,400.00",25/06/2021
Delivery Units,Adults and Health,Other Agencies - Third Party P,0090370061,CARLTON COURT (TLC GROUP),-171.43,25/06/2021
Delivery Units,Adults and Health,Other Agencies - Third Party P,0090370075,CATHERINE LODGE,"21,803.14",25/06/2021
Delivery Units,Adults and Health,Other Agencies - Third Party P,0090369659,THE GRANGE,"2,600.00",25/06/2021
Delivery Units,Adults and Health,Other Agencies - Third Party P,0090369808,THE GRANGE,"3,000.00",25/06/2021
Delivery Units,Adults and Health,Other Agencies - Third Party P,0090369822,THE GRANGE,"2,639.86",25/06/2021
Delivery Units,Adults and Health,Other Agencies - Third Party P,0090369883,THE GRANGE,"3,000.00",25/06/2021
Delivery Units,Adults and Health,Other Agencies - Third Party P,0090369891,THE GRANGE,"3,000.00",25/06/2021
Delivery Units,Adults and Health,Other Agencies - Third Party P,0090370018,THE GRANGE,"3,535.71",25/06/2021
Delivery Units,Adults and Health,Other Agencies - Third Party P,0090370038,WOODFIELD HOUSE,"15,080.00",25/06/2021
Delivery Units,Adults and Health,Other Agencies - Third Party P,0090369646,THE LIMES RESIDENTIAL HOME,19.00,25/06/2021
Delivery Units,Adults and Health,Other Agencies - Third Party P,0090369647,BUPA CARE HOMES,"2,409.12",25/06/2021
Delivery Units,Adults and Health,Other Agencies - Third Party P,0090369653,ELEANOR PALMER TRUST NO 2 A/C.,"3,160.44",25/06/2021
Delivery Units,Adults and Health,Other Agencies - Third Party P,0090369654,NAZARETH HOUSE,"2,582.97",25/06/2021
Delivery Units,Adults and Health,Other Agencies - Third Party P,0090369657,JEWISH CARE,"4,265.48",25/06/2021
Delivery Units,Adults and Health,Other Agencies - Third Party P,0090369661,JEWISH CARE,"2,499.00",25/06/2021
Delivery Units,Adults and Health,Other Agencies - Third Party P,0090369663,JEWISH CARE,"2,529.94",25/06/2021
Delivery Units,Adults and Health,Other Agencies - Third Party P,0090369665,ELMHURST RESIDENTIAL HOME,"2,516.00",25/06/2021
Delivery Units,Adults and Health,Other Agencies - Third Party P,0090369678,ELMHURST RESIDENTIAL HOME,"2,516.00",25/06/2021
Delivery Units,Adults and Health,Other Agencies - Third Party P,0090369682,APPLE TREE COURT CARE HOME,"3,400.00",25/06/2021
Delivery Units,Adults and Health,Other Agencies - Third Party P,0090369687,JEWISH CARE,"4,825.16",25/06/2021
Delivery Units,Adults and Health,Other Agencies - Third Party P,0090369690,ASHTON LODGE CARE CENTRE,"4,016.52",25/06/2021
Delivery Units,Adults and Health,Other Agencies - Third Party P,0090369691,NAZARETH HOUSE,"2,380.00",25/06/2021
Delivery Units,Adults and Health,Other Agencies - Third Party P,0090369692,NAZARETH HOUSE,"2,516.00",25/06/2021
Delivery Units,Adults and Health,Other Agencies - Third Party P,0090369693,ELEANOR PALMER TRUST NO 2 A/C.,"3,060.00",25/06/2021
Delivery Units,Adults and Health,Other Agencies - Third Party P,0090369695,JEWISH CARE,"2,641.80",25/06/2021
Delivery Units,Adults and Health,Other Agencies - Third Party P,0090369697,JEWISH CARE,"2,641.80",25/06/2021
Delivery Units,Adults and Health,Other Agencies - Third Party P,0090369699,NAZARETH HOUSE,"2,582.97",25/06/2021
Delivery Units,Adults and Health,Other Agencies - Third Party P,0090369725,ELEANOR PALMER TRUST NO 2 A/C.,"3,160.44",25/06/2021
Delivery Units,Adults and Health,Other Agencies - Third Party P,0090369734,ELMHURST RESIDENTIAL HOME,"2,600.00",25/06/2021
Delivery Units,Adults and Health,Other Agencies - Third Party P,0090369736,ELMHURST RESIDENTIAL HOME,"2,600.00",25/06/2021
Delivery Units,Adults and Health,Other Agencies - Third Party P,0090369737,ELEANOR PALMER TRUST NO 2 A/C.,"2,458.20",25/06/2021
Delivery Units,Adults and Health,Other Agencies - Third Party P,0090369738,ELEANOR PALMER TRUST NO 2 A/C.,"3,090.60",25/06/2021
Delivery Units,Adults and Health,Other Agencies - Third Party P,0090369743,ELMHURST RESIDENTIAL HOME,"2,516.00",25/06/2021
Delivery Units,Adults and Health,Other Agencies - Third Party P,0090369746,JEWISH CARE,"2,499.00",25/06/2021
Delivery Units,Adults and Health,Other Agencies - Third Party P,0090369750,JEWISH CARE,"2,499.00",25/06/2021
Delivery Units,Adults and Health,Other Agencies - Third Party P,0090369751,NAZARETH HOUSE,"2,380.00",25/06/2021
Delivery Units,Adults and Health,Other Agencies - Third Party P,0090369755,JEWISH CARE,"2,499.00",25/06/2021
Delivery Units,Adults and Health,Other Agencies - Third Party P,0090369756,JEWISH CARE,"2,641.80",25/06/2021
Delivery Units,Adults and Health,Other Agencies - Third Party P,0090369763,NAZARETH HOUSE,"2,444.11",25/06/2021
Delivery Units,Adults and Health,Other Agencies - Third Party P,0090369765,THE LIMES RESIDENTIAL HOME,"2,542.86",25/06/2021
Delivery Units,Adults and Health,Other Agencies - Third Party P,0090369766,NAZARETH HOUSE,"2,582.97",25/06/2021
Delivery Units,Adults and Health,Other Agencies - Third Party P,0090369771,SAGE NURSING HOME,"2,400.00",25/06/2021
Delivery Units,Adults and Health,Other Agencies - Third Party P,0090369781,THE LIMES RESIDENTIAL HOME,"2,516.00",25/06/2021
Delivery Units,Adults and Health,Other Agencies - Third Party P,0090369785,NAZARETH HOUSE,"2,380.00",25/06/2021
Delivery Units,Adults and Health,Other Agencies - Third Party P,0090369788,NAZARETH HOUSE,"2,380.00",25/06/2021
Delivery Units,Adults and Health,Other Agencies - Third Party P,0090369790,THE LIMES RESIDENTIAL HOME,"2,516.00",25/06/2021
Delivery Units,Adults and Health,Other Agencies - Third Party P,0090369791,JEWISH CARE,"2,510.68",25/06/2021
Delivery Units,Adults and Health,Other Agencies - Third Party P,0090369792,ELMHURST RESIDENTIAL HOME,"3,400.00",25/06/2021
Delivery Units,Adults and Health,Other Agencies - Third Party P,0090369794,NAZARETH HOUSE,"2,516.00",25/06/2021
Delivery Units,Adults and Health,Other Agencies - Third Party P,0090369797,ELMHURST RESIDENTIAL HOME,"3,400.00",25/06/2021
Delivery Units,Adults and Health,Other Agencies - Third Party P,0090369799,SAGE NURSING HOME,"2,800.00",25/06/2021
Delivery Units,Adults and Health,Other Agencies - Third Party P,0090369802,ELEANOR PALMER TRUST NO 2 A/C.,"3,060.00",25/06/2021
Delivery Units,Adults and Health,Other Agencies - Third Party P,0090369803,ELEANOR PALMER TRUST NO 2 A/C.,"3,060.00",25/06/2021
Delivery Units,Adults and Health,Other Agencies - Third Party P,0090369809,ELEANOR PALMER TRUST NO 2 A/C.,"3,060.00",25/06/2021
Delivery Units,Adults and Health,Other Agencies - Third Party P,0090369833,NAZARETH HOUSE,"2,639.86",25/06/2021
Delivery Units,Adults and Health,Other Agencies - Third Party P,0090369836,NAZARETH HOUSE,"2,380.00",25/06/2021
Delivery Units,Adults and Health,Other Agencies - Third Party P,0090369837,THE LIMES RESIDENTIAL HOME,"2,516.00",25/06/2021
Delivery Units,Adults and Health,Other Agencies - Third Party P,0090369839,ELM PARK LODGE,"2,987.28",25/06/2021
Delivery Units,Adults and Health,Other Agencies - Third Party P,0090369841,JEWISH CARE,"2,529.94",25/06/2021
Delivery Units,Adults and Health,Other Agencies - Third Party P,0090369844,ELEANOR PALMER TRUST NO 2 A/C.,"-4,074.54",25/06/2021
Delivery Units,Adults and Health,Other Agencies - Third Party P,0090369845,ELEANOR PALMER TRUST NO 2 A/C.,"2,516.00",25/06/2021
Delivery Units,Adults and Health,Other Agencies - Third Party P,0090369849,ELMHURST RESIDENTIAL HOME,"3,400.00",25/06/2021
Delivery Units,Adults and Health,Other Agencies - Third Party P,0090369853,NAZARETH HOUSE,"2,380.00",25/06/2021
Delivery Units,Adults and Health,Other Agencies - Third Party P,0090369861,THE LIMES RESIDENTIAL HOME,"3,040.00",25/06/2021
Delivery Units,Adults and Health,Other Agencies - Third Party P,0090369862,JEWISH CARE,"2,499.00",25/06/2021
Delivery Units,Adults and Health,Other Agencies - Third Party P,0090369863,ELEANOR PALMER TRUST NO 2 A/C.,983.57,25/06/2021
Delivery Units,Adults and Health,Other Agencies - Third Party P,0090369887,JEWISH CARE,"2,641.80",25/06/2021
Delivery Units,Adults and Health,Other Agencies - Third Party P,0090369892,JEWISH CARE,"2,641.80",25/06/2021
Delivery Units,Adults and Health,Other Agencies - Third Party P,0090369893,CLOVELLY HOUSE RESID. HOME LTD,"3,000.00",25/06/2021
Delivery Units,Adults and Health,Other Agencies - Third Party P,0090369894,NAZARETH HOUSE,"3,780.00",25/06/2021
Delivery Units,Adults and Health,Other Agencies - Third Party P,0090369898,JEWISH CARE,"5,070.40",25/06/2021
Delivery Units,Adults and Health,Other Agencies - Third Party P,0090369903,JEWISH CARE,"2,641.80",25/06/2021
Delivery Units,Adults and Health,Other Agencies - Third Party P,0090369904,JEWISH CARE,"2,499.00",25/06/2021
Delivery Units,Adults and Health,Other Agencies - Third Party P,0090369905,NAZARETH HOUSE,"2,632.23",25/06/2021
Delivery Units,Adults and Health,Other Agencies - Third Party P,0090369908,ELMHURST RESIDENTIAL HOME,"4,800.00",25/06/2021
Delivery Units,Adults and Health,Other Agencies - Third Party P,0090369910,NAZARETH HOUSE,"2,516.00",25/06/2021
Delivery Units,Adults and Health,Other Agencies - Third Party P,0090369912,JEWISH CARE,"2,641.80",25/06/2021
Delivery Units,Adults and Health,Other Agencies - Third Party P,0090369913,ELEANOR PALMER TRUST NO 2 A/C.,"3,000.00",25/06/2021
Delivery Units,Adults and Health,Other Agencies - Third Party P,0090369914,NAZARETH HOUSE,"2,380.00",25/06/2021
Delivery Units,Adults and Health,Other Agencies - Third Party P,0090369915,CLOVELLY HOUSE RESID. HOME LTD,"3,000.00",25/06/2021
Delivery Units,Adults and Health,Other Agencies - Third Party P,0090369916,ELMHURST RESIDENTIAL HOME,"3,800.00",25/06/2021
Delivery Units,Adults and Health,Other Agencies - Third Party P,0090369917,JEWISH CARE,"2,641.80",25/06/2021
Delivery Units,Adults and Health,Other Agencies - Third Party P,0090369918,JEWISH CARE,"2,641.80",25/06/2021
Delivery Units,Adults and Health,Other Agencies - Third Party P,0090369919,NAZARETH HOUSE,"2,380.00",25/06/2021
Delivery Units,Adults and Health,Other Agencies - Third Party P,0090369922,JEWISH CARE,"-1,532.85",25/06/2021
Delivery Units,Adults and Health,Other Agencies - Third Party P,0090369923,JEWISH CARE,"2,499.00",25/06/2021
Delivery Units,Adults and Health,Other Agencies - Third Party P,0090369924,THE LIMES RESIDENTIAL HOME,"7,850.00",25/06/2021
Delivery Units,Adults and Health,Other Agencies - Third Party P,0090369929,ELEANOR PALMER TRUST NO 2 A/C.,"3,060.00",25/06/2021
Delivery Units,Adults and Health,Other Agencies - Third Party P,0090369934,THE LIMES RESIDENTIAL HOME,"3,000.00",25/06/2021
Delivery Units,Adults and Health,Other Agencies - Third Party P,0090369935,NAZARETH HOUSE,"2,516.00",25/06/2021
Delivery Units,Adults and Health,Other Agencies - Third Party P,0090369938,NAZARETH HOUSE,"2,516.00",25/06/2021
Delivery Units,Adults and Health,Other Agencies - Third Party P,0090369939,NAZARETH HOUSE,"2,380.00",25/06/2021
Delivery Units,Adults and Health,Other Agencies - Third Party P,0090369947,JEWISH CARE,"2,399.56",25/06/2021
Delivery Units,Adults and Health,Other Agencies - Third Party P,0090369952,NAZARETH HOUSE,"3,800.00",25/06/2021
Delivery Units,Adults and Health,Other Agencies - Third Party P,0090369953,JEWISH CARE,"2,641.80",25/06/2021
Delivery Units,Adults and Health,Other Agencies - Third Party P,0090369954,NAZARETH HOUSE,"2,380.00",25/06/2021
Delivery Units,Adults and Health,Other Agencies - Third Party P,0090369957,JEWISH CARE,"2,824.39",25/06/2021
Delivery Units,Adults and Health,Other Agencies - Third Party P,0090369959,JEWISH CARE,"2,499.00",25/06/2021
Delivery Units,Adults and Health,Other Agencies - Third Party P,0090369963,NAZARETH HOUSE,"2,380.00",25/06/2021
Delivery Units,Adults and Health,Other Agencies - Third Party P,0090369964,NAZARETH HOUSE,"2,285.28",25/06/2021
Delivery Units,Adults and Health,Other Agencies - Third Party P,0090369966,CLOVELLY HOUSE RESID. HOME LTD,"3,000.00",25/06/2021
Delivery Units,Adults and Health,Other Agencies - Third Party P,0090369967,NAZARETH HOUSE,"2,380.00",25/06/2021
Delivery Units,Adults and Health,Other Agencies - Third Party P,0090369968,THE LIMES RESIDENTIAL HOME,"3,000.00",25/06/2021
Delivery Units,Adults and Health,Other Agencies - Third Party P,0090369969,JEWISH CARE,"2,641.80",25/06/2021
Delivery Units,Adults and Health,Other Agencies - Third Party P,0090369970,NAZARETH HOUSE,"2,516.00",25/06/2021
Delivery Units,Adults and Health,Other Agencies - Third Party P,0090369972,JEWISH CARE,"2,641.80",25/06/2021
Delivery Units,Adults and Health,Other Agencies - Third Party P,0090369975,CLOVELLY HOUSE RESID. HOME LTD,750.00,25/06/2021
Delivery Units,Adults and Health,Other Agencies - Third Party P,0090369977,NAZARETH HOUSE,"2,380.00",25/06/2021
Delivery Units,Adults and Health,Other Agencies - Third Party P,0090369982,CLOVELLY HOUSE RESID. HOME LTD,"3,000.00",25/06/2021
Delivery Units,Adults and Health,Other Agencies - Third Party P,0090369984,NAZARETH HOUSE,"2,380.00",25/06/2021
Delivery Units,Adults and Health,Other Agencies - Third Party P,0090369985,NAZARETH HOUSE,"2,380.00",25/06/2021
Delivery Units,Adults and Health,Other Agencies - Third Party P,0090369988,JEWISH CARE,"2,499.00",25/06/2021
Delivery Units,Adults and Health,Other Agencies - Third Party P,0090369989,JEWISH CARE,"2,641.80",25/06/2021
Delivery Units,Adults and Health,Other Agencies - Third Party P,0090369990,ELM PARK LODGE,"3,557.56",25/06/2021
Delivery Units,Adults and Health,Other Agencies - Third Party P,0090369991,NAZARETH HOUSE,"2,380.00",25/06/2021
Delivery Units,Adults and Health,Other Agencies - Third Party P,0090369995,THE LIMES RESIDENTIAL HOME,"3,200.00",25/06/2021
Delivery Units,Adults and Health,Other Agencies - Third Party P,0090369996,JEWISH CARE,"2,581.00",25/06/2021
Delivery Units,Adults and Health,Other Agencies - Third Party P,0090369997,APPLE TREE COURT CARE HOME,"4,400.00",25/06/2021
Delivery Units,Adults and Health,Other Agencies - Third Party P,0090369999,JEWISH CARE,"2,641.80",25/06/2021
Delivery Units,Adults and Health,Other Agencies - Third Party P,0090370004,JEWISH CARE,"2,400.00",25/06/2021
Delivery Units,Adults and Health,Other Agencies - Third Party P,0090370006,NAZARETH HOUSE,"2,516.00",25/06/2021
Delivery Units,Adults and Health,Other Agencies - Third Party P,0090370008,JEWISH CARE,"2,641.80",25/06/2021
Delivery Units,Adults and Health,Other Agencies - Third Party P,0090370009,ELEANOR PALMER TRUST NO 2 A/C.,"3,000.00",25/06/2021
Delivery Units,Adults and Health,Other Agencies - Third Party P,0090370011,JEWISH CARE,"2,736.15",25/06/2021
Delivery Units,Adults and Health,Other Agencies - Third Party P,0090370012,NAZARETH HOUSE,"2,125.00",25/06/2021
Delivery Units,Adults and Health,Other Agencies - Third Party P,0090370013,ELEANOR PALMER TRUST NO 2 A/C.,"3,000.00",25/06/2021
Delivery Units,Adults and Health,Other Agencies - Third Party P,0090370014,NAZARETH HOUSE,"2,516.00",25/06/2021
Delivery Units,Adults and Health,Other Agencies - Third Party P,0090370019,JEWISH CARE,"9,798.46",25/06/2021
Delivery Units,Adults and Health,Other Agencies - Third Party P,0090370021,JEWISH CARE,"3,800.00",25/06/2021
Delivery Units,Adults and Health,Other Agencies - Third Party P,0090370031,JEWISH CARE,"2,641.80",25/06/2021
Delivery Units,Adults and Health,Other Agencies - Third Party P,0090370032,JEWISH CARE,"2,641.80",25/06/2021
Delivery Units,Adults and Health,Other Agencies - Third Party P,0090370033,JEWISH CARE,"2,641.80",25/06/2021
Delivery Units,Adults and Health,Other Agencies - Third Party P,0090370034,NAZARETH HOUSE,"2,285.28",25/06/2021
Delivery Units,Adults and Health,Other Agencies - Third Party P,0090370040,JEWISH CARE,"2,641.80",25/06/2021
Delivery Units,Adults and Health,Other Agencies - Third Party P,0090370043,JEWISH CARE,"2,581.00",25/06/2021
Delivery Units,Adults and Health,Other Agencies - Third Party P,0090370045,JEWISH CARE,"2,641.80",25/06/2021
Delivery Units,Adults and Health,Other Agencies - Third Party P,0090370047,THE LIMES RESIDENTIAL HOME,"3,000.00",25/06/2021
Delivery Units,Adults and Health,Other Agencies - Third Party P,0090370050,JEWISH CARE,"2,499.00",25/06/2021
Delivery Units,Adults and Health,Other Agencies - Third Party P,0090370056,NAZARETH HOUSE,"2,458.20",25/06/2021
Delivery Units,Adults and Health,Other Agencies - Third Party P,0090370059,JEWISH CARE,"2,499.00",25/06/2021
Delivery Units,Adults and Health,Other Agencies - Third Party P,0090370060,ELEANOR PALMER TRUST NO 2 A/C.,"3,000.00",25/06/2021
Delivery Units,Adults and Health,Other Agencies - Third Party P,0090370062,ELEANOR PALMER TRUST NO 2 A/C.,"3,000.00",25/06/2021
Delivery Units,Adults and Health,Other Agencies - Third Party P,0090370063,ELEANOR PALMER TRUST NO 2 A/C.,"3,000.00",25/06/2021
Delivery Units,Adults and Health,Other Agencies - Third Party P,0090370067,NAZARETH HOUSE,"2,380.00",25/06/2021
Delivery Units,Adults and Health,Other Agencies - Third Party P,0090370070,JEWISH CARE,"6,872.25",25/06/2021
Delivery Units,Adults and Health,Other Agencies - Third Party P,0090370076,ELEANOR PALMER TRUST NO 2 A/C.,428.57,25/06/2021
Delivery Units,Adults and Health,Other Agencies - Third Party P,0090370077,ELEANOR PALMER TRUST NO 2 A/C.,441.51,25/06/2021
Delivery Units,Adults and Health,Other Agencies - Third Party P,0090370195,SYDMAR LODGE,"2,580.75",30/06/2021
Delivery Units,Adults and Health,Other Agencies - Third Party P,0090370196,SYDMAR LODGE,"5,535.71",30/06/2021
Delivery Units,Adults and Health,Other Agencies - Third Party P,0090370420,SYDMAR LODGE,"13,584.29",30/06/2021
Delivery Units,Adults and Health,Other Agencies - Third Party P,0090370421,SYDMAR LODGE,"1,835.72",30/06/2021
Delivery Units,Adults and Health,Other Agencies - Third Party P,0090370182,BARCHESTER HEALTHCARE LTD,"4,400.00",30/06/2021
Delivery Units,Adults and Health,Other Agencies - Third Party P,0090370183,BARCHESTER HEALTHCARE LTD,"4,714.29",30/06/2021
Delivery Units,Adults and Health,Other Agencies - Third Party P,0090370184,VENTRY RESIDENTIAL CARE - ERNEST DENE,"3,000.00",30/06/2021
Delivery Units,Adults and Health,Other Agencies - Third Party P,0090370185,THE WOODSIDE HOME,"2,516.00",30/06/2021
Delivery Units,Adults and Health,Other Agencies - Third Party P,0090370186,THE WOODSIDE HOME,"2,545.99",30/06/2021
Delivery Units,Adults and Health,Other Agencies - Third Party P,0090370187,THE WOODSIDE HOME,"2,370.33",30/06/2021
Delivery Units,Adults and Health,Other Agencies - Third Party P,0090370188,ALEXANDRA HOUSE (RUNWOOD HOMES),"2,680.71",30/06/2021
Delivery Units,Adults and Health,Other Agencies - Third Party P,0090370189,ALEXANDRA HOUSE (RUNWOOD HOMES),"2,770.07",30/06/2021
Delivery Units,Adults and Health,Other Agencies - Third Party P,0090370190,ALEXANDRA HOUSE (RUNWOOD HOMES),"2,680.71",30/06/2021
Delivery Units,Adults and Health,Other Agencies - Third Party P,0090370193,QUANTUM CARE LIMITED,"3,542.86",30/06/2021
Delivery Units,Adults and Health,Other Agencies - Third Party P,0090370419,QUANTUM CARE LIMITED,"3,428.57",30/06/2021
Delivery Units,Adults and Health,Other Agencies - Third Party P,0090370440,ABBEY RAVENSCROFT PARK NURSING HOME,"2,850.00",30/06/2021
Delivery Units,Adults and Health,Other Agencies - Third Party P,0090370449,VENTRY RESIDENTIAL CARE LTD,"3,100.00",30/06/2021
Delivery Units,Adults and Health,Other Agencies - Third Party P,0090370450,VENTRY RESIDENTIAL CARE - ERNEST DENE,"3,321.43",30/06/2021
Delivery Units,Adults and Health,Other Agencies - Third Party P,0090370451,VENTRY RESIDENTIAL CARE - ERNEST DENE,"3,321.43",30/06/2021
Delivery Units,Adults and Health,Other Agencies - Third Party P,0090370452,VENTRY RESIDENTIAL CARE - ERNEST DENE,"3,321.43",30/06/2021
Delivery Units,Adults and Health,Other Agencies - Third Party P,0090370455,ASHFIELDS RESIDENTIAL CARE HOME,"3,321.43",30/06/2021
Delivery Units,Adults and Health,Other Agencies - Third Party P,0090370456,ASHFIELDS RESIDENTIAL CARE HOME,"2,878.57",30/06/2021
Delivery Units,Adults and Health,Other Agencies - Third Party P,0090370457,VENTRY RESIDENTIAL CARE LTD,"3,321.43",30/06/2021
Delivery Units,Adults and Health,Other Agencies - Third Party P,0090370459,ASHFIELDS RESIDENTIAL CARE HOME,"3,321.43",30/06/2021
Delivery Units,Adults and Health,Other Agencies - Third Party P,0090360953,ARTHUR MORRISON LTD,220.50,01/06/2021
Delivery Units,Adults and Health,Other Agencies - Third Party P,0090361051,MI HOMECARE LIMITED,54.57,01/06/2021
Delivery Units,Adults and Health,Other Agencies - Third Party P,0090361052,MI HOMECARE LIMITED,177.35,01/06/2021
Delivery Units,Adults and Health,Other Agencies - Third Party P,0090361053,MI HOMECARE LIMITED,263.76,01/06/2021
Delivery Units,Adults and Health,Other Agencies - Third Party P,0090361054,MI HOMECARE LIMITED,54.57,01/06/2021
Delivery Units,Adults and Health,Other Agencies - Third Party P,0090361055,MI HOMECARE LIMITED,241.02,01/06/2021
Delivery Units,Adults and Health,Other Agencies - Third Party P,0090361056,MI HOMECARE LIMITED,127.33,01/06/2021
Delivery Units,Adults and Health,Other Agencies - Third Party P,0090361057,MI HOMECARE LIMITED,"1,732.60",01/06/2021
Delivery Units,Adults and Health,Other Agencies - Third Party P,0090361058,MI HOMECARE LIMITED,222.83,01/06/2021
Delivery Units,Adults and Health,Other Agencies - Third Party P,0090361059,MI HOMECARE LIMITED,272.85,01/06/2021
Delivery Units,Adults and Health,Other Agencies - Third Party P,0090361060,MI HOMECARE LIMITED,68.21,01/06/2021
Delivery Units,Adults and Health,Other Agencies - Third Party P,0090361062,MI HOMECARE LIMITED,191.00,01/06/2021
Delivery Units,Adults and Health,Other Agencies - Third Party P,0090361065,MI HOMECARE LIMITED,172.80,01/06/2021
Delivery Units,Adults and Health,Other Agencies - Third Party P,0090361067,MI HOMECARE LIMITED,281.94,01/06/2021
Delivery Units,Adults and Health,Other Agencies - Third Party P,0090361068,MI HOMECARE LIMITED,27.29,01/06/2021
Delivery Units,Adults and Health,Other Agencies - Third Party P,0090361069,MI HOMECARE LIMITED,236.47,01/06/2021
Delivery Units,Adults and Health,Other Agencies - Third Party P,0090361070,MI HOMECARE LIMITED,81.86,01/06/2021
Delivery Units,Adults and Health,Other Agencies - Third Party P,0090361073,MI HOMECARE LIMITED,318.33,01/06/2021
Delivery Units,Adults and Health,Other Agencies - Third Party P,0090361075,MI HOMECARE LIMITED,108.59,01/06/2021
Delivery Units,Adults and Health,Other Agencies - Third Party P,0090361076,MI HOMECARE LIMITED,122.78,01/06/2021
Delivery Units,Adults and Health,Other Agencies - Third Party P,0090361077,MI HOMECARE LIMITED,159.16,01/06/2021
Delivery Units,Adults and Health,Other Agencies - Third Party P,0090361078,MI HOMECARE LIMITED,982.26,01/06/2021
Delivery Units,Adults and Health,Other Agencies - Third Party P,0090361079,MI HOMECARE LIMITED,36.38,01/06/2021
Delivery Units,Adults and Health,Other Agencies - Third Party P,0090361080,MI HOMECARE LIMITED,318.33,01/06/2021
Delivery Units,Adults and Health,Other Agencies - Third Party P,0090361082,MI HOMECARE LIMITED,277.40,01/06/2021
Delivery Units,Adults and Health,Other Agencies - Third Party P,0090361083,MI HOMECARE LIMITED,127.33,01/06/2021
Delivery Units,Adults and Health,Other Agencies - Third Party P,0090361084,MI HOMECARE LIMITED,122.78,01/06/2021
Delivery Units,Adults and Health,Other Agencies - Third Party P,0090361086,MI HOMECARE LIMITED,159.16,01/06/2021
Delivery Units,Adults and Health,Other Agencies - Third Party P,0090361087,MI HOMECARE LIMITED,127.33,01/06/2021
Delivery Units,Adults and Health,Other Agencies - Third Party P,0090361090,MI HOMECARE LIMITED,191.00,01/06/2021
Delivery Units,Adults and Health,Other Agencies - Third Party P,0090361091,MI HOMECARE LIMITED,159.16,01/06/2021
Delivery Units,Adults and Health,Other Agencies - Third Party P,0090361092,MI HOMECARE LIMITED,127.33,01/06/2021
Delivery Units,Adults and Health,Other Agencies - Third Party P,0090361094,MI HOMECARE LIMITED,231.92,01/06/2021
Delivery Units,Adults and Health,Other Agencies - Third Party P,0090361095,MI HOMECARE LIMITED,277.40,01/06/2021
Delivery Units,Adults and Health,Other Agencies - Third Party P,0090361096,MI HOMECARE LIMITED,81.86,01/06/2021
Delivery Units,Adults and Health,Other Agencies - Third Party P,0090361097,MI HOMECARE LIMITED,568.44,01/06/2021
Delivery Units,Adults and Health,Other Agencies - Third Party P,0090361098,MI HOMECARE LIMITED,263.76,01/06/2021
Delivery Units,Adults and Health,Other Agencies - Third Party P,0090361099,MI HOMECARE LIMITED,222.83,01/06/2021
Delivery Units,Adults and Health,Other Agencies - Third Party P,0090361100,MI HOMECARE LIMITED,95.50,01/06/2021
Delivery Units,Adults and Health,Other Agencies - Third Party P,0090361101,MI HOMECARE LIMITED,381.99,01/06/2021
Delivery Units,Adults and Health,Other Agencies - Third Party P,0090361102,MI HOMECARE LIMITED,241.02,01/06/2021
Delivery Units,Adults and Health,Other Agencies - Third Party P,0090361103,MI HOMECARE LIMITED,81.86,01/06/2021
Delivery Units,Adults and Health,Other Agencies - Third Party P,0090361104,MI HOMECARE LIMITED,127.33,01/06/2021
Delivery Units,Adults and Health,Other Agencies - Third Party P,0090361105,MI HOMECARE LIMITED,659.39,01/06/2021
Delivery Units,Adults and Health,Other Agencies - Third Party P,0090361106,MI HOMECARE LIMITED,736.70,01/06/2021
Delivery Units,Adults and Health,Other Agencies - Third Party P,0090361107,MI HOMECARE LIMITED,286.49,01/06/2021
Delivery Units,Adults and Health,Other Agencies - Third Party P,0090361108,MI HOMECARE LIMITED,63.67,01/06/2021
Delivery Units,Adults and Health,Other Agencies - Third Party P,0090361110,MI HOMECARE LIMITED,327.42,01/06/2021
Delivery Units,Adults and Health,Other Agencies - Third Party P,0090361111,MI HOMECARE LIMITED,81.86,01/06/2021
Delivery Units,Adults and Health,Other Agencies - Third Party P,0090361112,MI HOMECARE LIMITED,250.11,01/06/2021
Delivery Units,Adults and Health,Other Agencies - Third Party P,0090361113,MI HOMECARE LIMITED,95.50,01/06/2021
Delivery Units,Adults and Health,Other Agencies - Third Party P,0090361114,MI HOMECARE LIMITED,254.66,01/06/2021
Delivery Units,Adults and Health,Other Agencies - Third Party P,0090361115,MI HOMECARE LIMITED,63.67,01/06/2021
Delivery Units,Adults and Health,Other Agencies - Third Party P,0090361116,MI HOMECARE LIMITED,254.66,01/06/2021
Delivery Units,Adults and Health,Other Agencies - Third Party P,0090361117,MI HOMECARE LIMITED,286.49,01/06/2021
Delivery Units,Adults and Health,Other Agencies - Third Party P,0090361118,MI HOMECARE LIMITED,181.90,01/06/2021
Delivery Units,Adults and Health,Other Agencies - Third Party P,0090361119,MI HOMECARE LIMITED,27.29,01/06/2021
Delivery Units,Adults and Health,Other Agencies - Third Party P,0090361122,MI HOMECARE LIMITED,359.25,01/06/2021
Delivery Units,Adults and Health,Other Agencies - Third Party P,0090361123,MI HOMECARE LIMITED,322.87,01/06/2021
Delivery Units,Adults and Health,Other Agencies - Third Party P,0090361124,MI HOMECARE LIMITED,90.95,01/06/2021
Delivery Units,Adults and Health,Other Agencies - Third Party P,0090361125,MI HOMECARE LIMITED,159.16,01/06/2021
Delivery Units,Adults and Health,Other Agencies - Third Party P,0090361126,MI HOMECARE LIMITED,63.67,01/06/2021
Delivery Units,Adults and Health,Other Agencies - Third Party P,0090361128,MI HOMECARE LIMITED,286.49,01/06/2021
Delivery Units,Adults and Health,Other Agencies - Third Party P,0090361129,MI HOMECARE LIMITED,322.87,01/06/2021
Delivery Units,Adults and Health,Other Agencies - Third Party P,0090361130,MI HOMECARE LIMITED,109.14,01/06/2021
Delivery Units,Adults and Health,Other Agencies - Third Party P,0090361133,MI HOMECARE LIMITED,336.52,01/06/2021
Delivery Units,Adults and Health,Other Agencies - Third Party P,0090361134,MI HOMECARE LIMITED,218.28,01/06/2021
Delivery Units,Adults and Health,Other Agencies - Third Party P,0090361136,MI HOMECARE LIMITED,222.83,01/06/2021
Delivery Units,Adults and Health,Other Agencies - Third Party P,0090361137,MI HOMECARE LIMITED,272.85,01/06/2021
Delivery Units,Adults and Health,Other Agencies - Third Party P,0090361139,MI HOMECARE LIMITED,318.33,01/06/2021
Delivery Units,Adults and Health,Other Agencies - Third Party P,0090361140,MI HOMECARE LIMITED,90.95,01/06/2021
Delivery Units,Adults and Health,Other Agencies - Third Party P,0090361141,MI HOMECARE LIMITED,222.83,01/06/2021
Delivery Units,Adults and Health,Other Agencies - Third Party P,0090361142,MI HOMECARE LIMITED,81.86,01/06/2021
Delivery Units,Adults and Health,Other Agencies - Third Party P,0090361145,MI HOMECARE LIMITED,140.97,01/06/2021
Delivery Units,Adults and Health,Other Agencies - Third Party P,0090361146,MI HOMECARE LIMITED,600.27,01/06/2021
Delivery Units,Adults and Health,Other Agencies - Third Party P,0090361147,MI HOMECARE LIMITED,318.33,01/06/2021
Delivery Units,Adults and Health,Other Agencies - Third Party P,0090361149,MI HOMECARE LIMITED,118.24,01/06/2021
Delivery Units,Adults and Health,Other Agencies - Third Party P,0090361150,MI HOMECARE LIMITED,536.60,01/06/2021
Delivery Units,Adults and Health,Other Agencies - Third Party P,0090361151,MI HOMECARE LIMITED,222.83,01/06/2021
Delivery Units,Adults and Health,Other Agencies - Third Party P,0090361152,MI HOMECARE LIMITED,163.71,01/06/2021
Delivery Units,Adults and Health,Other Agencies - Third Party P,0090361153,MI HOMECARE LIMITED,250.11,01/06/2021
Delivery Units,Adults and Health,Other Agencies - Third Party P,0090361154,MI HOMECARE LIMITED,286.49,01/06/2021
Delivery Units,Adults and Health,Other Agencies - Third Party P,0090361155,MI HOMECARE LIMITED,682.12,01/06/2021
Delivery Units,Adults and Health,Other Agencies - Third Party P,0090361157,MI HOMECARE LIMITED,304.68,01/06/2021
Delivery Units,Adults and Health,Other Agencies - Third Party P,0090361158,MI HOMECARE LIMITED,445.66,01/06/2021
Delivery Units,Adults and Health,Other Agencies - Third Party P,0090361159,MI HOMECARE LIMITED,100.04,01/06/2021
Delivery Units,Adults and Health,Other Agencies - Third Party P,0090361160,MI HOMECARE LIMITED,286.49,01/06/2021
Delivery Units,Adults and Health,Other Agencies - Third Party P,0090361162,MI HOMECARE LIMITED,155.89,01/06/2021
Delivery Units,Adults and Health,Other Agencies - Third Party P,0090361164,MI HOMECARE LIMITED,191.00,01/06/2021
Delivery Units,Adults and Health,Other Agencies - Third Party P,0090361167,MI HOMECARE LIMITED,127.33,01/06/2021
Delivery Units,Adults and Health,Other Agencies - Third Party P,0090361168,MI HOMECARE LIMITED,122.78,01/06/2021
Delivery Units,Adults and Health,Other Agencies - Third Party P,0090361169,MI HOMECARE LIMITED,222.83,01/06/2021
Delivery Units,Adults and Health,Other Agencies - Third Party P,0090361170,MI HOMECARE LIMITED,254.66,01/06/2021
Delivery Units,Adults and Health,Other Agencies - Third Party P,0090361171,MI HOMECARE LIMITED,127.33,01/06/2021
Delivery Units,Adults and Health,Other Agencies - Third Party P,0090361172,MI HOMECARE LIMITED,218.28,01/06/2021
Delivery Units,Adults and Health,Other Agencies - Third Party P,0090361173,MI HOMECARE LIMITED,291.04,01/06/2021
Delivery Units,Adults and Health,Other Agencies - Third Party P,0090361175,MI HOMECARE LIMITED,54.57,01/06/2021
Delivery Units,Adults and Health,Other Agencies - Third Party P,0090361176,MI HOMECARE LIMITED,213.73,01/06/2021
Delivery Units,Adults and Health,Other Agencies - Third Party P,0090361177,MI HOMECARE LIMITED,72.76,01/06/2021
Delivery Units,Adults and Health,Other Agencies - Third Party P,0090361179,MI HOMECARE LIMITED,222.83,01/06/2021
Delivery Units,Adults and Health,Other Agencies - Third Party P,0090361182,MI HOMECARE LIMITED,318.33,01/06/2021
Delivery Units,Adults and Health,Other Agencies - Third Party P,0090361184,MI HOMECARE LIMITED,341.06,01/06/2021
Delivery Units,Adults and Health,Other Agencies - Third Party P,0090361185,MI HOMECARE LIMITED,268.30,01/06/2021
Delivery Units,Adults and Health,Other Agencies - Third Party P,0090361186,MI HOMECARE LIMITED,254.66,01/06/2021
Delivery Units,Adults and Health,Other Agencies - Third Party P,0090361187,MI HOMECARE LIMITED,127.33,01/06/2021
Delivery Units,Adults and Health,Other Agencies - Third Party P,0090361189,MI HOMECARE LIMITED,345.61,01/06/2021
Delivery Units,Adults and Health,Other Agencies - Third Party P,0090361190,MI HOMECARE LIMITED,268.30,01/06/2021
Delivery Units,Adults and Health,Other Agencies - Third Party P,0090361191,MI HOMECARE LIMITED,45.48,01/06/2021
Delivery Units,Adults and Health,Other Agencies - Third Party P,0090361192,MI HOMECARE LIMITED,241.02,01/06/2021
Delivery Units,Adults and Health,Other Agencies - Third Party P,0090361193,MI HOMECARE LIMITED,286.49,01/06/2021
Delivery Units,Adults and Health,Other Agencies - Third Party P,0090361194,MI HOMECARE LIMITED,850.38,01/06/2021
Delivery Units,Adults and Health,Other Agencies - Third Party P,0090361195,MI HOMECARE LIMITED,45.48,01/06/2021
Delivery Units,Adults and Health,Other Agencies - Third Party P,0090361196,MI HOMECARE LIMITED,659.39,01/06/2021
Delivery Units,Adults and Health,Other Agencies - Third Party P,0090361198,MI HOMECARE LIMITED,754.89,01/06/2021
Delivery Units,Adults and Health,Other Agencies - Third Party P,0090361199,MI HOMECARE LIMITED,250.11,01/06/2021
Delivery Units,Adults and Health,Other Agencies - Third Party P,0090361200,MI HOMECARE LIMITED,68.21,01/06/2021
Delivery Units,Adults and Health,Other Agencies - Third Party P,0090361202,MI HOMECARE LIMITED,63.67,01/06/2021
Delivery Units,Adults and Health,Other Agencies - Third Party P,0090361203,MI HOMECARE LIMITED,95.50,01/06/2021
Delivery Units,Adults and Health,Other Agencies - Third Party P,0090361204,MI HOMECARE LIMITED,13.64,01/06/2021
Delivery Units,Adults and Health,Other Agencies - Third Party P,0090361205,MI HOMECARE LIMITED,245.57,01/06/2021
Delivery Units,Adults and Health,Other Agencies - Third Party P,0090361206,MI HOMECARE LIMITED,163.71,01/06/2021
Delivery Units,Adults and Health,Other Agencies - Third Party P,0090361207,MI HOMECARE LIMITED,413.82,01/06/2021
Delivery Units,Adults and Health,Other Agencies - Third Party P,0090361208,MI HOMECARE LIMITED,159.16,01/06/2021
Delivery Units,Adults and Health,Other Agencies - Third Party P,0090361209,MI HOMECARE LIMITED,159.16,01/06/2021
Delivery Units,Adults and Health,Other Agencies - Third Party P,0090361210,MI HOMECARE LIMITED,372.90,01/06/2021
Delivery Units,Adults and Health,Other Agencies - Third Party P,0090361211,MI HOMECARE LIMITED,218.28,01/06/2021
Delivery Units,Adults and Health,Other Agencies - Third Party P,0090361212,MI HOMECARE LIMITED,127.33,01/06/2021
Delivery Units,Adults and Health,Other Agencies - Third Party P,0090361215,MI HOMECARE LIMITED,127.33,01/06/2021
Delivery Units,Adults and Health,Other Agencies - Third Party P,0090361216,MI HOMECARE LIMITED,763.98,01/06/2021
Delivery Units,Adults and Health,Other Agencies - Third Party P,0090361217,MI HOMECARE LIMITED,218.28,01/06/2021
Delivery Units,Adults and Health,Other Agencies - Third Party P,0090361218,MI HOMECARE LIMITED,286.49,01/06/2021
Delivery Units,Adults and Health,Other Agencies - Third Party P,0090361219,MI HOMECARE LIMITED,27.29,01/06/2021
Delivery Units,Adults and Health,Other Agencies - Third Party P,0090361220,MI HOMECARE LIMITED,95.50,01/06/2021
Delivery Units,Adults and Health,Other Agencies - Third Party P,0090361221,MI HOMECARE LIMITED,286.49,01/06/2021
Delivery Units,Adults and Health,Other Agencies - Third Party P,0090361223,MI HOMECARE LIMITED,145.52,01/06/2021
Delivery Units,Adults and Health,Other Agencies - Third Party P,0090361224,MI HOMECARE LIMITED,159.16,01/06/2021
Delivery Units,Adults and Health,Other Agencies - Third Party P,0090361225,MI HOMECARE LIMITED,72.76,01/06/2021
Delivery Units,Adults and Health,Other Agencies - Third Party P,0090361227,MI HOMECARE LIMITED,336.52,01/06/2021
Delivery Units,Adults and Health,Other Agencies - Third Party P,0090361230,MI HOMECARE LIMITED,318.33,01/06/2021
Delivery Units,Adults and Health,Other Agencies - Third Party P,0090361233,MI HOMECARE LIMITED,213.73,01/06/2021
Delivery Units,Adults and Health,Other Agencies - Third Party P,0090361234,MI HOMECARE LIMITED,159.16,01/06/2021
Delivery Units,Adults and Health,Other Agencies - Third Party P,0090361235,MI HOMECARE LIMITED,95.50,01/06/2021
Delivery Units,Adults and Health,Other Agencies - Third Party P,0090361238,MI HOMECARE LIMITED,90.95,01/06/2021
Delivery Units,Adults and Health,Other Agencies - Third Party P,0090361239,MI HOMECARE LIMITED,27.29,01/06/2021
Delivery Units,Adults and Health,Other Agencies - Third Party P,0090361241,MI HOMECARE LIMITED,159.16,01/06/2021
Delivery Units,Adults and Health,Other Agencies - Third Party P,0090361242,MI HOMECARE LIMITED,127.33,01/06/2021
Delivery Units,Adults and Health,Other Agencies - Third Party P,0090361243,MI HOMECARE LIMITED,40.93,01/06/2021
Delivery Units,Adults and Health,Other Agencies - Third Party P,0090361244,MI HOMECARE LIMITED,68.21,01/06/2021
Delivery Units,Adults and Health,Other Agencies - Third Party P,0090361245,MI HOMECARE LIMITED,154.62,01/06/2021
Delivery Units,Adults and Health,Other Agencies - Third Party P,0090361246,MI HOMECARE LIMITED,131.88,01/06/2021
Delivery Units,Adults and Health,Other Agencies - Third Party P,0090361247,MI HOMECARE LIMITED,268.30,01/06/2021
Delivery Units,Adults and Health,Other Agencies - Third Party P,0090361260,MI HOMECARE LIMITED,127.33,01/06/2021
Delivery Units,Adults and Health,Other Agencies - Third Party P,0090361262,MI HOMECARE LIMITED,54.57,01/06/2021
Delivery Units,Adults and Health,Other Agencies - Third Party P,0090361263,THAMES HOMECARE SERVICES LTD,528.64,01/06/2021
Delivery Units,Adults and Health,Other Agencies - Third Party P,0090361264,THAMES HOMECARE SERVICES LTD,587.44,01/06/2021
Delivery Units,Adults and Health,Other Agencies - Third Party P,0090361267,THAMES HOMECARE SERVICES LTD,176.19,01/06/2021
Delivery Units,Adults and Health,Other Agencies - Third Party P,0090361268,THAMES HOMECARE SERVICES LTD,587.30,01/06/2021
Delivery Units,Adults and Health,Other Agencies - Third Party P,0090361269,THAMES HOMECARE SERVICES LTD,142.63,01/06/2021
Delivery Units,Adults and Health,Other Agencies - Third Party P,0090361270,THAMES HOMECARE SERVICES LTD,687.98,01/06/2021
Delivery Units,Adults and Health,Other Agencies - Third Party P,0090361272,THAMES HOMECARE SERVICES LTD,352.52,01/06/2021
Delivery Units,Adults and Health,Other Agencies - Third Party P,0090361273,THAMES HOMECARE SERVICES LTD,264.32,01/06/2021
Delivery Units,Adults and Health,Other Agencies - Third Party P,0090361274,THAMES HOMECARE SERVICES LTD,264.32,01/06/2021
Delivery Units,Adults and Health,Other Agencies - Third Party P,0090361275,THAMES HOMECARE SERVICES LTD,763.70,01/06/2021
Delivery Units,Adults and Health,Other Agencies - Third Party P,0090361276,THAMES HOMECARE SERVICES LTD,679.80,01/06/2021
Delivery Units,Adults and Health,Other Agencies - Third Party P,0090361278,THAMES HOMECARE SERVICES LTD,260.09,01/06/2021
Delivery Units,Adults and Health,Other Agencies - Third Party P,0090361280,THAMES HOMECARE SERVICES LTD,369.16,01/06/2021
Delivery Units,Adults and Health,Other Agencies - Third Party P,0090361281,THAMES HOMECARE SERVICES LTD,205.59,01/06/2021
Delivery Units,Adults and Health,Other Agencies - Third Party P,0090361282,THAMES HOMECARE SERVICES LTD,117.46,01/06/2021
Delivery Units,Adults and Health,Other Agencies - Third Party P,0090361283,THAMES HOMECARE SERVICES LTD,142.63,01/06/2021
Delivery Units,Adults and Health,Other Agencies - Third Party P,0090361284,THAMES HOMECARE SERVICES LTD,226.53,01/06/2021
Delivery Units,Adults and Health,Other Agencies - Third Party P,0090361285,THAMES HOMECARE SERVICES LTD,54.55,01/06/2021
Delivery Units,Adults and Health,Other Agencies - Third Party P,0090361286,THAMES HOMECARE SERVICES LTD,792.86,01/06/2021
Delivery Units,Adults and Health,Other Agencies - Third Party P,0090361287,THAMES HOMECARE SERVICES LTD,381.85,01/06/2021
Delivery Units,Adults and Health,Other Agencies - Third Party P,0090361288,THAMES HOMECARE SERVICES LTD,381.78,01/06/2021
Delivery Units,Adults and Health,Other Agencies - Third Party P,0090361289,THAMES HOMECARE SERVICES LTD,335.67,01/06/2021
Delivery Units,Adults and Health,Other Agencies - Third Party P,0090361290,THAMES HOMECARE SERVICES LTD,117.46,01/06/2021
Delivery Units,Adults and Health,Other Agencies - Third Party P,0090361291,THAMES HOMECARE SERVICES LTD,117.46,01/06/2021
Delivery Units,Adults and Health,Other Agencies - Third Party P,0090361292,THAMES HOMECARE SERVICES LTD,146.86,01/06/2021
Delivery Units,Adults and Health,Other Agencies - Third Party P,0090361293,THAMES HOMECARE SERVICES LTD,704.83,01/06/2021
Delivery Units,Adults and Health,Other Agencies - Third Party P,0090361294,THAMES HOMECARE SERVICES LTD,146.86,01/06/2021
Delivery Units,Adults and Health,Other Agencies - Third Party P,0090361295,THAMES HOMECARE SERVICES LTD,587.44,01/06/2021
Delivery Units,Adults and Health,Other Agencies - Third Party P,0090361296,THAMES HOMECARE SERVICES LTD,75.51,01/06/2021
Delivery Units,Adults and Health,Other Agencies - Third Party P,0090361297,THAMES HOMECARE SERVICES LTD,763.70,01/06/2021
Delivery Units,Adults and Health,Other Agencies - Third Party P,0090361298,THAMES HOMECARE SERVICES LTD,264.32,01/06/2021
Delivery Units,Adults and Health,Other Agencies - Third Party P,0090361299,THAMES HOMECARE SERVICES LTD,276.91,01/06/2021
Delivery Units,Adults and Health,Other Agencies - Third Party P,0090361300,THAMES HOMECARE SERVICES LTD,469.84,01/06/2021
Delivery Units,Adults and Health,Other Agencies - Third Party P,0090361301,THAMES HOMECARE SERVICES LTD,704.90,01/06/2021
Delivery Units,Adults and Health,Other Agencies - Third Party P,0090361303,THAMES HOMECARE SERVICES LTD,587.30,01/06/2021
Delivery Units,Adults and Health,Other Agencies - Third Party P,0090361304,THAMES HOMECARE SERVICES LTD,528.64,01/06/2021
Delivery Units,Adults and Health,Other Agencies - Third Party P,0090361305,THAMES HOMECARE SERVICES LTD,469.98,01/06/2021
Delivery Units,Adults and Health,Other Agencies - Third Party P,0090361307,THAMES HOMECARE SERVICES LTD,293.65,01/06/2021
Delivery Units,Adults and Health,Other Agencies - Third Party P,0090361309,THAMES HOMECARE SERVICES LTD,75.53,01/06/2021
Delivery Units,Adults and Health,Other Agencies - Third Party P,0090361311,THAMES HOMECARE SERVICES LTD,146.86,01/06/2021
Delivery Units,Adults and Health,Other Agencies - Third Party P,0090361313,THAMES HOMECARE SERVICES LTD,620.93,01/06/2021
Delivery Units,Adults and Health,Other Agencies - Third Party P,0090361316,THAMES HOMECARE SERVICES LTD,822.36,01/06/2021
Delivery Units,Adults and Health,Other Agencies - Third Party P,0090361317,THAMES HOMECARE SERVICES LTD,251.70,01/06/2021
Delivery Units,Adults and Health,Other Agencies - Third Party P,0090361318,THAMES HOMECARE SERVICES LTD,213.98,01/06/2021
Delivery Units,Adults and Health,Other Agencies - Third Party P,0090361319,THAMES HOMECARE SERVICES LTD,704.76,01/06/2021
Delivery Units,Adults and Health,Other Agencies - Third Party P,0090361320,THAMES HOMECARE SERVICES LTD,88.13,01/06/2021
Delivery Units,Adults and Health,Other Agencies - Third Party P,0090361321,THAMES HOMECARE SERVICES LTD,117.46,01/06/2021
Delivery Units,Adults and Health,Other Agencies - Third Party P,0090361322,THAMES HOMECARE SERVICES LTD,327.21,01/06/2021
Delivery Units,Adults and Health,Other Agencies - Third Party P,0090361323,THAMES HOMECARE SERVICES LTD,205.59,01/06/2021
Delivery Units,Adults and Health,Other Agencies - Third Party P,0090361324,THAMES HOMECARE SERVICES LTD,910.49,01/06/2021
Delivery Units,Adults and Health,Other Agencies - Third Party P,0090361325,THAMES HOMECARE SERVICES LTD,352.52,01/06/2021
Delivery Units,Adults and Health,Other Agencies - Third Party P,0090361326,THAMES HOMECARE SERVICES LTD,264.32,01/06/2021
Delivery Units,Adults and Health,Other Agencies - Third Party P,0090361327,THAMES HOMECARE SERVICES LTD,293.65,01/06/2021
Delivery Units,Adults and Health,Other Agencies - Third Party P,0090361328,THAMES HOMECARE SERVICES LTD,58.73,01/06/2021
Delivery Units,Adults and Health,Other Agencies - Third Party P,0090361330,THAMES HOMECARE SERVICES LTD,16.78,01/06/2021
Delivery Units,Adults and Health,Other Agencies - Third Party P,0090361331,THAMES HOMECARE SERVICES LTD,117.46,01/06/2021
Delivery Units,Adults and Health,Other Agencies - Third Party P,0090361332,THAMES HOMECARE SERVICES LTD,587.44,01/06/2021
Delivery Units,Adults and Health,Other Agencies - Third Party P,0090361334,THAMES HOMECARE SERVICES LTD,704.90,01/06/2021
Delivery Units,Adults and Health,Other Agencies - Third Party P,0090361335,THAMES HOMECARE SERVICES LTD,205.59,01/06/2021
Delivery Units,Adults and Health,Other Agencies - Third Party P,0090361336,THAMES HOMECARE SERVICES LTD,121.66,01/06/2021
Delivery Units,Adults and Health,Other Agencies - Third Party P,0090361337,THAMES HOMECARE SERVICES LTD,415.34,01/06/2021
Delivery Units,Adults and Health,Other Agencies - Third Party P,0090361338,THAMES HOMECARE SERVICES LTD,218.14,01/06/2021
Delivery Units,Adults and Health,Other Agencies - Third Party P,0090361340,THAMES HOMECARE SERVICES LTD,117.46,01/06/2021
Delivery Units,Adults and Health,Other Agencies - Third Party P,0090361342,THAMES HOMECARE SERVICES LTD,264.32,01/06/2021
Delivery Units,Adults and Health,Other Agencies - Third Party P,0090361343,THAMES HOMECARE SERVICES LTD,234.99,01/06/2021
Delivery Units,Adults and Health,Other Agencies - Third Party P,0090361345,THAMES HOMECARE SERVICES LTD,75.51,01/06/2021
Delivery Units,Adults and Health,Other Agencies - Third Party P,0090361346,THAMES HOMECARE SERVICES LTD,58.73,01/06/2021
Delivery Units,Adults and Health,Other Agencies - Third Party P,0090361347,THAMES HOMECARE SERVICES LTD,104.91,01/06/2021
Delivery Units,Adults and Health,Other Agencies - Third Party P,0090361348,THAMES HOMECARE SERVICES LTD,323.05,01/06/2021
Delivery Units,Adults and Health,Other Agencies - Third Party P,0090361350,THAMES HOMECARE SERVICES LTD,113.26,01/06/2021
Delivery Units,Adults and Health,Other Agencies - Third Party P,0090361351,THAMES HOMECARE SERVICES LTD,293.65,01/06/2021
Delivery Units,Adults and Health,Other Agencies - Third Party P,0090361352,THAMES HOMECARE SERVICES LTD,234.92,01/06/2021
Delivery Units,Adults and Health,Other Agencies - Third Party P,0090361354,THAMES HOMECARE SERVICES LTD,50.34,01/06/2021
Delivery Units,Adults and Health,Other Agencies - Third Party P,0090361356,THAMES HOMECARE SERVICES LTD,117.48,01/06/2021
Delivery Units,Adults and Health,Other Agencies - Third Party P,0090361358,THAMES HOMECARE SERVICES LTD,117.46,01/06/2021
Delivery Units,Adults and Health,Other Agencies - Third Party P,0090361359,THAMES HOMECARE SERVICES LTD,297.88,01/06/2021
Delivery Units,Adults and Health,Other Agencies - Third Party P,0090361360,THAMES HOMECARE SERVICES LTD,352.52,01/06/2021
Delivery Units,Adults and Health,Other Agencies - Third Party P,0090361361,THAMES HOMECARE SERVICES LTD,264.32,01/06/2021
Delivery Units,Adults and Health,Other Agencies - Third Party P,0090361362,THAMES HOMECARE SERVICES LTD,88.13,01/06/2021
Delivery Units,Adults and Health,Other Agencies - Third Party P,0090361363,THAMES HOMECARE SERVICES LTD,54.54,01/06/2021
Delivery Units,Adults and Health,Other Agencies - Third Party P,0090361364,THAMES HOMECARE SERVICES LTD,352.45,01/06/2021
Delivery Units,Adults and Health,Other Agencies - Third Party P,0090361365,THAMES HOMECARE SERVICES LTD,146.86,01/06/2021
Delivery Units,Adults and Health,Other Agencies - Third Party P,0090361369,THAMES HOMECARE SERVICES LTD,251.77,01/06/2021
Delivery Units,Adults and Health,Other Agencies - Third Party P,0090361371,THAMES HOMECARE SERVICES LTD,293.72,01/06/2021
Delivery Units,Adults and Health,Other Agencies - Third Party P,0090361372,THAMES HOMECARE SERVICES LTD,323.05,01/06/2021
Delivery Units,Adults and Health,Other Agencies - Third Party P,0090361373,THAMES HOMECARE SERVICES LTD,239.15,01/06/2021
Delivery Units,Adults and Health,Other Agencies - Third Party P,0090361375,THAMES HOMECARE SERVICES LTD,264.32,01/06/2021
Delivery Units,Adults and Health,Other Agencies - Third Party P,0090361376,THAMES HOMECARE SERVICES LTD,293.65,01/06/2021
Delivery Units,Adults and Health,Other Agencies - Third Party P,0090361377,THAMES HOMECARE SERVICES LTD,75.54,01/06/2021
Delivery Units,Adults and Health,Other Agencies - Third Party P,0090361378,THAMES HOMECARE SERVICES LTD,205.59,01/06/2021
Delivery Units,Adults and Health,Other Agencies - Third Party P,0090361379,THAMES HOMECARE SERVICES LTD,146.86,01/06/2021
Delivery Units,Adults and Health,Other Agencies - Third Party P,0090361380,THAMES HOMECARE SERVICES LTD,407.02,01/06/2021
Delivery Units,Adults and Health,Other Agencies - Third Party P,0090361381,THAMES HOMECARE SERVICES LTD,50.34,01/06/2021
Delivery Units,Adults and Health,Other Agencies - Third Party P,0090361383,THAMES HOMECARE SERVICES LTD,310.50,01/06/2021
Delivery Units,Adults and Health,Other Agencies - Third Party P,0090361384,THAMES HOMECARE SERVICES LTD,121.66,01/06/2021
Delivery Units,Adults and Health,Other Agencies - Third Party P,0090361387,THAMES HOMECARE SERVICES LTD,100.68,01/06/2021
Delivery Units,Adults and Health,Other Agencies - Third Party P,0090361389,THAMES HOMECARE SERVICES LTD,146.86,01/06/2021
Delivery Units,Adults and Health,Other Agencies - Third Party P,0090361391,THAMES HOMECARE SERVICES LTD,121.66,01/06/2021
Delivery Units,Adults and Health,Other Agencies - Third Party P,0090361392,THAMES HOMECARE SERVICES LTD,117.46,01/06/2021
Delivery Units,Adults and Health,Other Agencies - Third Party P,0090361393,THAMES HOMECARE SERVICES LTD,327.21,01/06/2021
Delivery Units,Adults and Health,Other Agencies - Third Party P,0090361395,THAMES HOMECARE SERVICES LTD,88.10,01/06/2021
Delivery Units,Adults and Health,Other Agencies - Third Party P,0090361396,THAMES HOMECARE SERVICES LTD,205.59,01/06/2021
Delivery Units,Adults and Health,Other Agencies - Third Party P,0090361397,THAMES HOMECARE SERVICES LTD,264.28,01/06/2021
Delivery Units,Adults and Health,Other Agencies - Third Party P,0090361400,THAMES HOMECARE SERVICES LTD,293.72,01/06/2021
Delivery Units,Adults and Health,Other Agencies - Third Party P,0090361414,THAMES HOMECARE SERVICES LTD,469.91,01/06/2021
Delivery Units,Adults and Health,Other Agencies - Third Party P,0090361415,THAMES HOMECARE SERVICES LTD,310.47,01/06/2021
Delivery Units,Adults and Health,Other Agencies - Third Party P,0090361417,THAMES HOMECARE SERVICES LTD,159.41,01/06/2021
Delivery Units,Adults and Health,Other Agencies - Third Party P,0090361418,THAMES HOMECARE SERVICES LTD,92.29,01/06/2021
Delivery Units,Adults and Health,Other Agencies - Third Party P,0090361419,THAMES HOMECARE SERVICES LTD,822.36,01/06/2021
Delivery Units,Adults and Health,Other Agencies - Third Party P,0090361421,THAMES HOMECARE SERVICES LTD,763.70,01/06/2021
Delivery Units,Adults and Health,Other Agencies - Third Party P,0090361422,THAMES HOMECARE SERVICES LTD,176.26,01/06/2021
Delivery Units,Adults and Health,Other Agencies - Third Party P,0090361423,THAMES HOMECARE SERVICES LTD,587.30,01/06/2021
Delivery Units,Adults and Health,Other Agencies - Third Party P,0090361425,THAMES HOMECARE SERVICES LTD,771.88,01/06/2021
Delivery Units,Adults and Health,Other Agencies - Third Party P,0090361426,THAMES HOMECARE SERVICES LTD,226.53,01/06/2021
Delivery Units,Adults and Health,Other Agencies - Third Party P,0090361427,THAMES HOMECARE SERVICES LTD,553.74,01/06/2021
Delivery Units,Adults and Health,Other Agencies - Third Party P,0090361428,THAMES HOMECARE SERVICES LTD,553.74,01/06/2021
Delivery Units,Adults and Health,Other Agencies - Third Party P,0090361430,THAMES HOMECARE SERVICES LTD,587.30,01/06/2021
Delivery Units,Adults and Health,Other Agencies - Third Party P,0090361431,THAMES HOMECARE SERVICES LTD,704.76,01/06/2021
Delivery Units,Adults and Health,Other Agencies - Third Party P,0090361432,THAMES HOMECARE SERVICES LTD,142.63,01/06/2021
Delivery Units,Adults and Health,Other Agencies - Third Party P,0090361945,MI HOMECARE LIMITED,145.52,01/06/2021
Delivery Units,Adults and Health,Other Agencies - Third Party P,0090361946,MI HOMECARE LIMITED,95.48,01/06/2021
Delivery Units,Adults and Health,Other Agencies - Third Party P,0090361947,THAMES HOMECARE SERVICES LTD,587.44,01/06/2021
Delivery Units,Adults and Health,Other Agencies - Third Party P,0090361950,THAMES HOMECARE SERVICES LTD,176.19,01/06/2021
Delivery Units,Adults and Health,Other Agencies - Third Party P,0090361951,THAMES HOMECARE SERVICES LTD,587.30,01/06/2021
Delivery Units,Adults and Health,Other Agencies - Third Party P,0090361952,THAMES HOMECARE SERVICES LTD,142.63,01/06/2021
Delivery Units,Adults and Health,Other Agencies - Third Party P,0090361953,THAMES HOMECARE SERVICES LTD,692.17,01/06/2021
Delivery Units,Adults and Health,Other Agencies - Third Party P,0090361955,THAMES HOMECARE SERVICES LTD,352.52,01/06/2021
Delivery Units,Adults and Health,Other Agencies - Third Party P,0090361956,THAMES HOMECARE SERVICES LTD,75.51,01/06/2021
Delivery Units,Adults and Health,Other Agencies - Third Party P,0090361957,THAMES HOMECARE SERVICES LTD,264.32,01/06/2021
Delivery Units,Adults and Health,Other Agencies - Third Party P,0090361958,THAMES HOMECARE SERVICES LTD,763.70,01/06/2021
Delivery Units,Adults and Health,Other Agencies - Third Party P,0090361959,THAMES HOMECARE SERVICES LTD,679.80,01/06/2021
Delivery Units,Adults and Health,Other Agencies - Third Party P,0090361961,THAMES HOMECARE SERVICES LTD,281.10,01/06/2021
Delivery Units,Adults and Health,Other Agencies - Third Party P,0090361963,THAMES HOMECARE SERVICES LTD,369.16,01/06/2021
Delivery Units,Adults and Health,Other Agencies - Third Party P,0090361964,THAMES HOMECARE SERVICES LTD,205.59,01/06/2021
Delivery Units,Adults and Health,Other Agencies - Third Party P,0090361965,THAMES HOMECARE SERVICES LTD,117.46,01/06/2021
Delivery Units,Adults and Health,Other Agencies - Third Party P,0090361966,THAMES HOMECARE SERVICES LTD,142.63,01/06/2021
Delivery Units,Adults and Health,Other Agencies - Third Party P,0090361967,THAMES HOMECARE SERVICES LTD,226.53,01/06/2021
Delivery Units,Adults and Health,Other Agencies - Third Party P,0090361968,THAMES HOMECARE SERVICES LTD,54.55,01/06/2021
Delivery Units,Adults and Health,Other Agencies - Third Party P,0090361969,THAMES HOMECARE SERVICES LTD,780.27,01/06/2021
Delivery Units,Adults and Health,Other Agencies - Third Party P,0090361970,THAMES HOMECARE SERVICES LTD,381.85,01/06/2021
Delivery Units,Adults and Health,Other Agencies - Third Party P,0090361971,THAMES HOMECARE SERVICES LTD,335.67,01/06/2021
Delivery Units,Adults and Health,Other Agencies - Third Party P,0090361972,THAMES HOMECARE SERVICES LTD,117.46,01/06/2021
Delivery Units,Adults and Health,Other Agencies - Third Party P,0090361973,THAMES HOMECARE SERVICES LTD,117.46,01/06/2021
Delivery Units,Adults and Health,Other Agencies - Third Party P,0090361974,THAMES HOMECARE SERVICES LTD,146.86,01/06/2021
Delivery Units,Adults and Health,Other Agencies - Third Party P,0090361975,THAMES HOMECARE SERVICES LTD,704.83,01/06/2021
Delivery Units,Adults and Health,Other Agencies - Third Party P,0090361976,THAMES HOMECARE SERVICES LTD,146.86,01/06/2021
Delivery Units,Adults and Health,Other Agencies - Third Party P,0090361977,THAMES HOMECARE SERVICES LTD,587.44,01/06/2021
Delivery Units,Adults and Health,Other Agencies - Third Party P,0090361978,THAMES HOMECARE SERVICES LTD,88.13,01/06/2021
Delivery Units,Adults and Health,Other Agencies - Third Party P,0090361979,THAMES HOMECARE SERVICES LTD,763.70,01/06/2021
Delivery Units,Adults and Health,Other Agencies - Third Party P,0090361980,THAMES HOMECARE SERVICES LTD,264.32,01/06/2021
Delivery Units,Adults and Health,Other Agencies - Third Party P,0090361981,THAMES HOMECARE SERVICES LTD,276.91,01/06/2021
Delivery Units,Adults and Health,Other Agencies - Third Party P,0090361982,THAMES HOMECARE SERVICES LTD,469.84,01/06/2021
Delivery Units,Adults and Health,Other Agencies - Third Party P,0090361983,THAMES HOMECARE SERVICES LTD,704.90,01/06/2021
Delivery Units,Adults and Health,Other Agencies - Third Party P,0090361985,THAMES HOMECARE SERVICES LTD,587.30,01/06/2021
Delivery Units,Adults and Health,Other Agencies - Third Party P,0090361986,THAMES HOMECARE SERVICES LTD,528.64,01/06/2021
Delivery Units,Adults and Health,Other Agencies - Third Party P,0090361987,THAMES HOMECARE SERVICES LTD,469.98,01/06/2021
Delivery Units,Adults and Health,Other Agencies - Third Party P,0090361989,THAMES HOMECARE SERVICES LTD,293.65,01/06/2021
Delivery Units,Adults and Health,Other Agencies - Third Party P,0090361990,THAMES HOMECARE SERVICES LTD,58.73,01/06/2021
Delivery Units,Adults and Health,Other Agencies - Third Party P,0090361992,THAMES HOMECARE SERVICES LTD,146.86,01/06/2021
Delivery Units,Adults and Health,Other Agencies - Third Party P,0090361994,THAMES HOMECARE SERVICES LTD,620.93,01/06/2021
Delivery Units,Adults and Health,Other Agencies - Third Party P,0090361997,THAMES HOMECARE SERVICES LTD,822.36,01/06/2021
Delivery Units,Adults and Health,Other Agencies - Third Party P,0090361998,THAMES HOMECARE SERVICES LTD,251.70,01/06/2021
Delivery Units,Adults and Health,Other Agencies - Third Party P,0090361999,THAMES HOMECARE SERVICES LTD,213.98,01/06/2021
Delivery Units,Adults and Health,Other Agencies - Third Party P,0090362000,THAMES HOMECARE SERVICES LTD,704.76,01/06/2021
Delivery Units,Adults and Health,Other Agencies - Third Party P,0090362001,THAMES HOMECARE SERVICES LTD,88.13,01/06/2021
Delivery Units,Adults and Health,Other Agencies - Third Party P,0090362002,THAMES HOMECARE SERVICES LTD,117.46,01/06/2021
Delivery Units,Adults and Health,Other Agencies - Third Party P,0090362003,THAMES HOMECARE SERVICES LTD,327.21,01/06/2021
Delivery Units,Adults and Health,Other Agencies - Third Party P,0090362004,THAMES HOMECARE SERVICES LTD,205.59,01/06/2021
Delivery Units,Adults and Health,Other Agencies - Third Party P,0090362005,THAMES HOMECARE SERVICES LTD,910.49,01/06/2021
Delivery Units,Adults and Health,Other Agencies - Third Party P,0090362006,THAMES HOMECARE SERVICES LTD,352.52,01/06/2021
Delivery Units,Adults and Health,Other Agencies - Third Party P,0090362007,THAMES HOMECARE SERVICES LTD,197.17,01/06/2021
Delivery Units,Adults and Health,Other Agencies - Third Party P,0090362008,THAMES HOMECARE SERVICES LTD,293.65,01/06/2021
Delivery Units,Adults and Health,Other Agencies - Third Party P,0090362009,THAMES HOMECARE SERVICES LTD,58.73,01/06/2021
Delivery Units,Adults and Health,Other Agencies - Third Party P,0090362011,THAMES HOMECARE SERVICES LTD,16.78,01/06/2021
Delivery Units,Adults and Health,Other Agencies - Third Party P,0090362012,THAMES HOMECARE SERVICES LTD,117.46,01/06/2021
Delivery Units,Adults and Health,Other Agencies - Third Party P,0090362013,THAMES HOMECARE SERVICES LTD,335.68,01/06/2021
Delivery Units,Adults and Health,Other Agencies - Third Party P,0090362015,THAMES HOMECARE SERVICES LTD,704.90,01/06/2021
Delivery Units,Adults and Health,Other Agencies - Third Party P,0090362016,THAMES HOMECARE SERVICES LTD,205.59,01/06/2021
Delivery Units,Adults and Health,Other Agencies - Third Party P,0090362017,THAMES HOMECARE SERVICES LTD,121.68,01/06/2021
Delivery Units,Adults and Health,Other Agencies - Third Party P,0090362018,THAMES HOMECARE SERVICES LTD,708.99,01/06/2021
Delivery Units,Adults and Health,Other Agencies - Third Party P,0090362019,THAMES HOMECARE SERVICES LTD,218.14,01/06/2021
Delivery Units,Adults and Health,Other Agencies - Third Party P,0090362021,THAMES HOMECARE SERVICES LTD,117.46,01/06/2021
Delivery Units,Adults and Health,Other Agencies - Third Party P,0090362023,THAMES HOMECARE SERVICES LTD,264.32,01/06/2021
Delivery Units,Adults and Health,Other Agencies - Third Party P,0090362024,THAMES HOMECARE SERVICES LTD,226.53,01/06/2021
Delivery Units,Adults and Health,Other Agencies - Third Party P,0090362026,THAMES HOMECARE SERVICES LTD,75.51,01/06/2021
Delivery Units,Adults and Health,Other Agencies - Third Party P,0090362027,THAMES HOMECARE SERVICES LTD,58.73,01/06/2021
Delivery Units,Adults and Health,Other Agencies - Third Party P,0090362028,THAMES HOMECARE SERVICES LTD,104.91,01/06/2021
Delivery Units,Adults and Health,Other Agencies - Third Party P,0090362029,THAMES HOMECARE SERVICES LTD,323.05,01/06/2021
Delivery Units,Adults and Health,Other Agencies - Third Party P,0090362031,THAMES HOMECARE SERVICES LTD,293.65,01/06/2021
Delivery Units,Adults and Health,Other Agencies - Third Party P,0090362032,THAMES HOMECARE SERVICES LTD,234.92,01/06/2021
Delivery Units,Adults and Health,Other Agencies - Third Party P,0090362034,THAMES HOMECARE SERVICES LTD,50.34,01/06/2021
Delivery Units,Adults and Health,Other Agencies - Third Party P,0090362037,THAMES HOMECARE SERVICES LTD,117.46,01/06/2021
Delivery Units,Adults and Health,Other Agencies - Third Party P,0090362038,THAMES HOMECARE SERVICES LTD,297.88,01/06/2021
Delivery Units,Adults and Health,Other Agencies - Third Party P,0090362039,THAMES HOMECARE SERVICES LTD,352.52,01/06/2021
Delivery Units,Adults and Health,Other Agencies - Third Party P,0090362040,THAMES HOMECARE SERVICES LTD,264.32,01/06/2021
Delivery Units,Adults and Health,Other Agencies - Third Party P,0090362041,THAMES HOMECARE SERVICES LTD,88.13,01/06/2021
Delivery Units,Adults and Health,Other Agencies - Third Party P,0090362042,THAMES HOMECARE SERVICES LTD,352.45,01/06/2021
Delivery Units,Adults and Health,Other Agencies - Third Party P,0090362043,THAMES HOMECARE SERVICES LTD,146.86,01/06/2021
Delivery Units,Adults and Health,Other Agencies - Third Party P,0090362047,THAMES HOMECARE SERVICES LTD,251.70,01/06/2021
Delivery Units,Adults and Health,Other Agencies - Third Party P,0090362049,THAMES HOMECARE SERVICES LTD,293.72,01/06/2021
Delivery Units,Adults and Health,Other Agencies - Third Party P,0090362050,THAMES HOMECARE SERVICES LTD,323.05,01/06/2021
Delivery Units,Adults and Health,Other Agencies - Third Party P,0090362051,THAMES HOMECARE SERVICES LTD,239.15,01/06/2021
Delivery Units,Adults and Health,Other Agencies - Third Party P,0090362053,THAMES HOMECARE SERVICES LTD,264.32,01/06/2021
Delivery Units,Adults and Health,Other Agencies - Third Party P,0090362054,THAMES HOMECARE SERVICES LTD,293.65,01/06/2021
Delivery Units,Adults and Health,Other Agencies - Third Party P,0090362055,THAMES HOMECARE SERVICES LTD,25.17,01/06/2021
Delivery Units,Adults and Health,Other Agencies - Third Party P,0090362056,THAMES HOMECARE SERVICES LTD,180.39,01/06/2021
Delivery Units,Adults and Health,Other Agencies - Third Party P,0090362057,THAMES HOMECARE SERVICES LTD,146.86,01/06/2021
Delivery Units,Adults and Health,Other Agencies - Third Party P,0090362058,THAMES HOMECARE SERVICES LTD,407.02,01/06/2021
Delivery Units,Adults and Health,Other Agencies - Third Party P,0090362059,THAMES HOMECARE SERVICES LTD,88.13,01/06/2021
Delivery Units,Adults and Health,Other Agencies - Third Party P,0090362061,THAMES HOMECARE SERVICES LTD,117.46,01/06/2021
Delivery Units,Adults and Health,Other Agencies - Third Party P,0090362062,THAMES HOMECARE SERVICES LTD,310.50,01/06/2021
Delivery Units,Adults and Health,Other Agencies - Third Party P,0090362065,THAMES HOMECARE SERVICES LTD,100.68,01/06/2021
Delivery Units,Adults and Health,Other Agencies - Third Party P,0090362066,THAMES HOMECARE SERVICES LTD,96.49,01/06/2021
Delivery Units,Adults and Health,Other Agencies - Third Party P,0090362068,THAMES HOMECARE SERVICES LTD,96.49,01/06/2021
Delivery Units,Adults and Health,Other Agencies - Third Party P,0090362069,THAMES HOMECARE SERVICES LTD,117.46,01/06/2021
Delivery Units,Adults and Health,Other Agencies - Third Party P,0090362070,THAMES HOMECARE SERVICES LTD,327.21,01/06/2021
Delivery Units,Adults and Health,Other Agencies - Third Party P,0090362072,THAMES HOMECARE SERVICES LTD,205.59,01/06/2021
Delivery Units,Adults and Health,Other Agencies - Third Party P,0090362073,THAMES HOMECARE SERVICES LTD,264.32,01/06/2021
Delivery Units,Adults and Health,Other Agencies - Third Party P,0090362076,THAMES HOMECARE SERVICES LTD,293.72,01/06/2021
Delivery Units,Adults and Health,Other Agencies - Third Party P,0090362089,THAMES HOMECARE SERVICES LTD,176.19,01/06/2021
Delivery Units,Adults and Health,Other Agencies - Third Party P,0090362091,THAMES HOMECARE SERVICES LTD,469.91,01/06/2021
Delivery Units,Adults and Health,Other Agencies - Third Party P,0090362092,THAMES HOMECARE SERVICES LTD,411.11,01/06/2021
Delivery Units,Adults and Health,Other Agencies - Third Party P,0090362094,THAMES HOMECARE SERVICES LTD,310.47,01/06/2021
Delivery Units,Adults and Health,Other Agencies - Third Party P,0090362097,THAMES HOMECARE SERVICES LTD,155.22,01/06/2021
Delivery Units,Adults and Health,Other Agencies - Third Party P,0090362098,THAMES HOMECARE SERVICES LTD,92.29,01/06/2021
Delivery Units,Adults and Health,Other Agencies - Third Party P,0090362099,THAMES HOMECARE SERVICES LTD,822.36,01/06/2021
Delivery Units,Adults and Health,Other Agencies - Third Party P,0090362101,THAMES HOMECARE SERVICES LTD,763.70,01/06/2021
Delivery Units,Adults and Health,Other Agencies - Third Party P,0090362102,THAMES HOMECARE SERVICES LTD,176.26,01/06/2021
Delivery Units,Adults and Health,Other Agencies - Third Party P,0090362103,THAMES HOMECARE SERVICES LTD,587.30,01/06/2021
Delivery Units,Adults and Health,Other Agencies - Third Party P,0090362105,SPRINGVILLA CARE LTD,"1,120.00",01/06/2021
Delivery Units,Adults and Health,Other Agencies - Third Party P,0090362106,SPRINGVILLA CARE LTD,"1,008.00",01/06/2021
Delivery Units,Adults and Health,Other Agencies - Third Party P,0090362107,SPRINGVILLA CARE LTD,"1,392.00",01/06/2021
Delivery Units,Adults and Health,Other Agencies - Third Party P,0090362113,ENTERPRISE CARE SUPPORT LTD,123.83,01/06/2021
Delivery Units,Adults and Health,Other Agencies - Third Party P,0090362117,ENTERPRISE CARE SUPPORT LTD,265.35,01/06/2021
Delivery Units,Adults and Health,Other Agencies - Third Party P,0090362118,ENTERPRISE CARE SUPPORT LTD,314.00,01/06/2021
Delivery Units,Adults and Health,Other Agencies - Third Party P,0090362119,ENTERPRISE CARE SUPPORT LTD,340.53,01/06/2021
Delivery Units,Adults and Health,Other Agencies - Third Party P,0090362122,ENTERPRISE CARE SUPPORT LTD,207.86,01/06/2021
Delivery Units,Adults and Health,Other Agencies - Third Party P,0090362123,ENTERPRISE CARE SUPPORT LTD,322.84,01/06/2021
Delivery Units,Adults and Health,Other Agencies - Third Party P,0090362125,ENTERPRISE CARE SUPPORT LTD,278.62,01/06/2021
Delivery Units,Adults and Health,Other Agencies - Third Party P,0090362134,ENTERPRISE CARE SUPPORT LTD,296.31,01/06/2021
Delivery Units,Adults and Health,Other Agencies - Third Party P,0090362137,ENTERPRISE CARE SUPPORT LTD,243.24,01/06/2021
Delivery Units,Adults and Health,Other Agencies - Third Party P,0090362138,ENTERPRISE CARE SUPPORT LTD,123.83,01/06/2021
Delivery Units,Adults and Health,Other Agencies - Third Party P,0090362141,ENTERPRISE CARE SUPPORT LTD,278.62,01/06/2021
Delivery Units,Adults and Health,Other Agencies - Third Party P,0090362142,ENTERPRISE CARE SUPPORT LTD,314.00,01/06/2021
Delivery Units,Adults and Health,Other Agencies - Third Party P,0090362143,ENTERPRISE CARE SUPPORT LTD,340.53,01/06/2021
Delivery Units,Adults and Health,Other Agencies - Third Party P,0090362146,ENTERPRISE CARE SUPPORT LTD,132.68,01/06/2021
Delivery Units,Adults and Health,Other Agencies - Third Party P,0090362147,ENTERPRISE CARE SUPPORT LTD,340.53,01/06/2021
Delivery Units,Adults and Health,Other Agencies - Third Party P,0090362148,ENTERPRISE CARE SUPPORT LTD,194.59,01/06/2021
Delivery Units,Adults and Health,Other Agencies - Third Party P,0090362149,ENTERPRISE CARE SUPPORT LTD,278.62,01/06/2021
Delivery Units,Adults and Health,Other Agencies - Third Party P,0090362155,ENTERPRISE CARE SUPPORT LTD,199.01,01/06/2021
Delivery Units,Adults and Health,Other Agencies - Third Party P,0090362157,ENTERPRISE CARE SUPPORT LTD,225.55,01/06/2021
Delivery Units,Adults and Health,Other Agencies - Third Party P,0090362158,ENTERPRISE CARE SUPPORT LTD,123.83,01/06/2021
Delivery Units,Adults and Health,Other Agencies - Third Party P,0090362161,ENTERPRISE CARE SUPPORT LTD,287.46,01/06/2021
Delivery Units,Adults and Health,Other Agencies - Third Party P,0090362162,ENTERPRISE CARE SUPPORT LTD,314.00,01/06/2021
Delivery Units,Adults and Health,Other Agencies - Third Party P,0090362163,ENTERPRISE CARE SUPPORT LTD,340.53,01/06/2021
Delivery Units,Adults and Health,Other Agencies - Third Party P,0090362164,ENTERPRISE CARE SUPPORT LTD,70.76,01/06/2021
Delivery Units,Adults and Health,Other Agencies - Third Party P,0090362167,ENTERPRISE CARE SUPPORT LTD,106.14,01/06/2021
Delivery Units,Adults and Health,Other Agencies - Third Party P,0090362168,ENTERPRISE CARE SUPPORT LTD,340.53,01/06/2021
Delivery Units,Adults and Health,Other Agencies - Third Party P,0090362169,ENTERPRISE CARE SUPPORT LTD,53.07,01/06/2021
Delivery Units,Adults and Health,Other Agencies - Third Party P,0090362170,ENTERPRISE CARE SUPPORT LTD,194.59,01/06/2021
Delivery Units,Adults and Health,Other Agencies - Third Party P,0090362171,ENTERPRISE CARE SUPPORT LTD,278.62,01/06/2021
Delivery Units,Adults and Health,Other Agencies - Third Party P,0090362177,ENTERPRISE CARE SUPPORT LTD,296.31,01/06/2021
Delivery Units,Adults and Health,Other Agencies - Third Party P,0090362179,ENTERPRISE CARE SUPPORT LTD,190.17,01/06/2021
Delivery Units,Adults and Health,Other Agencies - Third Party P,0090362180,ENTERPRISE CARE SUPPORT LTD,123.83,01/06/2021
Delivery Units,Adults and Health,Other Agencies - Third Party P,0090362184,ENTERPRISE CARE SUPPORT LTD,278.62,01/06/2021
Delivery Units,Adults and Health,Other Agencies - Third Party P,0090362186,ENTERPRISE CARE SUPPORT LTD,314.00,01/06/2021
Delivery Units,Adults and Health,Other Agencies - Third Party P,0090362187,ENTERPRISE CARE SUPPORT LTD,340.53,01/06/2021
Delivery Units,Adults and Health,Other Agencies - Third Party P,0090362188,ENTERPRISE CARE SUPPORT LTD,247.66,01/06/2021
Delivery Units,Adults and Health,Other Agencies - Third Party P,0090362190,ENTERPRISE CARE SUPPORT LTD,371.49,01/06/2021
Delivery Units,Adults and Health,Other Agencies - Third Party P,0090362191,ENTERPRISE CARE SUPPORT LTD,340.53,01/06/2021
Delivery Units,Adults and Health,Other Agencies - Third Party P,0090362192,ENTERPRISE CARE SUPPORT LTD,406.87,01/06/2021
Delivery Units,Adults and Health,Other Agencies - Third Party P,0090362193,ENTERPRISE CARE SUPPORT LTD,17.69,01/06/2021
Delivery Units,Adults and Health,Other Agencies - Third Party P,0090362194,ENTERPRISE CARE SUPPORT LTD,185.75,01/06/2021
Delivery Units,Adults and Health,Other Agencies - Third Party P,0090362196,ENTERPRISE CARE SUPPORT LTD,278.62,01/06/2021
Delivery Units,Adults and Health,Other Agencies - Third Party P,0090362202,ENTERPRISE CARE SUPPORT LTD,296.31,01/06/2021
Delivery Units,Adults and Health,Other Agencies - Third Party P,0090362206,ENTERPRISE CARE SUPPORT LTD,243.24,01/06/2021
Delivery Units,Adults and Health,Other Agencies - Third Party P,0090362207,ENTERPRISE CARE SUPPORT LTD,123.83,01/06/2021
Delivery Units,Adults and Health,Other Agencies - Third Party P,0090362209,ENTERPRISE CARE SUPPORT LTD,17.69,01/06/2021
Delivery Units,Adults and Health,Other Agencies - Third Party P,0090362211,ENTERPRISE CARE SUPPORT LTD,278.62,01/06/2021
Delivery Units,Adults and Health,Other Agencies - Third Party P,0090362213,ENTERPRISE CARE SUPPORT LTD,314.00,01/06/2021
Delivery Units,Adults and Health,Other Agencies - Third Party P,0090362214,ENTERPRISE CARE SUPPORT LTD,194.59,01/06/2021
Delivery Units,Adults and Health,Other Agencies - Third Party P,0090362215,ENTERPRISE CARE SUPPORT LTD,247.66,01/06/2021
Delivery Units,Adults and Health,Other Agencies - Third Party P,0090362217,ENTERPRISE CARE SUPPORT LTD,406.87,01/06/2021
Delivery Units,Adults and Health,Other Agencies - Third Party P,0090362218,ENTERPRISE CARE SUPPORT LTD,61.92,01/06/2021
Delivery Units,Adults and Health,Other Agencies - Third Party P,0090362219,ENTERPRISE CARE SUPPORT LTD,340.53,01/06/2021
Delivery Units,Adults and Health,Other Agencies - Third Party P,0090362220,ENTERPRISE CARE SUPPORT LTD,389.18,01/06/2021
Delivery Units,Adults and Health,Other Agencies - Third Party P,0090362221,ENTERPRISE CARE SUPPORT LTD,185.75,01/06/2021
Delivery Units,Adults and Health,Other Agencies - Third Party P,0090362223,ENTERPRISE CARE SUPPORT LTD,269.77,01/06/2021
Delivery Units,Adults and Health,Other Agencies - Third Party P,0090362227,ENTERPRISE CARE SUPPORT LTD,247.66,01/06/2021
Delivery Units,Adults and Health,Other Agencies - Third Party P,0090362235,ENTERPRISE CARE SUPPORT LTD,296.31,01/06/2021
Delivery Units,Adults and Health,Other Agencies - Third Party P,0090362241,ENTERPRISE CARE SUPPORT LTD,243.24,01/06/2021
Delivery Units,Adults and Health,Other Agencies - Third Party P,0090356928,CHURCHILL HEALTH CARE LTD,"-1,032.08",01/06/2021
Delivery Units,Adults and Health,Other Agencies - Third Party P,0090356929,CHURCHILL HEALTH CARE LTD,"1,032.08",01/06/2021
Delivery Units,Adults and Health,Other Agencies - Third Party P,0090356930,CHURCHILL HEALTH CARE LTD,-131.04,01/06/2021
Delivery Units,Adults and Health,Other Agencies - Third Party P,0090356931,CHURCHILL HEALTH CARE LTD,131.04,01/06/2021
Delivery Units,Adults and Health,Other Agencies - Third Party P,0090361910,BLUEBIRD CARE (BARNET),247.45,01/06/2021
Delivery Units,Adults and Health,Other Agencies - Third Party P,0090361913,BLUEBIRD CARE (BARNET),247.45,01/06/2021
Delivery Units,Adults and Health,Other Agencies - Third Party P,0090361916,BLUEBIRD CARE (BARNET),494.90,01/06/2021
Delivery Units,Adults and Health,Other Agencies - Third Party P,0090361917,BLUEBIRD CARE (BARNET),90.90,01/06/2021
Delivery Units,Adults and Health,Other Agencies - Third Party P,0090361918,BLUEBIRD CARE (BARNET),282.80,01/06/2021
Delivery Units,Adults and Health,Other Agencies - Third Party P,0090361919,BLUEBIRD CARE (BARNET),"1,400.00",01/06/2021
Delivery Units,Adults and Health,Other Agencies - Third Party P,0090361920,BLUEBIRD CARE (BARNET),141.40,01/06/2021
Delivery Units,Adults and Health,Other Agencies - Third Party P,0090361921,BLUEBIRD CARE (BARNET),303.00,01/06/2021
Delivery Units,Adults and Health,Other Agencies - Third Party P,0090361922,BLUEBIRD CARE (BARNET),353.50,01/06/2021
Delivery Units,Adults and Health,Other Agencies - Third Party P,0090361924,BLUEBIRD CARE (BARNET),784.00,01/06/2021
Delivery Units,Adults and Health,Other Agencies - Third Party P,0090361925,BLUEBIRD CARE (BARNET),141.40,01/06/2021
Delivery Units,Adults and Health,Other Agencies - Third Party P,0090361926,BLUEBIRD CARE (BARNET),212.10,01/06/2021
Delivery Units,Adults and Health,Other Agencies - Third Party P,0090361927,BLUEBIRD CARE (BARNET),353.50,01/06/2021
Delivery Units,Adults and Health,Other Agencies - Third Party P,0090361928,BLUEBIRD CARE (BARNET),287.85,01/06/2021
Delivery Units,Adults and Health,Other Agencies - Third Party P,0090361930,BLUEBIRD CARE (BARNET),196.95,01/06/2021
Delivery Units,Adults and Health,Other Agencies - Third Party P,0090361931,BLUEBIRD CARE (BARNET),282.80,01/06/2021
Delivery Units,Adults and Health,Other Agencies - Third Party P,0090361932,BLUEBIRD CARE (BARNET),80.80,01/06/2021
Delivery Units,Adults and Health,Other Agencies - Third Party P,0090361933,BLUEBIRD CARE (BARNET),"1,066.80",01/06/2021
Delivery Units,Adults and Health,Other Agencies - Third Party P,0090361934,BLUEBIRD CARE (BARNET),60.60,01/06/2021
Delivery Units,Adults and Health,Other Agencies - Third Party P,0090361935,BLUEBIRD CARE (BARNET),353.50,01/06/2021
Delivery Units,Adults and Health,Other Agencies - Third Party P,0090361936,BLUEBIRD CARE (BARNET),75.75,01/06/2021
Delivery Units,Adults and Health,Other Agencies - Third Party P,0090361937,BLUEBIRD CARE (BARNET),386.50,01/06/2021
Delivery Units,Adults and Health,Other Agencies - Third Party P,0090362111,CHURCHILL HEALTH CARE LTD,131.04,01/06/2021
Delivery Units,Adults and Health,Other Agencies - Third Party P,0090362112,CHURCHILL HEALTH CARE LTD,"1,032.08",01/06/2021
Delivery Units,Adults and Health,Other Agencies - Third Party P,0090362473,SERVESOUL LIMITED,440.76,02/06/2021
Delivery Units,Adults and Health,Other Agencies - Third Party P,0090362474,SERVESOUL LIMITED,598.17,02/06/2021
Delivery Units,Adults and Health,Other Agencies - Third Party P,0090362476,DYNAMIC PEOPLE LTD,95.86,02/06/2021
Delivery Units,Adults and Health,Other Agencies - Third Party P,0090362477,DYNAMIC PEOPLE LTD,"3,446.58",02/06/2021
Delivery Units,Adults and Health,Other Agencies - Third Party P,0090362479,DYNAMIC PEOPLE LTD,"7,645.38",02/06/2021
Delivery Units,Adults and Health,Other Agencies - Third Party P,0090362246,BARNET CARERS CENTRE,214.52,02/06/2021
Delivery Units,Adults and Health,Other Agencies - Third Party P,0090362247,BARNET CARERS CENTRE,409.64,02/06/2021
Delivery Units,Adults and Health,Other Agencies - Third Party P,0090362248,BARNET CARERS CENTRE,185.29,02/06/2021
Delivery Units,Adults and Health,Other Agencies - Third Party P,0090362252,BARNET CARERS CENTRE,682.64,02/06/2021
Delivery Units,Adults and Health,Other Agencies - Third Party P,0090362256,BARNET CARERS CENTRE,302.29,02/06/2021
Delivery Units,Adults and Health,Other Agencies - Third Party P,0090362257,BARNET CARERS CENTRE,409.65,02/06/2021
Delivery Units,Adults and Health,Other Agencies - Third Party P,0090362258,BARNET CARERS CENTRE,443.73,02/06/2021
Delivery Units,Adults and Health,Other Agencies - Third Party P,0090362262,BARNET CARERS CENTRE,682.64,02/06/2021
Delivery Units,Adults and Health,Other Agencies - Third Party P,0090362266,BARNET CARERS CENTRE,341.32,02/06/2021
Delivery Units,Adults and Health,Other Agencies - Third Party P,0090362267,BARNET CARERS CENTRE,409.64,02/06/2021
Delivery Units,Adults and Health,Other Agencies - Third Party P,0090362268,BARNET CARERS CENTRE,443.73,02/06/2021
Delivery Units,Adults and Health,Other Agencies - Third Party P,0090362272,BARNET CARERS CENTRE,667.99,02/06/2021
Delivery Units,Adults and Health,Other Agencies - Third Party P,0090362276,BARNET CARERS CENTRE,341.32,02/06/2021
Delivery Units,Adults and Health,Other Agencies - Third Party P,0090362277,BARNET CARERS CENTRE,409.64,02/06/2021
Delivery Units,Adults and Health,Other Agencies - Third Party P,0090362278,BARNET CARERS CENTRE,443.73,02/06/2021
Delivery Units,Adults and Health,Other Agencies - Third Party P,0090362282,BARNET CARERS CENTRE,638.73,02/06/2021
Delivery Units,Adults and Health,Other Agencies - Third Party P,0090362285,BARNET CARERS CENTRE,195.00,02/06/2021
Delivery Units,Adults and Health,Other Agencies - Third Party P,0090362287,HARTWIG CARE LIMITED,326.90,02/06/2021
Delivery Units,Adults and Health,Other Agencies - Third Party P,0090362288,HARTWIG CARE LIMITED,326.90,02/06/2021
Delivery Units,Adults and Health,Other Agencies - Third Party P,0090362289,HARTWIG CARE LIMITED,154.11,02/06/2021
Delivery Units,Adults and Health,Other Agencies - Third Party P,0090362290,HARTWIG CARE LIMITED,196.14,02/06/2021
Delivery Units,Adults and Health,Other Agencies - Third Party P,0090362291,HARTWIG CARE LIMITED,345.58,02/06/2021
Delivery Units,Adults and Health,Other Agencies - Third Party P,0090362292,HARTWIG CARE LIMITED,345.58,02/06/2021
Delivery Units,Adults and Health,Other Agencies - Third Party P,0090362293,HARTWIG CARE LIMITED,163.45,02/06/2021
Delivery Units,Adults and Health,Other Agencies - Third Party P,0090362294,HARTWIG CARE LIMITED,163.45,02/06/2021
Delivery Units,Adults and Health,Other Agencies - Third Party P,0090362295,HARTWIG CARE LIMITED,93.40,02/06/2021
Delivery Units,Adults and Health,Other Agencies - Third Party P,0090362296,HARTWIG CARE LIMITED,88.73,02/06/2021
Delivery Units,Adults and Health,Other Agencies - Third Party P,0090362297,HARTWIG CARE LIMITED,112.08,02/06/2021
Delivery Units,Adults and Health,Other Agencies - Third Party P,0090362298,HARTWIG CARE LIMITED,126.09,02/06/2021
Delivery Units,Adults and Health,Other Agencies - Third Party P,0090362299,HARTWIG CARE LIMITED,537.05,02/06/2021
Delivery Units,Adults and Health,Other Agencies - Third Party P,0090362300,HARTWIG CARE LIMITED,611.77,02/06/2021
Delivery Units,Adults and Health,Other Agencies - Third Party P,0090362305,HARTWIG CARE LIMITED,42.03,02/06/2021
Delivery Units,Adults and Health,Other Agencies - Third Party P,0090362306,HARTWIG CARE LIMITED,298.88,02/06/2021
Delivery Units,Adults and Health,Other Agencies - Third Party P,0090362307,HARTWIG CARE LIMITED,303.55,02/06/2021
Delivery Units,Adults and Health,Other Agencies - Third Party P,0090362308,HARTWIG CARE LIMITED,275.53,02/06/2021
Delivery Units,Adults and Health,Other Agencies - Third Party P,0090362309,HARTWIG CARE LIMITED,326.90,02/06/2021
Delivery Units,Adults and Health,Other Agencies - Third Party P,0090362310,HARTWIG CARE LIMITED,326.90,02/06/2021
Delivery Units,Adults and Health,Other Agencies - Third Party P,0090362311,HARTWIG CARE LIMITED,504.36,02/06/2021
Delivery Units,Adults and Health,Other Agencies - Third Party P,0090362312,HARTWIG CARE LIMITED,569.74,02/06/2021
Delivery Units,Adults and Health,Other Agencies - Third Party P,0090362313,HARTWIG CARE LIMITED,401.62,02/06/2021
Delivery Units,Adults and Health,Other Agencies - Third Party P,0090362314,HARTWIG CARE LIMITED,382.94,02/06/2021
Delivery Units,Adults and Health,Other Agencies - Third Party P,0090362317,HARTWIG CARE LIMITED,392.28,02/06/2021
Delivery Units,Adults and Health,Other Agencies - Third Party P,0090362318,HARTWIG CARE LIMITED,392.28,02/06/2021
Delivery Units,Adults and Health,Other Agencies - Third Party P,0090362319,HARTWIG CARE LIMITED,228.83,02/06/2021
Delivery Units,Adults and Health,Other Agencies - Third Party P,0090362320,HARTWIG CARE LIMITED,228.83,02/06/2021
Delivery Units,Adults and Health,Other Agencies - Third Party P,0090362323,HARTWIG CARE LIMITED,186.80,02/06/2021
Delivery Units,Adults and Health,Other Agencies - Third Party P,0090362324,HARTWIG CARE LIMITED,191.47,02/06/2021
Delivery Units,Adults and Health,Other Agencies - Third Party P,0090362325,HARTWIG CARE LIMITED,98.07,02/06/2021
Delivery Units,Adults and Health,Other Agencies - Third Party P,0090362326,HARTWIG CARE LIMITED,98.07,02/06/2021
Delivery Units,Adults and Health,Other Agencies - Third Party P,0090362327,HARTWIG CARE LIMITED,205.48,02/06/2021
Delivery Units,Adults and Health,Other Agencies - Third Party P,0090362328,HARTWIG CARE LIMITED,126.09,02/06/2021
Delivery Units,Adults and Health,Other Agencies - Third Party P,0090362329,HARTWIG CARE LIMITED,247.51,02/06/2021
Delivery Units,Adults and Health,Other Agencies - Third Party P,0090362330,HARTWIG CARE LIMITED,238.17,02/06/2021
Delivery Units,Adults and Health,Other Agencies - Third Party P,0090362331,HARTWIG CARE LIMITED,102.74,02/06/2021
Delivery Units,Adults and Health,Other Agencies - Third Party P,0090362332,HARTWIG CARE LIMITED,102.74,02/06/2021
Delivery Units,Adults and Health,Other Agencies - Third Party P,0090362335,HARTWIG CARE LIMITED,294.21,02/06/2021
Delivery Units,Adults and Health,Other Agencies - Third Party P,0090362336,HARTWIG CARE LIMITED,116.75,02/06/2021
Delivery Units,Adults and Health,Other Agencies - Third Party P,0090362337,HARTWIG CARE LIMITED,116.75,02/06/2021
Delivery Units,Adults and Health,Other Agencies - Third Party P,0090362338,HARTWIG CARE LIMITED,294.21,02/06/2021
Delivery Units,Adults and Health,Other Agencies - Third Party P,0090362339,HARTWIG CARE LIMITED,303.55,02/06/2021
Delivery Units,Adults and Health,Other Agencies - Third Party P,0090362340,HARTWIG CARE LIMITED,74.72,02/06/2021
Delivery Units,Adults and Health,Other Agencies - Third Party P,0090362341,HARTWIG CARE LIMITED,70.05,02/06/2021
Delivery Units,Adults and Health,Other Agencies - Third Party P,0090362342,HARTWIG CARE LIMITED,149.44,02/06/2021
Delivery Units,Adults and Health,Other Agencies - Third Party P,0090362343,HARTWIG CARE LIMITED,107.41,02/06/2021
Delivery Units,Adults and Health,Other Agencies - Third Party P,0090362344,HARTWIG CARE LIMITED,93.40,02/06/2021
Delivery Units,Adults and Health,Other Agencies - Third Party P,0090362345,HARTWIG CARE LIMITED,93.40,02/06/2021
Delivery Units,Adults and Health,Other Agencies - Third Party P,0090362346,HARTWIG CARE LIMITED,228.83,02/06/2021
Delivery Units,Adults and Health,Other Agencies - Third Party P,0090362347,HARTWIG CARE LIMITED,214.82,02/06/2021
Delivery Units,Adults and Health,Other Agencies - Third Party P,0090362348,HARTWIG CARE LIMITED,364.26,02/06/2021
Delivery Units,Adults and Health,Other Agencies - Third Party P,0090362349,HARTWIG CARE LIMITED,364.26,02/06/2021
Delivery Units,Adults and Health,Other Agencies - Third Party P,0090362352,HARTWIG CARE LIMITED,467.00,02/06/2021
Delivery Units,Adults and Health,Other Agencies - Third Party P,0090362353,HARTWIG CARE LIMITED,448.32,02/06/2021
Delivery Units,Adults and Health,Other Agencies - Third Party P,0090362356,HARTWIG CARE LIMITED,326.90,02/06/2021
Delivery Units,Adults and Health,Other Agencies - Third Party P,0090362357,HARTWIG CARE LIMITED,326.90,02/06/2021
Delivery Units,Adults and Health,Other Agencies - Third Party P,0090362358,HARTWIG CARE LIMITED,42.03,02/06/2021
Delivery Units,Adults and Health,Other Agencies - Third Party P,0090362359,HARTWIG CARE LIMITED,42.03,02/06/2021
Delivery Units,Adults and Health,Other Agencies - Third Party P,0090362360,HARTWIG CARE LIMITED,84.06,02/06/2021
Delivery Units,Adults and Health,Other Agencies - Third Party P,0090362361,HARTWIG CARE LIMITED,84.06,02/06/2021
Delivery Units,Adults and Health,Other Agencies - Third Party P,0090362362,HARTWIG CARE LIMITED,186.80,02/06/2021
Delivery Units,Adults and Health,Other Agencies - Third Party P,0090362363,HARTWIG CARE LIMITED,172.79,02/06/2021
Delivery Units,Adults and Health,Other Agencies - Third Party P,0090362370,HARTWIG CARE LIMITED,42.03,02/06/2021
Delivery Units,Adults and Health,Other Agencies - Third Party P,0090362371,HARTWIG CARE LIMITED,14.01,02/06/2021
Delivery Units,Adults and Health,Other Agencies - Third Party P,0090362372,HARTWIG CARE LIMITED,242.84,02/06/2021
Delivery Units,Adults and Health,Other Agencies - Third Party P,0090362373,HARTWIG CARE LIMITED,261.52,02/06/2021
Delivery Units,Adults and Health,Other Agencies - Third Party P,0090362378,HARTWIG CARE LIMITED,336.24,02/06/2021
Delivery Units,Adults and Health,Other Agencies - Third Party P,0090362379,HARTWIG CARE LIMITED,359.59,02/06/2021
Delivery Units,Adults and Health,Other Agencies - Third Party P,0090362380,HARTWIG CARE LIMITED,98.07,02/06/2021
Delivery Units,Adults and Health,Other Agencies - Third Party P,0090362381,HARTWIG CARE LIMITED,98.07,02/06/2021
Delivery Units,Adults and Health,Other Agencies - Third Party P,0090362382,HARTWIG CARE LIMITED,224.16,02/06/2021
Delivery Units,Adults and Health,Other Agencies - Third Party P,0090362383,HARTWIG CARE LIMITED,210.15,02/06/2021
Delivery Units,Adults and Health,Other Agencies - Third Party P,0090362384,HARTWIG CARE LIMITED,751.87,02/06/2021
Delivery Units,Adults and Health,Other Agencies - Third Party P,0090362385,HARTWIG CARE LIMITED,714.51,02/06/2021
Delivery Units,Adults and Health,Other Agencies - Third Party P,0090362386,HARTWIG CARE LIMITED,518.37,02/06/2021
Delivery Units,Adults and Health,Other Agencies - Third Party P,0090362387,HARTWIG CARE LIMITED,471.67,02/06/2021
Delivery Units,Adults and Health,Other Agencies - Third Party P,0090362388,HARTWIG CARE LIMITED,429.64,02/06/2021
Delivery Units,Adults and Health,Other Agencies - Third Party P,0090362389,HARTWIG CARE LIMITED,378.27,02/06/2021
Delivery Units,Adults and Health,Other Agencies - Third Party P,0090362390,HARTWIG CARE LIMITED,28.02,02/06/2021
Delivery Units,Adults and Health,Other Agencies - Third Party P,0090362391,HARTWIG CARE LIMITED,28.02,02/06/2021
Delivery Units,Adults and Health,Other Agencies - Third Party P,0090362392,HARTWIG CARE LIMITED,238.17,02/06/2021
Delivery Units,Adults and Health,Other Agencies - Third Party P,0090362399,HARTWIG CARE LIMITED,191.47,02/06/2021
Delivery Units,Adults and Health,Other Agencies - Third Party P,0090362400,HARTWIG CARE LIMITED,191.47,02/06/2021
Delivery Units,Adults and Health,Other Agencies - Third Party P,0090362401,HARTWIG CARE LIMITED,368.93,02/06/2021
Delivery Units,Adults and Health,Other Agencies - Third Party P,0090362402,HARTWIG CARE LIMITED,392.28,02/06/2021
Delivery Units,Adults and Health,Other Agencies - Third Party P,0090362403,HARTWIG CARE LIMITED,79.39,02/06/2021
Delivery Units,Adults and Health,Other Agencies - Third Party P,0090362404,HARTWIG CARE LIMITED,60.71,02/06/2021
Delivery Units,Adults and Health,Other Agencies - Third Party P,0090362405,HARTWIG CARE LIMITED,70.05,02/06/2021
Delivery Units,Adults and Health,Other Agencies - Third Party P,0090362406,HARTWIG CARE LIMITED,84.06,02/06/2021
Delivery Units,Adults and Health,Other Agencies - Third Party P,0090362409,HARTWIG CARE LIMITED,126.09,02/06/2021
Delivery Units,Adults and Health,Other Agencies - Third Party P,0090362410,HARTWIG CARE LIMITED,126.09,02/06/2021
Delivery Units,Adults and Health,Other Agencies - Third Party P,0090362411,HARTWIG CARE LIMITED,551.06,02/06/2021
Delivery Units,Adults and Health,Other Agencies - Third Party P,0090362412,HARTWIG CARE LIMITED,551.06,02/06/2021
Delivery Units,Adults and Health,Other Agencies - Third Party P,0090362413,HARTWIG CARE LIMITED,261.52,02/06/2021
Delivery Units,Adults and Health,Other Agencies - Third Party P,0090362414,HARTWIG CARE LIMITED,256.85,02/06/2021
Delivery Units,Adults and Health,Other Agencies - Third Party P,0090362419,HARTWIG CARE LIMITED,74.72,02/06/2021
Delivery Units,Adults and Health,Other Agencies - Third Party P,0090362420,HARTWIG CARE LIMITED,74.72,02/06/2021
Delivery Units,Adults and Health,Other Agencies - Third Party P,0090362421,HARTWIG CARE LIMITED,126.09,02/06/2021
Delivery Units,Adults and Health,Other Agencies - Third Party P,0090362422,HARTWIG CARE LIMITED,126.09,02/06/2021
Delivery Units,Adults and Health,Other Agencies - Third Party P,0090362423,HARTWIG CARE LIMITED,163.45,02/06/2021
Delivery Units,Adults and Health,Other Agencies - Third Party P,0090362424,HARTWIG CARE LIMITED,154.11,02/06/2021
Delivery Units,Adults and Health,Other Agencies - Third Party P,0090362425,HARTWIG CARE LIMITED,182.13,02/06/2021
Delivery Units,Adults and Health,Other Agencies - Third Party P,0090362426,HARTWIG CARE LIMITED,182.13,02/06/2021
Delivery Units,Adults and Health,Other Agencies - Third Party P,0090362427,HARTWIG CARE LIMITED,312.89,02/06/2021
Delivery Units,Adults and Health,Other Agencies - Third Party P,0090362428,HARTWIG CARE LIMITED,312.89,02/06/2021
Delivery Units,Adults and Health,Other Agencies - Third Party P,0090362431,HARTWIG CARE LIMITED,121.42,02/06/2021
Delivery Units,Adults and Health,Other Agencies - Third Party P,0090362432,HARTWIG CARE LIMITED,130.76,02/06/2021
Delivery Units,Adults and Health,Other Agencies - Third Party P,0090362481,BMM CARE LTD,"1,382.77",02/06/2021
Delivery Units,Adults and Health,Other Agencies - Third Party P,0090362482,BMM CARE LTD,903.56,02/06/2021
Delivery Units,Adults and Health,Other Agencies - Third Party P,0090362484,BMM CARE LTD,302.97,02/06/2021
Delivery Units,Adults and Health,Other Agencies - Third Party P,0090362485,BMM CARE LTD,295.43,02/06/2021
Delivery Units,Adults and Health,Other Agencies - Third Party P,0090362486,BMM CARE LTD,44.76,02/06/2021
Delivery Units,Adults and Health,Other Agencies - Third Party P,0090362487,BMM CARE LTD,10.08,02/06/2021
Delivery Units,Adults and Health,Other Agencies - Third Party P,0090362488,BMM CARE LTD,4.05,02/06/2021
Delivery Units,Adults and Health,Other Agencies - Third Party P,0090362490,BMM CARE LTD,2.19,02/06/2021
Delivery Units,Adults and Health,Other Agencies - Third Party P,0090362491,BMM CARE LTD,-4.05,02/06/2021
Delivery Units,Adults and Health,Other Agencies - Third Party P,0090362492,BMM CARE LTD,-11.78,02/06/2021
Delivery Units,Adults and Health,Other Agencies - Third Party P,0090362493,BMM CARE LTD,-25.22,02/06/2021
Delivery Units,Adults and Health,Other Agencies - Third Party P,0090362494,BMM CARE LTD,-30.24,02/06/2021
Delivery Units,Adults and Health,Other Agencies - Third Party P,0090362495,BMM CARE LTD,-114.54,02/06/2021
Delivery Units,Adults and Health,Other Agencies - Third Party P,0090362496,BMM CARE LTD,-164.15,02/06/2021
Delivery Units,Adults and Health,Other Agencies - Third Party P,0090362498,BMM CARE LTD,445.68,02/06/2021
Delivery Units,Adults and Health,Other Agencies - Third Party P,0090362501,BMM CARE LTD,313.39,02/06/2021
Delivery Units,Adults and Health,Other Agencies - Third Party P,0090362502,BMM CARE LTD,243.67,02/06/2021
Delivery Units,Adults and Health,Other Agencies - Third Party P,0090362504,BMM CARE LTD,51.95,02/06/2021
Delivery Units,Adults and Health,Other Agencies - Third Party P,0090362505,BMM CARE LTD,686.41,02/06/2021
Delivery Units,Adults and Health,Other Agencies - Third Party P,0090362506,BMM CARE LTD,-20.14,02/06/2021
Delivery Units,Adults and Health,Other Agencies - Third Party P,0090362507,BMM CARE LTD,666.51,02/06/2021
Delivery Units,Adults and Health,Other Agencies - Third Party P,0090362508,BMM CARE LTD,696.36,02/06/2021
Delivery Units,Adults and Health,Other Agencies - Third Party P,0090362509,BMM CARE LTD,696.36,02/06/2021
Delivery Units,Adults and Health,Other Agencies - Third Party P,0090362510,BMM CARE LTD,691.00,02/06/2021
Delivery Units,Adults and Health,Other Agencies - Third Party P,0090362511,BMM CARE LTD,394.57,02/06/2021
Delivery Units,Adults and Health,Other Agencies - Third Party P,0090362512,BMM CARE LTD,382.97,02/06/2021
Delivery Units,Adults and Health,Other Agencies - Third Party P,0090362513,BMM CARE LTD,382.97,02/06/2021
Delivery Units,Adults and Health,Other Agencies - Third Party P,0090362514,BMM CARE LTD,382.97,02/06/2021
Delivery Units,Adults and Health,Other Agencies - Third Party P,0090362515,BMM CARE LTD,373.02,02/06/2021
Delivery Units,Adults and Health,Other Agencies - Third Party P,0090362516,BMM CARE LTD,382.97,02/06/2021
Delivery Units,Adults and Health,Other Agencies - Third Party P,0090362517,BMM CARE LTD,382.97,02/06/2021
Delivery Units,Adults and Health,Other Agencies - Third Party P,0090362518,BMM CARE LTD,382.97,02/06/2021
Delivery Units,Adults and Health,Other Agencies - Third Party P,0090362519,BMM CARE LTD,378.00,02/06/2021
Delivery Units,Adults and Health,Other Agencies - Third Party P,0090362520,HARTWIG CARE LIMITED,326.90,02/06/2021
Delivery Units,Adults and Health,Other Agencies - Third Party P,0090362521,HARTWIG CARE LIMITED,196.14,02/06/2021
Delivery Units,Adults and Health,Other Agencies - Third Party P,0090362522,HARTWIG CARE LIMITED,345.58,02/06/2021
Delivery Units,Adults and Health,Other Agencies - Third Party P,0090362523,HARTWIG CARE LIMITED,163.45,02/06/2021
Delivery Units,Adults and Health,Other Agencies - Third Party P,0090362524,HARTWIG CARE LIMITED,37.36,02/06/2021
Delivery Units,Adults and Health,Other Agencies - Third Party P,0090362527,HARTWIG CARE LIMITED,126.09,02/06/2021
Delivery Units,Adults and Health,Other Agencies - Third Party P,0090362528,HARTWIG CARE LIMITED,298.88,02/06/2021
Delivery Units,Adults and Health,Other Agencies - Third Party P,0090362529,HARTWIG CARE LIMITED,312.89,02/06/2021
Delivery Units,Adults and Health,Other Agencies - Third Party P,0090362530,HARTWIG CARE LIMITED,532.38,02/06/2021
Delivery Units,Adults and Health,Other Agencies - Third Party P,0090362531,HARTWIG CARE LIMITED,448.32,02/06/2021
Delivery Units,Adults and Health,Other Agencies - Third Party P,0090362533,HARTWIG CARE LIMITED,392.28,02/06/2021
Delivery Units,Adults and Health,Other Agencies - Third Party P,0090362534,HARTWIG CARE LIMITED,228.83,02/06/2021
Delivery Units,Adults and Health,Other Agencies - Third Party P,0090362536,HARTWIG CARE LIMITED,177.46,02/06/2021
Delivery Units,Adults and Health,Other Agencies - Third Party P,0090362537,HARTWIG CARE LIMITED,98.07,02/06/2021
Delivery Units,Adults and Health,Other Agencies - Third Party P,0090362538,HARTWIG CARE LIMITED,135.43,02/06/2021
Delivery Units,Adults and Health,Other Agencies - Third Party P,0090362539,HARTWIG CARE LIMITED,252.18,02/06/2021
Delivery Units,Adults and Health,Other Agencies - Third Party P,0090362540,HARTWIG CARE LIMITED,93.40,02/06/2021
Delivery Units,Adults and Health,Other Agencies - Third Party P,0090362541,HARTWIG CARE LIMITED,350.25,02/06/2021
Delivery Units,Adults and Health,Other Agencies - Third Party P,0090362542,HARTWIG CARE LIMITED,116.75,02/06/2021
Delivery Units,Adults and Health,Other Agencies - Third Party P,0090362543,HARTWIG CARE LIMITED,294.21,02/06/2021
Delivery Units,Adults and Health,Other Agencies - Third Party P,0090362544,HARTWIG CARE LIMITED,74.72,02/06/2021
Delivery Units,Adults and Health,Other Agencies - Third Party P,0090362545,HARTWIG CARE LIMITED,107.41,02/06/2021
Delivery Units,Adults and Health,Other Agencies - Third Party P,0090362546,HARTWIG CARE LIMITED,93.40,02/06/2021
Delivery Units,Adults and Health,Other Agencies - Third Party P,0090362547,HARTWIG CARE LIMITED,224.16,02/06/2021
Delivery Units,Adults and Health,Other Agencies - Third Party P,0090362548,HARTWIG CARE LIMITED,359.59,02/06/2021
Delivery Units,Adults and Health,Other Agencies - Third Party P,0090362550,HARTWIG CARE LIMITED,476.34,02/06/2021
Delivery Units,Adults and Health,Other Agencies - Third Party P,0090362552,HARTWIG CARE LIMITED,326.90,02/06/2021
Delivery Units,Adults and Health,Other Agencies - Third Party P,0090362553,HARTWIG CARE LIMITED,42.03,02/06/2021
Delivery Units,Adults and Health,Other Agencies - Third Party P,0090362554,HARTWIG CARE LIMITED,79.39,02/06/2021
Delivery Units,Adults and Health,Other Agencies - Third Party P,0090362555,HARTWIG CARE LIMITED,182.13,02/06/2021
Delivery Units,Adults and Health,Other Agencies - Third Party P,0090362559,HARTWIG CARE LIMITED,42.03,02/06/2021
Delivery Units,Adults and Health,Other Agencies - Third Party P,0090362560,HARTWIG CARE LIMITED,275.53,02/06/2021
Delivery Units,Adults and Health,Other Agencies - Third Party P,0090362562,HARTWIG CARE LIMITED,354.92,02/06/2021
Delivery Units,Adults and Health,Other Agencies - Third Party P,0090362563,HARTWIG CARE LIMITED,98.07,02/06/2021
Delivery Units,Adults and Health,Other Agencies - Third Party P,0090362564,HARTWIG CARE LIMITED,224.16,02/06/2021
Delivery Units,Adults and Health,Other Agencies - Third Party P,0090362565,HARTWIG CARE LIMITED,714.51,02/06/2021
Delivery Units,Adults and Health,Other Agencies - Third Party P,0090362566,HARTWIG CARE LIMITED,467.00,02/06/2021
Delivery Units,Adults and Health,Other Agencies - Third Party P,0090362567,HARTWIG CARE LIMITED,429.64,02/06/2021
Delivery Units,Adults and Health,Other Agencies - Third Party P,0090362571,HARTWIG CARE LIMITED,191.47,02/06/2021
Delivery Units,Adults and Health,Other Agencies - Third Party P,0090362572,HARTWIG CARE LIMITED,354.92,02/06/2021
Delivery Units,Adults and Health,Other Agencies - Third Party P,0090362573,HARTWIG CARE LIMITED,79.39,02/06/2021
Delivery Units,Adults and Health,Other Agencies - Third Party P,0090362574,HARTWIG CARE LIMITED,60.71,02/06/2021
Delivery Units,Adults and Health,Other Agencies - Third Party P,0090362575,HARTWIG CARE LIMITED,28.02,02/06/2021
Delivery Units,Adults and Health,Other Agencies - Third Party P,0090362577,HARTWIG CARE LIMITED,121.42,02/06/2021
Delivery Units,Adults and Health,Other Agencies - Third Party P,0090362578,HARTWIG CARE LIMITED,607.10,02/06/2021
Delivery Units,Adults and Health,Other Agencies - Third Party P,0090362579,HARTWIG CARE LIMITED,261.52,02/06/2021
Delivery Units,Adults and Health,Other Agencies - Third Party P,0090362582,HARTWIG CARE LIMITED,74.72,02/06/2021
Delivery Units,Adults and Health,Other Agencies - Third Party P,0090362583,HARTWIG CARE LIMITED,121.42,02/06/2021
Delivery Units,Adults and Health,Other Agencies - Third Party P,0090362584,HARTWIG CARE LIMITED,135.43,02/06/2021
Delivery Units,Adults and Health,Other Agencies - Third Party P,0090362585,HARTWIG CARE LIMITED,182.13,02/06/2021
Delivery Units,Adults and Health,Other Agencies - Third Party P,0090362587,HARTWIG CARE LIMITED,130.76,02/06/2021
Delivery Units,Adults and Health,Other Agencies - Third Party P,0090362670,RIVENDELL CARE & SUPPORT,"2,240.00",03/06/2021
Delivery Units,Adults and Health,Other Agencies - Third Party P,0090362671,RIVENDELL CARE & SUPPORT,"1,970.00",03/06/2021
Delivery Units,Adults and Health,Other Agencies - Third Party P,0090362673,PRIMERA ASSISTED LIVING LTD,224.18,03/06/2021
Delivery Units,Adults and Health,Other Agencies - Third Party P,0090362675,PRIMERA ASSISTED LIVING LTD,70.32,03/06/2021
Delivery Units,Adults and Health,Other Agencies - Third Party P,0090362676,PRIMERA ASSISTED LIVING LTD,39.57,03/06/2021
Delivery Units,Adults and Health,Other Agencies - Third Party P,0090362677,PRIMERA ASSISTED LIVING LTD,369.25,03/06/2021
Delivery Units,Adults and Health,Other Agencies - Third Party P,0090362678,PRIMERA ASSISTED LIVING LTD,215.39,03/06/2021
Delivery Units,Adults and Health,Other Agencies - Third Party P,0090362679,PRIMERA ASSISTED LIVING LTD,43.95,03/06/2021
Delivery Units,Adults and Health,Other Agencies - Third Party P,0090362680,PRIMERA ASSISTED LIVING LTD,158.22,03/06/2021
Delivery Units,Adults and Health,Other Agencies - Third Party P,0090362681,PRIMERA ASSISTED LIVING LTD,215.39,03/06/2021
Delivery Units,Adults and Health,Other Agencies - Third Party P,0090362682,PRIMERA ASSISTED LIVING LTD,307.65,03/06/2021
Delivery Units,Adults and Health,Other Agencies - Third Party P,0090362685,PRIMERA ASSISTED LIVING LTD,92.33,03/06/2021
Delivery Units,Adults and Health,Other Agencies - Third Party P,0090362688,PRIMERA ASSISTED LIVING LTD,65.94,03/06/2021
Delivery Units,Adults and Health,Other Agencies - Third Party P,0090362690,PRIMERA ASSISTED LIVING LTD,52.74,03/06/2021
Delivery Units,Adults and Health,Other Agencies - Third Party P,0090362691,PRIMERA ASSISTED LIVING LTD,184.59,03/06/2021
Delivery Units,Adults and Health,Other Agencies - Third Party P,0090362693,PRIMERA ASSISTED LIVING LTD,123.06,03/06/2021
Delivery Units,Adults and Health,Other Agencies - Third Party P,0090362695,PRIMERA ASSISTED LIVING LTD,184.62,03/06/2021
Delivery Units,Adults and Health,Other Agencies - Third Party P,0090362697,PRIMERA ASSISTED LIVING LTD,17.58,03/06/2021
Delivery Units,Adults and Health,Other Agencies - Third Party P,0090362698,PRIMERA ASSISTED LIVING LTD,149.43,03/06/2021
Delivery Units,Adults and Health,Other Agencies - Third Party P,0090362699,PRIMERA ASSISTED LIVING LTD,215.39,03/06/2021
Delivery Units,Adults and Health,Other Agencies - Third Party P,0090362701,PRIMERA ASSISTED LIVING LTD,70.32,03/06/2021
Delivery Units,Adults and Health,Other Agencies - Third Party P,0090362702,PRIMERA ASSISTED LIVING LTD,39.57,03/06/2021
Delivery Units,Adults and Health,Other Agencies - Third Party P,0090362703,PRIMERA ASSISTED LIVING LTD,351.67,03/06/2021
Delivery Units,Adults and Health,Other Agencies - Third Party P,0090362704,PRIMERA ASSISTED LIVING LTD,215.39,03/06/2021
Delivery Units,Adults and Health,Other Agencies - Third Party P,0090362705,PRIMERA ASSISTED LIVING LTD,43.95,03/06/2021
Delivery Units,Adults and Health,Other Agencies - Third Party P,0090362706,PRIMERA ASSISTED LIVING LTD,158.22,03/06/2021
Delivery Units,Adults and Health,Other Agencies - Third Party P,0090362707,PRIMERA ASSISTED LIVING LTD,215.39,03/06/2021
Delivery Units,Adults and Health,Other Agencies - Third Party P,0090362708,PRIMERA ASSISTED LIVING LTD,307.65,03/06/2021
Delivery Units,Adults and Health,Other Agencies - Third Party P,0090362709,PRIMERA ASSISTED LIVING LTD,30.77,03/06/2021
Delivery Units,Adults and Health,Other Agencies - Third Party P,0090362711,PRIMERA ASSISTED LIVING LTD,92.33,03/06/2021
Delivery Units,Adults and Health,Other Agencies - Third Party P,0090362714,PRIMERA ASSISTED LIVING LTD,65.94,03/06/2021
Delivery Units,Adults and Health,Other Agencies - Third Party P,0090362716,PRIMERA ASSISTED LIVING LTD,52.74,03/06/2021
Delivery Units,Adults and Health,Other Agencies - Third Party P,0090362717,PRIMERA ASSISTED LIVING LTD,184.59,03/06/2021
Delivery Units,Adults and Health,Other Agencies - Third Party P,0090362719,PRIMERA ASSISTED LIVING LTD,123.06,03/06/2021
Delivery Units,Adults and Health,Other Agencies - Third Party P,0090362724,PRIMERA ASSISTED LIVING LTD,52.76,03/06/2021
Delivery Units,Adults and Health,Other Agencies - Third Party P,0090362725,PRIMERA ASSISTED LIVING LTD,52.76,03/06/2021
Delivery Units,Adults and Health,Other Agencies - Third Party P,0090362726,PRIMERA ASSISTED LIVING LTD,149.44,03/06/2021
Delivery Units,Adults and Health,Other Agencies - Third Party P,0090362727,PRIMERA ASSISTED LIVING LTD,17.58,03/06/2021
Delivery Units,Adults and Health,Other Agencies - Third Party P,0090362728,PRIMERA ASSISTED LIVING LTD,149.43,03/06/2021
Delivery Units,Adults and Health,Other Agencies - Third Party P,0090362729,PRIMERA ASSISTED LIVING LTD,215.39,03/06/2021
Delivery Units,Adults and Health,Other Agencies - Third Party P,0090362731,PRIMERA ASSISTED LIVING LTD,70.32,03/06/2021
Delivery Units,Adults and Health,Other Agencies - Third Party P,0090362732,PRIMERA ASSISTED LIVING LTD,39.57,03/06/2021
Delivery Units,Adults and Health,Other Agencies - Third Party P,0090362733,PRIMERA ASSISTED LIVING LTD,369.25,03/06/2021
Delivery Units,Adults and Health,Other Agencies - Third Party P,0090362734,PRIMERA ASSISTED LIVING LTD,215.39,03/06/2021
Delivery Units,Adults and Health,Other Agencies - Third Party P,0090362735,PRIMERA ASSISTED LIVING LTD,43.95,03/06/2021
Delivery Units,Adults and Health,Other Agencies - Third Party P,0090362736,PRIMERA ASSISTED LIVING LTD,158.22,03/06/2021
Delivery Units,Adults and Health,Other Agencies - Third Party P,0090362737,PRIMERA ASSISTED LIVING LTD,215.39,03/06/2021
Delivery Units,Adults and Health,Other Agencies - Third Party P,0090362738,PRIMERA ASSISTED LIVING LTD,307.65,03/06/2021
Delivery Units,Adults and Health,Other Agencies - Third Party P,0090362740,PRIMERA ASSISTED LIVING LTD,92.33,03/06/2021
Delivery Units,Adults and Health,Other Agencies - Third Party P,0090362742,PRIMERA ASSISTED LIVING LTD,65.94,03/06/2021
Delivery Units,Adults and Health,Other Agencies - Third Party P,0090362744,PRIMERA ASSISTED LIVING LTD,52.74,03/06/2021
Delivery Units,Adults and Health,Other Agencies - Third Party P,0090362745,PRIMERA ASSISTED LIVING LTD,184.59,03/06/2021
Delivery Units,Adults and Health,Other Agencies - Third Party P,0090362746,PRIMERA ASSISTED LIVING LTD,123.06,03/06/2021
Delivery Units,Adults and Health,Other Agencies - Third Party P,0090362747,PRIMERA ASSISTED LIVING LTD,167.05,03/06/2021
Delivery Units,Adults and Health,Other Agencies - Third Party P,0090362750,PRIMERA ASSISTED LIVING LTD,92.33,03/06/2021
Delivery Units,Adults and Health,Other Agencies - Third Party P,0090362751,PRIMERA ASSISTED LIVING LTD,65.95,03/06/2021
Delivery Units,Adults and Health,Other Agencies - Third Party P,0090362752,PRIMERA ASSISTED LIVING LTD,123.06,03/06/2021
Delivery Units,Adults and Health,Other Agencies - Third Party P,0090362753,PRIMERA ASSISTED LIVING LTD,17.58,03/06/2021
Delivery Units,Adults and Health,Other Agencies - Third Party P,0090362754,PRIMERA ASSISTED LIVING LTD,149.43,03/06/2021
Delivery Units,Adults and Health,Other Agencies - Third Party P,0090362755,PRIMERA ASSISTED LIVING LTD,215.39,03/06/2021
Delivery Units,Adults and Health,Other Agencies - Third Party P,0090362757,PRIMERA ASSISTED LIVING LTD,70.32,03/06/2021
Delivery Units,Adults and Health,Other Agencies - Third Party P,0090362758,PRIMERA ASSISTED LIVING LTD,39.57,03/06/2021
Delivery Units,Adults and Health,Other Agencies - Third Party P,0090362759,PRIMERA ASSISTED LIVING LTD,369.25,03/06/2021
Delivery Units,Adults and Health,Other Agencies - Third Party P,0090362760,PRIMERA ASSISTED LIVING LTD,215.39,03/06/2021
Delivery Units,Adults and Health,Other Agencies - Third Party P,0090362761,PRIMERA ASSISTED LIVING LTD,43.95,03/06/2021
Delivery Units,Adults and Health,Other Agencies - Third Party P,0090362762,PRIMERA ASSISTED LIVING LTD,158.22,03/06/2021
Delivery Units,Adults and Health,Other Agencies - Third Party P,0090362763,PRIMERA ASSISTED LIVING LTD,215.39,03/06/2021
Delivery Units,Adults and Health,Other Agencies - Third Party P,0090362764,PRIMERA ASSISTED LIVING LTD,307.65,03/06/2021
Delivery Units,Adults and Health,Other Agencies - Third Party P,0090362766,PRIMERA ASSISTED LIVING LTD,92.33,03/06/2021
Delivery Units,Adults and Health,Other Agencies - Third Party P,0090362768,PRIMERA ASSISTED LIVING LTD,65.94,03/06/2021
Delivery Units,Adults and Health,Other Agencies - Third Party P,0090362770,PRIMERA ASSISTED LIVING LTD,52.74,03/06/2021
Delivery Units,Adults and Health,Other Agencies - Third Party P,0090362771,PRIMERA ASSISTED LIVING LTD,184.59,03/06/2021
Delivery Units,Adults and Health,Other Agencies - Third Party P,0090362772,PRIMERA ASSISTED LIVING LTD,123.06,03/06/2021
Delivery Units,Adults and Health,Other Agencies - Third Party P,0090362773,PRIMERA ASSISTED LIVING LTD,167.05,03/06/2021
Delivery Units,Adults and Health,Other Agencies - Third Party P,0090362777,PRIMERA ASSISTED LIVING LTD,52.76,03/06/2021
Delivery Units,Adults and Health,Other Agencies - Third Party P,0090362778,PRIMERA ASSISTED LIVING LTD,123.06,03/06/2021
Delivery Units,Adults and Health,Other Agencies - Third Party P,0090362779,PRIMERA ASSISTED LIVING LTD,17.58,03/06/2021
Delivery Units,Adults and Health,Other Agencies - Third Party P,0090362780,PRIMERA ASSISTED LIVING LTD,17.58,03/06/2021
Delivery Units,Adults and Health,Other Agencies - Third Party P,0090362591,BMM CARE LTD,661.36,03/06/2021
Delivery Units,Adults and Health,Other Agencies - Third Party P,0090362592,BMM CARE LTD,302.48,03/06/2021
Delivery Units,Adults and Health,Other Agencies - Third Party P,0090362593,BMM CARE LTD,261.97,03/06/2021
Delivery Units,Adults and Health,Other Agencies - Third Party P,0090362594,BMM CARE LTD,240.40,03/06/2021
Delivery Units,Adults and Health,Other Agencies - Third Party P,0090362595,BMM CARE LTD,198.97,03/06/2021
Delivery Units,Adults and Health,Other Agencies - Third Party P,0090362596,BMM CARE LTD,63.73,03/06/2021
Delivery Units,Adults and Health,Other Agencies - Third Party P,0090362597,BMM CARE LTD,57.28,03/06/2021
Delivery Units,Adults and Health,Other Agencies - Third Party P,0090362598,BMM CARE LTD,12.14,03/06/2021
